{"text_format":"1","workbook":"xlsx","n_sheets":12,"sheets":["EMPRESAS ELABORADORAS","CAPA","INFORMAÇÕES GERAIS","LISTA_PATRIMÔNIO","LISTAS","IMÓVEIS","MANUAL IDE-SISEMA","ORÇAMENTO","DEMONSTRATIVO DE VIABILIDADE","CAPACIDADE DE PAGAMENTO","PATRIMÔNIO","REGRAS"],"not_rendered":{"charts":0,"images":16,"macros":1,"external_links":3,"defined_names":107,"comments":2,"pivot_tables":0},"unopened":[],"bounds":{"document_bytes":16777216,"sheet_cells":100000,"rows_first":2000,"rows_last":500,"rows_between":2000,"halvings":0,"cell_chars":16384,"cell_head_chars":4096},"cells_cut":0,"cells_raw":0,"read":"whole","date_system":"1900"}

{"sheet":"EMPRESAS ELABORADORAS","index":0,"n_rows":11,"n_cols":6,"rows_kept":11,"cut":false,"hidden":true,"merged":[]}
["NOME","CNPJ","ENDEREÇO","CIDADE","TELEFONE","EMAIL"]
["AGROMINAS - APA ASSESSORIA E PLANEJAMENTO AGROPECUÁRIO LTDA",7357636000134,"RUA DO BÁLSAMO, Nº 500, BAIRRO CAMPESTRE","SÃO GOTARDO","(34)  3671-3425","AGROMINASSG@YAHOO.COM.BR"]
["AGROSOLUÇÕES - AFA ASSESSORIA PROJETOS E PLANEJAMENTOS LTDA",33478456000110,"AV. RUI BARBOSA, 174A, CENTRO","SÃO GOTARDO","(34) 3671-3334","AGROSOLUCOES@AGROSOLUCOESLTDA.COM.BR"]
["COOPADAP - COOPERATIVA AGROPECUÁRIA DO ALTO PARANAÍBA",86675642000106,"ROD MG 235 KM 89, 443 - GUARDA DOS FERREIROS","SÃO GOTARDO","(34) 3616-1200","DEBORAPRATES@COOPADAP.COM.BR"]
["ÉLCIO EDUARDO URBANO JÚNIOR",7244640692,"RUA CORONEL FONTE BOA - Nº 725 - CENTRO","SÃO GOTARDO","(34) 99823-4210","URBANOELCIO@YAHOO.COM.BR"]
["EMATER-MG",19198118000102,"RUA BENTO FERREIRA DOS SANTOS, 160 S02, CENTRO","SÃO GOTARDO","(34) 3671-1355","SAO.GOTARDO@EMATER.MG.GOV.BR"]
["FORTPLAN - VICTOR SATORU ALVES MUKAEDA 10149154658",41465317000180,"AV. TABELIÃO JOÃO LOPES, Nº 1064, CAMPESTRE","SÃO GOTARDO","(34) 99944-7158","FORTPLAN@OUTLOOK.COM"]
["NIVALDO LUCAS MARTINS",10839110669,"RUA CURITIBA, N° 95, BAIRRO SANTA TEREZINHA","SÃO GOTARDO","(34) 99931-0052","THIAGOFERNANDES@SHIMADAAGRO.COM.BR"]
["NOVA CONSULTORIA - JUSCELINO ALEXANDRINO MACHADO EIRELI",14409336000117,"AV. PRESIDENTE VARGAS, 245, CENTRO","SÃO GOTARDO","(34) 3671-2396","NOVACONSULTORIAEPROJETOS@HOTMAIL.COM"]
["PAULO MITURU YAMAGAMI",97037680834,"AV. RIO TOCANTINS, N° 70, BAIRRO SOL NASCENTE","SÃO GOTARDO","(34) 99983-0655","AGROLOGICA@YMAIL.COM"]
["PROGEO - ISAIAS DE SOUZA SANTOS",29368223000198,"RUA TRISTAO FURTADO, Nº 114, CENTRO","RIO PARANAÍBA","(34) 99961-9993","PROGEORP@GMAIL.COM"]

{"sheet":"CAPA","index":1,"n_rows":42,"n_cols":32,"rows_kept":42,"cut":false,"hidden":true,"merged":[[14,23,15,44],[17,0,18,3],[17,4,18,21],[26,0,27,5],[26,6,27,21],[26,23,27,29],[26,30,27,44],[23,0,24,3],[23,4,24,21],[14,0,15,21],[23,23,24,26],[23,27,24,44],[17,23,18,25],[17,26,18,44],[20,23,21,26],[20,27,21,44],[20,4,21,19],[20,0,21,3],[30,0,31,44],[41,26,41,36],[37,7,37,12],[37,31,37,35],[39,8,39,13],[41,7,41,14],[39,26,39,37],[35,8,35,20],[35,0,35,7],[35,27,35,30],[35,23,35,26],[33,5,33,19],[33,23,33,28],[33,29,33,33]]}
[]
[]
[]
[]
[]
[]
[null,null,null,null,null,null,null,null,null,null,null,null,2]
[]
[]
[]
[]
[]
[]
[]
["EMPRESA ELABORADORA",null,null,null,null,null,null,null,null,null,null,null,null,null,null,null,null,null,null,null,null,null,null,"PROPONENTE"]
[]
[]
["EMPRESA:",null,null,null,{"$f":"IF('INFORMAÇÕES GERAIS'!G9=0,\"-\",UPPER('INFORMAÇÕES GERAIS'!G9))","v":"-"},null,null,null,null,null,null,null,null,null,null,null,null,null,null,null,null,null,null,"NOME:",null,null,{"$f":"IF('INFORMAÇÕES GERAIS'!F19=0,\"-\",UPPER('INFORMAÇÕES GERAIS'!F19))","v":"-"}]
[]
[]
["CPF/CNPJ:",null,null,null,{"$f":"IF('INFORMAÇÕES GERAIS'!AJ9=0,\"-\",'INFORMAÇÕES GERAIS'!AJ9)","v":"-"},null,null,null,null,null,null,null,null,null,null,null,null,null,null,null,null,null,null,"CPF/CNPJ:",null,null,null,{"$f":"IF('INFORMAÇÕES GERAIS'!AJ19=0,\"-\",'INFORMAÇÕES GERAIS'!AJ19)","v":"-"}]
[]
[]
["TELEFONE:",null,null,null,{"$f":"IF('INFORMAÇÕES GERAIS'!F13=\"\",\"-\",'INFORMAÇÕES GERAIS'!F13)","v":"-"},null,null,null,null,null,null,null,null,null,null,null,null,null,null,null,null,null,null,"TELEFONE:",null,null,null,{"$f":"IF('INFORMAÇÕES GERAIS'!T23=\"\",\"-\",'INFORMAÇÕES GERAIS'!T23)","v":"-"}]
[]
[]
["RESP. TÉCNICO:",null,null,null,null,null,{"$f":"IF('INFORMAÇÕES GERAIS'!H15=0,\"-\",UPPER('INFORMAÇÕES GERAIS'!H15))","v":"-"},null,null,null,null,null,null,null,null,null,null,null,null,null,null,null,null,"CONTA CORRENTE:",null,null,null,null,null,null,{"$f":"IF('INFORMAÇÕES GERAIS'!I23=0,\"-\",'INFORMAÇÕES GERAIS'!I23)","v":"-"}]
[]
[]
[]
["INFORMAÇÕES DO PROJETO"]
[]
[]
["ATIVIDADE:",null,null,null,null,{"$f":"IF(ATIVIDADE_FINANCIADA=0,\"-\",UPPER(ATIVIDADE_FINANCIADA))","v":"BOVINOCULTURA DE CORTE"},null,null,null,null,null,null,null,null,null,null,null,null,null,null,null,null,null,"TAXA DE JUROS:",null,null,null,null,null,{"$f":"IF('INFORMAÇÕES GERAIS'!J57=\"\",\"-\",'INFORMAÇÕES GERAIS'!J57)","v":"-"}]
[]
["LINHA DE CRÉDITO:",null,null,null,null,null,null,null,{"$f":"IF(LINHA_CRÉDITO=\"\",\"-\",LINHA_CRÉDITO)","v":"-"},null,null,null,null,null,null,null,null,null,null,null,null,null,null,"PRAZO:",null,null,null,{"$f":"IF('INFORMAÇÕES GERAIS'!I63=0,\"-\",'INFORMAÇÕES GERAIS'!I63)","v":"24 MESES"}]
[]
["VALOR ORÇADO:",null,null,null,null,null,null,{"$f":"IF(VALOR_ORÇADO=0,\"-\",VALOR_ORÇADO)","v":"-"},null,null,null,null,null,null,null,null,null,null,null,null,null,null,null,"VALOR FINANCIADO:",null,null,null,null,null,null,null,{"$f":"IF(VALOR_FINANCIADO=0,\"-\",VALOR_FINANCIADO)","v":"-"}]
[]
["RECEITA ESTIMADA:",null,null,null,null,null,null,null,{"$f":"IF(RECEITA_ESTIMADA=0,\"-\",RECEITA_ESTIMADA)","v":"-"},null,null,null,null,null,null,null,null,null,null,null,null,null,null,"FASE:",null,null,{"$f":"IF(FASE_FINANCIADA=0,\"-\",UPPER(FASE_FINANCIADA))","v":"RECRIA / ENGORDA"}]
[]
["PRODUTIVIDADE:",null,null,null,null,null,null,{"$f":"IF(ATIVIDADE_FINANCIADA=\"BOVINOCULTURA DE CORTE\",_xlfn.CONCAT(TEXT('INFORMAÇÕES GERAIS'!S67,\"#.##\"),\" CABEÇAS\"),_xlfn.CONCAT(TEXT('INFORMAÇÕES GERAIS'!S67,\"#.##\"),IF(ATIVIDADE_FINANCIADA=\"BOVINOCULTURA DE LEITE\",\"LITROS\",\"-\")))","v":" CABEÇAS"},null,null,null,null,null,null,null,null,null,null,null,null,null,null,null,"DATA:",null,null,{"$f":"IF('INFORMAÇÕES GERAIS'!AF55=\"\",\"-\",CONCATENATE(IF('INFORMAÇÕES GERAIS'!AF55<10,CONCATENATE(\"0\",'INFORMAÇÕES GERAIS'!AF55),'INFORMAÇÕES GERAIS'!AF55),\" DE \",'INFORMAÇÕES GERAIS'!AI55,\" DE \",'INFORMAÇÕES GERAIS'!AO55))","v":"-"}]

{"sheet":"INFORMAÇÕES GERAIS","index":2,"n_rows":133,"n_cols":53,"rows_kept":133,"cut":false,"hidden":false,"merged":[[106,0,106,6],[106,7,106,12],[106,13,106,18],[106,19,106,25],[106,26,106,32],[106,33,106,38],[106,39,106,44],[104,0,104,6],[104,7,104,12],[104,13,104,18],[104,19,104,25],[104,26,104,32],[104,33,104,38],[104,39,104,44],[105,0,105,6],[105,7,105,12],[105,13,105,18],[105,19,105,25],[105,26,105,32],[105,33,105,38],[105,39,105,44],[102,0,102,6],[102,7,102,12],[102,13,102,18],[102,19,102,25],[102,26,102,32],[102,33,102,38],[102,39,102,44],[103,0,103,6],[103,7,103,12],[103,13,103,18],[103,19,103,25],[103,26,103,32],[103,33,103,38],[103,39,103,44],[100,0,100,6],[100,7,100,12],[100,13,100,18],[100,19,100,25],[100,26,100,32],[100,33,100,38],[100,39,100,44],[101,0,101,6],[101,7,101,12],[101,13,101,18],[101,19,101,25],[101,26,101,32],[101,33,101,38],[101,39,101,44],[98,0,98,6],[98,7,98,12],[98,13,98,18],[98,19,98,25],[98,26,98,32],[98,33,98,38],[98,39,98,44],[99,0,99,6],[99,7,99,12],[99,13,99,18],[99,19,99,25],[99,26,99,32],[99,33,99,38],[99,39,99,44],[96,0,96,6],[96,7,96,12],[96,13,96,18],[96,19,96,25],[96,26,96,32],[96,33,96,38],[96,39,96,44],[97,0,97,6],[97,7,97,12],[97,13,97,18],[97,19,97,25],[97,26,97,32],[97,33,97,38],[97,39,97,44],[94,0,94,6],[94,7,94,12],[94,13,94,18],[94,19,94,25],[94,26,94,32],[94,33,94,38],[94,39,94,44],[95,0,95,6],[95,7,95,12],[95,13,95,18],[95,19,95,25],[95,26,95,32],[95,33,95,38],[95,39,95,44],[92,0,92,6],[92,7,92,12],[92,13,92,18],[92,19,92,25],[92,26,92,32],[92,33,92,38],[92,39,92,44],[93,0,93,6],[93,7,93,12],[93,13,93,18],[93,19,93,25],[93,26,93,32],[93,33,93,38],[93,39,93,44],[90,0,90,6],[90,7,90,12],[90,13,90,18],[90,19,90,25],[90,26,90,32],[90,33,90,38],[90,39,90,44],[91,0,91,6],[91,7,91,12],[91,13,91,18],[91,19,91,25],[91,26,91,32],[91,33,91,38],[91,39,91,44],[88,0,88,6],[88,7,88,12],[88,13,88,18],[88,19,88,25],[88,26,88,32],[88,33,88,38],[88,39,88,44],[89,0,89,6],[89,7,89,12],[89,13,89,18],[89,19,89,25],[89,26,89,32],[89,33,89,38],[89,39,89,44],[85,0,85,44],[86,0,86,6],[86,7,86,12],[86,13,86,18],[86,19,86,25],[86,26,86,32],[86,33,86,38],[86,39,86,44],[87,0,87,6],[87,7,87,12],[87,13,87,18],[87,19,87,25],[87,26,87,32],[87,33,87,38],[87,39,87,44],[42,0,42,4],[42,5,42,15],[42,16,42,25],[42,26,42,29],[42,30,42,40],[42,41,42,44],[50,5,50,15],[50,0,50,4],[50,16,50,25],[50,26,50,29],[50,30,50,40],[50,41,50,44],[34,16,34,25],[34,30,34,40],[22,8,22,13],[12,0,12,4],[12,19,12,22],[12,23,12,44],[18,30,18,34],[14,0,14,6],[20,33,20,44],[26,0,26,9],[26,10,26,11],[32,0,32,5],[32,6,32,27],[24,0,24,44],[30,35,30,44],[30,7,30,28],[30,29,30,34],[14,30,14,34],[14,35,14,44],[125,0,125,7],[60,31,60,37],[62,0,62,7],[68,23,68,40],[108,0,108,44],[109,0,110,3],[109,4,110,15],[109,16,110,24],[109,25,110,31],[109,32,110,38],[109,39,110,44],[111,0,111,3],[66,18,66,21],[66,0,66,17],[72,0,72,13],[72,14,72,18],[82,0,82,13],[82,14,82,17],[82,23,82,40],[82,41,82,44],[76,23,76,31],[76,32,76,35],[78,0,78,17],[112,16,112,24],[8,31,8,34],[8,35,8,45],[10,0,10,4],[10,29,10,32],[10,33,10,44],[22,14,22,18],[6,0,6,44],[16,0,16,44],[22,26,22,29],[18,0,18,4],[18,35,18,44],[20,0,20,4],[20,29,20,32],[8,6,8,30],[10,5,10,28],[12,5,12,18],[14,7,14,29],[18,5,18,29],[20,5,20,28],[22,19,22,25],[22,30,22,44],[22,0,22,7],[8,0,8,5],[40,28,40,32],[38,0,38,6],[36,0,36,44],[32,33,32,44],[32,28,32,32],[28,0,28,44],[30,0,30,6],[62,8,62,11],[38,7,38,28],[38,29,38,34],[38,35,38,44],[40,0,40,5],[40,6,40,27],[40,33,40,44],[56,9,56,12],[56,23,56,27],[56,28,56,44],[58,30,58,41],[58,0,58,8],[58,23,58,29],[34,0,34,4],[34,5,34,15],[34,26,34,29],[34,41,34,44],[132,0,132,19],[130,25,130,44],[131,25,131,44],[132,25,132,44],[46,0,46,6],[46,7,46,28],[46,29,46,34],[46,35,46,44],[44,0,44,44],[48,0,48,5],[48,6,48,27],[48,33,48,44],[48,28,48,32],[58,9,58,21],[52,0,52,44],[54,0,54,7],[54,8,54,21],[54,23,54,30],[54,31,54,32],[54,34,54,38],[54,40,54,42],[130,0,130,19],[131,0,131,19],[56,0,56,8],[112,25,112,31],[112,32,112,38],[112,39,112,44],[64,0,64,13],[64,14,64,21],[64,23,64,36],[64,37,64,44],[62,23,62,34],[62,35,62,44],[80,0,80,14],[80,15,80,18],[80,23,80,37],[80,38,80,41],[70,0,70,13],[70,15,70,19],[70,23,70,30],[70,31,70,44],[76,10,76,13],[76,0,76,9],[74,23,74,35],[74,0,74,6],[74,7,74,21],[74,36,74,39],[66,38,66,43],[60,0,60,6],[60,7,60,16],[60,23,60,30],[68,41,68,44],[66,23,66,36],[78,18,78,21],[78,23,78,32],[78,33,78,36],[68,0,68,8],[72,23,72,38],[72,39,72,44],[119,0,119,7],[119,8,119,44],[121,0,121,7],[121,8,121,44],[123,0,123,7],[123,8,123,44],[125,8,125,44],[68,9,68,15],[113,0,113,3],[113,4,113,15],[113,16,113,24],[113,25,113,31],[113,32,113,38],[113,39,113,44],[114,0,114,44],[115,0,115,44],[117,0,117,44],[111,4,111,15],[111,16,111,24],[111,25,111,31],[111,32,111,38],[111,39,111,44],[112,0,112,3],[112,4,112,15]]}
[]
[]
[]
[]
[]
[]
["REPONSÁVEL PELA ELABORAÇÃO",null,null,null,null,null,null,null,null,null,null,null,null,null,null,null,null,null,null,null,null,null,null,null,null,null,null,null,null,null,null,null,null,null,null,null,null,null,null,null,null,null,null,null,null,{"$f":"IF(OR(G9=\"\",AJ9=\"\",F11=\"\",AH11=\"\",F13=\"\",X13=\"\",H15=\"\",AJ15=\"\"),\"AUSENTE\",\"OK\")","v":"AUSENTE"}]
[]
["ELABORADOR:",null,null,null,null,null,null,null,null,null,null,null,null,null,null,null,null,null,null,null,null,null,null,null,null,null,null,null,null,null,null,"CPF/CNPJ:",null,null,null,{"$f":"IFERROR(VLOOKUP(G9,'EMPRESAS ELABORADORAS'!A2:F11,2,0),\"-\")","v":"-"}]
[]
["ENDEREÇO:",null,null,null,null,{"$f":"IFERROR(VLOOKUP(G9,'EMPRESAS ELABORADORAS'!A2:F11,3,0),\"-\")","v":"-"},null,null,null,null,null,null,null,null,null,null,null,null,null,null,null,null,null,null,null,null,null,null,null,"CIDADE:",null,null,null,{"$f":"IFERROR(VLOOKUP(G9,'EMPRESAS ELABORADORAS'!A2:F11,4,0),\"-\")","v":"-"}]
[]
["TELEFONE:",null,null,null,null,{"$f":"IFERROR(VLOOKUP(G9,'EMPRESAS ELABORADORAS'!A2:F11,5,0),\"-\")","v":"-"},null,null,null,null,null,null,null,null,null,null,null,null,null,"EMAIL:",null,null,null,{"$f":"IFERROR(VLOOKUP(G9,'EMPRESAS ELABORADORAS'!A2:F11,6,0),\"-\")","v":"-"}]
[]
["RESP. TÉCNICO:",null,null,null,null,null,null,null,null,null,null,null,null,null,null,null,null,null,null,null,null,null,null,null,null,null,null,null,null,null,"CREA / CFTA:"]
[]
["IDENTIFICAÇÃO DO PROPONENTE",null,null,null,null,null,null,null,null,null,null,null,null,null,null,null,null,null,null,null,null,null,null,null,null,null,null,null,null,null,null,null,null,null,null,null,null,null,null,null,null,null,null,null,null,{"$f":"IF(OR(F19=\"\",AJ19=\"\",F21=\"\",AH21=\"\",I23=\"\",T23=\"\",AE23=\"\"),\"AUSENTE\",\"OK\")","v":"AUSENTE"}]
[]
["NOME:",null,null,null,null,null,null,null,null,null,null,null,null,null,null,null,null,null,null,null,null,null,null,null,null,null,null,null,null,null,"CPF/CNPJ:"]
[]
["ENDEREÇO:",null,null,null,null,null,null,null,null,null,null,null,null,null,null,null,null,null,null,null,null,null,null,null,null,null,null,null,null,"CIDADE:"]
[]
["CONTA CORRENTE:",null,null,null,null,null,null,null,null,null,null,null,null,null,"TELEFONE:",null,null,null,null,null,null,null,null,null,null,null,"EMAIL:"]
[]
["IMÓVEIS DE LOCALIZAÇÃO DO EMPREENDIMENTO"]
[]
["QUANTIDADE DE IMÓVEIS:",null,null,null,null,null,null,null,null,null,2]
[]
["IMÓVEL 1",null,null,null,null,null,null,null,null,null,null,null,null,null,null,null,null,null,null,null,null,null,null,null,null,null,null,null,null,null,null,null,null,null,null,null,null,null,null,null,null,null,null,null,null,{"$f":"IF(OR(H31=\"\",AJ31=\"\",G33=\"\",AH33=\"\",F35=\"\",AP35=\"\"),\"AUSENTE\",\"OK\")","v":"AUSENTE"}]
[]
["PROPRIEDADE:",null,null,null,null,null,null,null,null,null,null,null,null,null,null,null,null,null,null,null,null,null,null,null,null,null,null,null,null,"MATRÍCULA:"]
[]
["PROPRIETÁRIO:",null,null,null,null,null,null,null,null,null,null,null,null,null,null,null,null,null,null,null,null,null,null,null,null,null,null,null,"CPF/CNPJ:"]
[]
["MUNICÍPIO:",null,null,null,null,null,null,null,null,null,null,null,null,null,null,null,"ÁREA TOTAL IMÓVEL (ha):",null,null,null,null,null,null,null,null,null,null,null,null,null,"ÁREA A SER BENEFICIADA (ha):"]
[]
["IMÓVEL 2",null,null,null,null,null,null,null,null,null,null,null,null,null,null,null,null,null,null,null,null,null,null,null,null,null,null,null,null,null,null,null,null,null,null,null,null,null,null,null,null,null,null,null,null,{"$f":"IF(OR(H39=\"\",AJ39=\"\",G41=\"\",AH41=\"\",F43=\"\",AP43=\"\"),\"AUSENTE\",\"OK\")","v":"AUSENTE"}]
[]
["PROPRIEDADE:",null,null,null,null,null,null,null,null,null,null,null,null,null,null,null,null,null,null,null,null,null,null,null,null,null,null,null,null,"MATRÍCULA:"]
[]
["PROPRIETÁRIO:",null,null,null,null,null,null,null,null,null,null,null,null,null,null,null,null,null,null,null,null,null,null,null,null,null,null,null,"CPF/CNPJ:"]
[]
["MUNICÍPIO:",null,null,null,null,null,null,null,null,null,null,null,null,null,null,null,"ÁREA TOTAL IMÓVEL (ha):",null,null,null,null,null,null,null,null,null,null,null,null,null,"ÁREA A SER BENEFICIADA (ha):"]
[]
["IMÓVEL 3",null,null,null,null,null,null,null,null,null,null,null,null,null,null,null,null,null,null,null,null,null,null,null,null,null,null,null,null,null,null,null,null,null,null,null,null,null,null,null,null,null,null,null,null,{"$f":"IF(OR(H47=\"\",AJ47=\"\",G49=\"\",AH49=\"\",F51=\"\",AP51=\"\"),\"AUSENTE\",\"OK\")","v":"AUSENTE"}]
[]
["PROPRIEDADE:",null,null,null,null,null,null,null,null,null,null,null,null,null,null,null,null,null,null,null,null,null,null,null,null,null,null,null,null,"MATRÍCULA:"]
[]
["PROPRIETÁRIO:",null,null,null,null,null,null,null,null,null,null,null,null,null,null,null,null,null,null,null,null,null,null,null,null,null,null,null,"CPF/CNPJ:"]
[]
["MUNICÍPIO:",null,null,null,null,null,null,null,null,null,null,null,null,null,null,null,"ÁREA TOTAL IMÓVEL (ha):",null,null,null,null,null,null,null,null,null,null,null,null,null,"ÁREA A SER BENEFICIADA (ha):"]
[]
["EMPREENDIMENTO",null,null,null,null,null,null,null,null,null,null,null,null,null,null,null,null,null,null,null,null,null,null,null,null,null,null,null,null,null,null,null,null,null,null,null,null,null,null,null,null,null,null,null,null,{"$f":"IF(OR(LINHA_CRÉDITO=\"\",AF55=\"\",AI55=\"\",AO55=\"\",AC57=\"\",ATIVIDADE_FINANCIADA=\"\",J57=\"\",H61=\"\",FASE_FINANCIADA=\"\",AF61=\"\",AJ63=\"\",AL65=\"\",O65=\"\",PRAZO=\"\",PRODUÇÃO_ESTIMADA=\"\",AM67=\"\",ANIMAIS_CUSTEADOS=\"\",J69=\"\",P71=\"\",AF71=\"\",AK75=\"\",AG77=\"\",H75=\"\",K77=\"\",S79=\"\",P81=\"\",O83=\"\",AH79=\"\",AM81=\"\",AP83=\"\"),\"AUSENTE\",\"OK\")","v":"AUSENTE"}]
[]
["LINHA DE CRÉDITO:",null,null,null,null,null,null,null,null,null,null,null,null,null,null,null,null,null,null,null,null,null,null,"DATA DO PROJETO:",null,null,null,null,null,null,null,null,null,"/",null,null,null,null,null,"/",null,null,null,null,null,null,{"$f":"IF(J59=\"BOVINOCULTURA DE CORTE\",\"ATIVIDADE_CORTE\",\"ATIVIDADE_LEITE\")","v":"ATIVIDADE_CORTE"}]
[]
["TAXA DE JUROS (a.a):",null,null,null,null,null,null,null,null,null,null,null,null,null,null,null,null,null,null,null,null,null,null,"GARANTIAS:",null,null,null,null,null,null,null,null,null,null,null,null,null,null,null,null,null,null,null,null,null,null,{"$f":"_xlfn.CONCAT(\"PRAZO_\",VLOOKUP(FASE_FINANCIADA,LISTAS!I1:N7,6,0))","v":"PRAZO_24"}]
[]
["ATIVIDADE FINANCIADA:",null,null,null,null,null,null,null,null,"BOVINOCULTURA DE CORTE",null,null,null,null,null,null,null,null,null,null,null,null,null,"FASE FINANCIADA:",null,null,null,null,null,null,"RECRIA / ENGORDA"]
[]
["PORTE PRODUTOR:",null,null,null,null,null,null,null,null,null,null,null,null,null,null,null,null,null,null,null,null,null,null,"NÍVEL TÉCNOLÓGICO:"]
[]
["PRAZO DO CUSTEIO:",null,null,null,null,null,null,null,"24 MESES",null,null,null,null,null,null,null,null,null,null,null,null,null,null,"PERIODICIDADE DO REEMBOLSO:"]
[]
["VALOR ORÇADO TOTAL DO PROJETO (R$):",null,null,null,null,null,null,null,null,null,null,null,null,null,{"$f":"IF(VALOR_ORÇADO=0,\"-\",VALOR_ORÇADO)","v":"-"},null,null,null,null,null,null,null,null,"VALOR A SER FINANCIADO NO PROJETO:",null,null,null,null,null,null,null,null,null,null,null,null,null,{"$f":"IF(VALOR_FINANCIADO=0,\"-\",VALOR_FINANCIADO)","v":"-"}]
[]
[{"$f":"IFERROR(_xlfn.CONCAT(\"PRODUÇÃO DE \",VLOOKUP(FASE_FINANCIADA,LISTAS!I1:N7,2,0),\" ESTIMADA:\"),\"PRODUÇÃO ESTIMADA:\")","v":"PRODUÇÃO DE CABEÇAS DE BOI GORDO ESTIMADA:"},null,null,null,null,null,null,null,null,null,null,null,null,null,null,null,null,null,null,null,null,null,null,{"$f":"IF(FASE_FINANCIADA=\"PRODUÇÃO DE LEITE\",\"VALOR DE VENDA ESTIMADO POR LITRO:\",\"VALOR VENDA ESTIMADO POR CABEÇA:\")","v":"VALOR VENDA ESTIMADO POR CABEÇA:"}]
[]
["RECEITA PREVISTA (R$):",null,null,null,null,null,null,null,null,{"$f":"IF(PRODUÇÃO_ESTIMADA*AM67=0,\"-\",AM67*PRODUÇÃO_ESTIMADA)","v":"-"},null,null,null,null,null,null,null,null,null,null,null,null,null,"QTDE DE ANIMAIS BENEFICIADOS PELO CUSTEIO:"]
[]
["ÁREA TOTAL BENEFICIADA (ha):",null,null,null,null,null,null,null,null,null,null,null,null,null,null,null,null,null,null,null,null,null,null,"SISTEMA PRODUTIVO:"]
[]
["ÁREA BENEFICIADA ARRENDADA (ha):",null,null,null,null,null,null,null,null,null,null,null,null,null,null,null,null,null,null,null,null,null,null,"CUSTO MENSAL DO ARRENDAMENTO (R$/ha):"]
[]
["ASSISTÊNCIA TÉC.:",null,null,null,null,null,null,null,null,null,null,null,null,null,null,null,null,null,null,null,null,null,null,"ASSISTÊNCIA TÉCNICA FINANCIADA:"]
[]
["RASTREABILIDADE ANIMAL:",null,null,null,null,null,null,null,null,null,null,null,null,null,null,null,null,null,null,null,null,null,null,"MAQUINÁRIO PRÓPRIO:"]
[]
["RESERVA LEGAL , APP OU PLANO DE RECUPERAÇÃO:",null,null,null,null,null,null,null,null,null,null,null,null,null,null,null,null,null,null,null,null,null,null,"ZONEAMENTO AGRÍCOLA:"]
[]
["SEGURO AGRÍCOLA, EXCETO PROAGRO:",null,null,null,null,null,null,null,null,null,null,null,null,null,null,null,null,null,null,null,null,null,null,"CONTRATOS FUTUROS OU DE OPÇÕES:"]
[]
["SISTEMA ORGÂNICO DE PRODUÇÃO:",null,null,null,null,null,null,null,null,null,null,null,null,null,null,null,null,null,null,null,null,null,null,"PARTICIPA DO SAPI E CERTIFICAÇÃO DO INMETRO:"]
[]
[]
["REBANHO CUSTEADO"]
["TIPO DE ANIMAL",null,null,null,null,null,null,"IDADE MÉDIA\n(MESES)",null,null,null,null,null,"RAÇA:",null,null,null,null,null,"COR PREDOMINANTE",null,null,null,null,null,null,"QUANTIDADE \n(Nº CABEÇAS)",null,null,null,null,null,null,"VALOR  UN.\n (R$)",null,null,null,null,null,"VALOR \nTOTAL (R$)",null,null,null,null,null,null,{"$f":"SUM(AV87:AV107)","v":1},null,null,null,{"$f":"SUM(AA88:AG107)","v":0},null,"QUANTIDADE DE ANIMAIS"]
[null,null,null,null,null,null,null,null,null,null,null,null,null,null,null,null,null,null,null,null,null,null,null,null,null,null,null,null,null,null,null,null,null,null,null,null,null,null,null,{"$f":"IF(OR(AH88=\"\",AA88=\"\"),\"\",AH88*AA88)","v":""},null,null,null,null,null,null,null,1]
[null,null,null,null,null,null,null,null,null,null,null,null,null,null,null,null,null,null,null,null,null,null,null,null,null,null,null,null,null,null,null,null,null,null,null,null,null,null,null,{"$f":"IF(OR(AH89=\"\",AA89=\"\"),\"\",AH89*AA89)","v":""}]
[null,null,null,null,null,null,null,null,null,null,null,null,null,null,null,null,null,null,null,null,null,null,null,null,null,null,null,null,null,null,null,null,null,null,null,null,null,null,null,""]
[null,null,null,null,null,null,null,null,null,null,null,null,null,null,null,null,null,null,null,null,null,null,null,null,null,null,null,null,null,null,null,null,null,null,null,null,null,null,null,""]
[null,null,null,null,null,null,null,null,null,null,null,null,null,null,null,null,null,null,null,null,null,null,null,null,null,null,null,null,null,null,null,null,null,null,null,null,null,null,null,""]
[null,null,null,null,null,null,null,null,null,null,null,null,null,null,null,null,null,null,null,null,null,null,null,null,null,null,null,null,null,null,null,null,null,null,null,null,null,null,null,""]
[null,null,null,null,null,null,null,null,null,null,null,null,null,null,null,null,null,null,null,null,null,null,null,null,null,null,null,null,null,null,null,null,null,null,null,null,null,null,null,""]
[null,null,null,null,null,null,null,null,null,null,null,null,null,null,null,null,null,null,null,null,null,null,null,null,null,null,null,null,null,null,null,null,null,null,null,null,null,null,null,""]
[null,null,null,null,null,null,null,null,null,null,null,null,null,null,null,null,null,null,null,null,null,null,null,null,null,null,null,null,null,null,null,null,null,null,null,null,null,null,null,""]
[null,null,null,null,null,null,null,null,null,null,null,null,null,null,null,null,null,null,null,null,null,null,null,null,null,null,null,null,null,null,null,null,null,null,null,null,null,null,null,""]
[null,null,null,null,null,null,null,null,null,null,null,null,null,null,null,null,null,null,null,null,null,null,null,null,null,null,null,null,null,null,null,null,null,null,null,null,null,null,null,""]
[null,null,null,null,null,null,null,null,null,null,null,null,null,null,null,null,null,null,null,null,null,null,null,null,null,null,null,null,null,null,null,null,null,null,null,null,null,null,null,""]
[null,null,null,null,null,null,null,null,null,null,null,null,null,null,null,null,null,null,null,null,null,null,null,null,null,null,null,null,null,null,null,null,null,null,null,null,null,null,null,""]
[null,null,null,null,null,null,null,null,null,null,null,null,null,null,null,null,null,null,null,null,null,null,null,null,null,null,null,null,null,null,null,null,null,null,null,null,null,null,null,""]
[null,null,null,null,null,null,null,null,null,null,null,null,null,null,null,null,null,null,null,null,null,null,null,null,null,null,null,null,null,null,null,null,null,null,null,null,null,null,null,""]
[null,null,null,null,null,null,null,null,null,null,null,null,null,null,null,null,null,null,null,null,null,null,null,null,null,null,null,null,null,null,null,null,null,null,null,null,null,null,null,""]
[null,null,null,null,null,null,null,null,null,null,null,null,null,null,null,null,null,null,null,null,null,null,null,null,null,null,null,null,null,null,null,null,null,null,null,null,null,null,null,""]
[null,null,null,null,null,null,null,null,null,null,null,null,null,null,null,null,null,null,null,null,null,null,null,null,null,null,null,null,null,null,null,null,null,null,null,null,null,null,null,""]
[null,null,null,null,null,null,null,null,null,null,null,null,null,null,null,null,null,null,null,null,null,null,null,null,null,null,null,null,null,null,null,null,null,null,null,null,null,null,null,""]
[null,null,null,null,null,null,null,null,null,null,null,null,null,null,null,null,null,null,null,null,null,null,null,null,null,null,null,null,null,null,null,null,null,null,null,null,null,null,null,""]
[]
["HISTÓRICO DE PRODUTIVIDADE"]
["ANO",null,null,null,"ATIVIDADE",null,null,null,null,null,null,null,null,null,null,null,"PRODUTO",null,null,null,null,null,null,null,null,"PRODUÇÃO",null,null,null,null,null,null,"PREÇO MÉDIO UNITÁRIO (R$)",null,null,null,null,null,null,"RECEITA TOTAL (R$)"]
[]
[null,null,null,null,null,null,null,null,null,null,null,null,null,null,null,null,{"$f":"IF(E112=\"\",\"\",VLOOKUP(E112,LISTAS!$I$1:$N$7,2,0))","v":""},null,null,null,null,null,null,null,null,null,null,null,null,null,null,null,null,null,null,null,null,null,null,{"$f":"IF(OR(Z112=\"\",AG112=\"\"),\"\",AG112*Z112)","v":""},null,null,null,null,null,{"$f":"1-PRODUÇÃO_ESTIMADA/Z112","v":{"$error":"#DIV/0!"}}]
[null,null,null,null,null,null,null,null,null,null,null,null,null,null,null,null,{"$f":"IF(E113=\"\",\"\",VLOOKUP(E113,LISTAS!$I$1:$N$7,2,0))","v":""},null,null,null,null,null,null,null,null,null,null,null,null,null,null,null,null,null,null,null,null,null,null,{"$f":"IF(OR(Z113=\"\",AG113=\"\"),\"\",AG113*Z113)","v":""},null,null,null,null,null,{"$f":"1-(Z112/Z113)","v":{"$error":"#DIV/0!"}}]
[null,null,null,null,null,null,null,null,null,null,null,null,null,null,null,null,{"$f":"IF(E114=\"\",\"\",VLOOKUP(E114,LISTAS!$I$1:$N$7,2,0))","v":""},null,null,null,null,null,null,null,null,null,null,null,null,null,null,null,null,null,null,null,null,null,null,{"$f":"IF(OR(Z114=\"\",AG114=\"\"),\"\",AG114*Z114)","v":""},null,null,null,null,null,{"$f":"1-(Z113/Z114)","v":{"$error":"#DIV/0!"}}]
["OBSERVAÇÕES:"]
[]
[]
["INFORMAÇÕES COMPLEMENTARES (OPCIONAL)",null,null,null,null,null,null,null,null,null,null,null,null,null,null,null,null,null,null,null,null,null,null,null,null,null,null,null,null,null,null,null,null,null,null,null,null,null,null,null,null,null,null,null,null,{"$f":"AT120+AT122+AT124+AT126","v":0}]
[]
["SOBRE O PRODUTOR:",null,null,null,null,null,null,null,null,null,null,null,null,null,null,null,null,null,null,null,null,null,null,null,null,null,null,null,null,null,null,null,null,null,null,null,null,null,null,null,null,null,null,null,null,{"$f":"IF(I120=\"\",0,1)","v":0}]
[]
["SOBRE OS ANIMAIS:",null,null,null,null,null,null,null,null,null,null,null,null,null,null,null,null,null,null,null,null,null,null,null,null,null,null,null,null,null,null,null,null,null,null,null,null,null,null,null,null,null,null,null,null,{"$f":"IF(I122=\"\",0,1)","v":0}]
[]
["SOBRE A ESTRUTURA:",null,null,null,null,null,null,null,null,null,null,null,null,null,null,null,null,null,null,null,null,null,null,null,null,null,null,null,null,null,null,null,null,null,null,null,null,null,null,null,null,null,null,null,null,0]
[]
["SOBRE O MAQUINÁRIO E EQUIPAMENTOS:",null,null,null,null,null,null,null,null,null,null,null,null,null,null,null,null,null,null,null,null,null,null,null,null,null,null,null,null,null,null,null,null,null,null,null,null,null,null,null,null,null,null,null,null,0]
[]
[]
[]
[]
["________________________________________",null,null,null,null,null,null,null,null,null,null,null,null,null,null,null,null,null,null,null,null,null,null,null,null,"________________________________________"]
[{"$f":"UPPER('INFORMAÇÕES GERAIS'!F19)","v":""},null,null,null,null,null,null,null,null,null,null,null,null,null,null,null,null,null,null,null,null,null,null,null,null,{"$f":"UPPER('INFORMAÇÕES GERAIS'!H15)","v":""}]
["Proponente",null,null,null,null,null,null,null,null,null,null,null,null,null,null,null,null,null,null,null,null,null,null,null,null,"Responsável Técnico"]

{"sheet":"LISTA_PATRIMÔNIO","index":3,"n_rows":21,"n_cols":11,"rows_kept":21,"cut":false,"hidden":true,"merged":[]}
["LOCALIZAÇÃO","TIPO USO","TIPO BEM","TIPO BEM",null,null,null,null,"TIPO_SEMOVENTES",null,"REF"]
["URBANO","RESIDENCIAL","CASA","VEÍCULO",null,null,null,null,"SUÍNOS",null,1]
["RURAL","COMERCIAL","APARTAMENTO","MÁQUINA",null,null,null,null,"BUBALINOS",null,2]
[" ","INDUSTRIAL","PRÉDIO","EQUIPAMENTO",null,null,null,null,"EQUINOS",null,3]
[null,"RURAL","TERRENO",null,null,null,null,null,"OVINOS",null,4]
[null,null,"PRÉDIO",null,null,null,null,null,"APICULTURA",null,5]
[null,null,"TERRENO",null,null,null,null,null,"ASININOS",null,6]
[null,null,"LOJA",null,null,null,null,null,"AVICULTURA",null,7]
[null,null,"SALA",null,null,null,null,null,"CANINOS",null,8]
[null,null,"GALPÃO",null,null,null,null,null,"CAPRINOS",null,9]
[null,null,"PRÉDIO",null,null,null,null,null,"PISCICULTURA",null,10]
[null,null,"TERRENO",null,null,null,null,null,"RANICULTURA",null,11]
[null,null,"FAZENDA",null,null,null,null,null,"SERICICULTURA",null,12]
[null,null,"SÍTIO",null,null,null,null,null,null,null,13]
[null,null,"RANCHO",null,null,null,null,null,null,null,14]
[null,null,"CHÁCARA",null,null,null,null,null,null,null,15]
[null,null,"ESTÂNCIA",null,null,null,null,null,null,null,16]
[null,null,"OUTRO",null,null,null,null,null,null,null,17]
[null,null,null,null,null,null,null,null,null,null,18]
[null,null,null,null,null,null,null,null,null,null,19]
[null,null,null,null,null,null,null,null,null,null,20]

{"sheet":"LISTAS","index":4,"n_rows":32,"n_cols":29,"rows_kept":32,"cut":false,"hidden":true,"merged":[]}
["CULTURAS","UNIDADES","DIA","MÊS","ANO","ASSISTENCIA TÉCNICA","GARANTIA","ATIVIDADE FINANCIADA","ATIVIDADE","PRODUTO","MEDIDA","VALOR","FINANCIADO","PRAZO MÁXIMO","1 MÊS",1,null,null,"NÍVEL TECNOLÓGICO","SISTEMA PRODUTIVO","ANGUS","BEZERRA","BEZERRA","0 a 6",{"$f":"YEAR(TODAY())-1","v":2020},null,"PRODUTOR",null,"PERIODICIDADE"]
[null,"UN",1,"JANEIRO",{"$f":"YEAR(TODAY())","v":2021},"SOMENTE ELABORAÇÃO DO PROJETO","PENHOR DOS ANIMAIS","BOVINOCULTURA DE LEITE","CRIA","CABEÇAS DE BEZERRO","CAB/MATRIZ","(POR CABEÇA)","MATRIZ BOVINA",12,"2 MESES",2,null,null,"EXTENSIVO","PASTAGEM","BONSMARA","BEZERRO","BEZERRA","7 a 12",{"$f":"Y1-1","v":2019},null,"PEQUENO PRODUTOR",null,"MENSAL"]
[null,"KG",2,"FEVEREIRO",{"$f":"E2+1","v":2022},"PROJETO + ASSISTÊNCIA","PENHOR DOS ANIMAIS + AVAIS","BOVINOCULTURA DE CORTE","RECRIA","CABEÇAS DE BOI MAGRO","KG PV/DIA/BEZ","(POR KG)","BEZERRO P/ RECRIA",12,"3 MESES",3,null,null,"SEMI-INTENSIVO","PASTAGEM IRRIGADA","CARACU","NOVILHA","BEZERRO","0 a 6",2018,null,"MÉDIO PRODUTOR",null,"SEMESTRAL"]
[null,"TON",3,"MARÇO",{"$f":"E3+1","v":2023},null,"PENHOR DOS ANIMAIS + GARANTIA REAL",null,"ENGORDA","CABEÇAS DE BOI GORDO","KG PV (GP)/DIA","(POR KG)","BOI MAGRO P/ ENGORDA",12,"4 MESES",4,null,null,"INTENSIVO","PASTAGEM + SUPLEMENTAÇÃO","BELGIAN BLUE","NOVILHO","BEZERRO","7 a 12",2017,null,"GRANDE PRODUTOR",null,"ANUAL"]
[null,"GR",4,"ABRIL",2024,null,"SOMENTE AVAIS",null,"RECRIA / ENGORDA","CABEÇAS DE BOI GORDO","KG PV (GP)/DIA","(POR KG)","BEZERRO P/ REC. E ENG.",24,"5 MESES",5,null,null,null,"PASTAGEM IRRIGADA + SUPLEMENT.","BRAFORD","VACA","BOI","25 a 30",2016]
[null,"m",5,"MAIO",2025,null,"SOMENTE GARANTIA REAL",null,"ENGORDA EM CONFINAMENTO","CABEÇAS DE BOI GORDO","KGPV (GP)/DIA","(POR KG)","BOI MAGRO P/ ENGORDA",6,"6 MESES",6,null,null,null,"ESTABULAMENTO","DEVON","BOI","BOI","30 a 36",2015]
[null,"SACO",6,"JUNHO",2026,null,"AVAIS + GARANTIA REAL",null,"PRODUÇÃO DE LEITE","LITROS DE LEITE","L/DIA/MATRIZ","(POR LITRO)","MATRIZ BOVINA",12,"7 MESES",7,null,null,null,null,"BRAHMAN",null,"BOI",{"$f":"TEXT(\"+ de 36\",1)","v":"+ de 36"},2014]
[null,"DOSE",7,"JULHO",2027,null,null,null,null,null,null,null,null,null,"8 MESES",8,null,null,null,null,"BRANGUS ",null,"NOVILHA","13 a 18",2013]
[null,"DIÁRIA",8,"AGOSTO",2028,null,null,null,null,null,null,null,null,null,"9 MESES",9,null,null,null,null,"CANCHIM",null,"NOVILHA","19 a 24"]
[null,"HORA",9,"SETEMBRO",2029,null,null,null,null,null,null,null,null,null,"10 MESES",10,null,null,null,null,"CHAROLÊS",null,"NOVILHA","25 a 30"]
[null,"L",10,"OUTUBRO",2030,null,null,null,null,null,null,null,null,null,"11 MESES",11,null,null,null,null,"CHIANINA",null,"NOVILHO","19 a 24"]
[null,"ml",11,"NOVEMBRO",2031,null,null,null,null,null,null,null,null,null,"12 MESES",12,null,null,null,null,"GIR",null,"NOVILHO","13 a 18"]
[null,null,12,"DEZEMBRO",2032,null,null,null,null,null,null,null,null,null,"13 MESES",13,null,null,null,null,"GUZERÁ",null,"NOVILHO","25 a 30"]
[null,null,13,null,null,null,null,null,"CRIA / RECRIA","BOI MAGRO (CABEÇA)","CAB/MATRIZ","(POR CABEÇA)","MATRIZ BOVINA",null,"14 MESES",14,null,null,null,null,"HEREFORD",null,"VACA","25 a 30"]
[null,null,14,null,null,null,null,null,"CRIA / RECRIA / ENGORDA","BOI GORDO (CABEÇA)","CAB/MATRIZ","(POR CABEÇA)","MATRIZ BOVINA",null,"15 MESES",15,null,null,null,null,"INDUBRASIL",null,"VACA","30 a 36"]
[null,null,15,null,null,null,null,null,null,null,null,null,null,null,"16 MESES",16,null,null,null,null,"LIMOUSIN",null,"VACA",{"$f":"TEXT(\"+ de 36\",1)","v":"+ de 36"}]
[null,null,16,null,null,null,null,null,null,null,null,null,null,null,"17 MESES",17,null,null,null,null,"MARCHIGIANA"]
[null,null,17,null,null,null,null,null,null,null,null,null,null,null,"18 MESES",18,null,null,null,null,"NELORE"]
[null,null,18,null,null,null,null,null,null,null,null,null,null,null,"19 MESES",19,null,null,null,null,"PIEMONTÊS"]
[null,null,19,null,null,null,null,null,null,null,null,null,null,null,"20 MESES",20,null,null,null,null,"RED ANGUS"]
[null,null,20,null,null,null,null,null,null,null,null,null,null,null,"21 MESES",21,null,null,null,null,"SANTA GERTRUDIS"]
[null,null,21,null,null,null,null,null,null,null,null,null,null,null,"22 MESES",22,null,null,null,null,"SENEPOL"]
[null,null,22,null,null,null,null,null,null,null,null,null,null,null,"23 MESES",23,null,null,null,null,"SIMENTAL"]
[null,null,23,null,null,null,null,null,null,null,null,null,null,null,"24 MESES",24,null,null,null,null,"TABAPUÃ"]
[null,null,24,null,null,null,null,null,null,null,null,null,null,null,null,null,null,null,null,null,"CRUZ. INDUSTRIAL"]
[null,null,25,null,null,null,null,null,null,null,null,null,null,null,null,null,null,null,null,null,"OUTROS"]
[null,null,26]
[null,null,27]
[null,null,28]
[null,null,29]
[null,null,30]
[null,null,31]

{"sheet":"IMÓVEIS","index":5,"n_rows":285,"n_cols":57,"rows_kept":285,"cut":false,"hidden":true,"merged":[[283,22,283,39],[283,40,283,57],[284,22,284,39],[284,40,284,57],[262,0,262,58],[277,0,277,40],[278,0,278,58],[279,0,279,40],[280,0,280,40],[282,22,282,39],[282,40,282,57],[261,30,261,33],[261,35,261,38],[261,40,261,43],[261,46,261,49],[261,51,261,54],[261,56,261,58],[261,0,261,3],[261,5,261,8],[261,10,261,12],[261,15,261,18],[261,20,261,23],[261,25,261,27],[260,30,260,33],[260,35,260,38],[260,40,260,43],[260,46,260,49],[260,51,260,54],[260,56,260,58],[260,0,260,3],[260,5,260,8],[260,10,260,12],[260,15,260,18],[260,20,260,23],[260,25,260,27],[258,30,258,33],[258,35,258,38],[258,40,258,43],[258,46,258,49],[258,51,258,54],[258,56,258,58],[258,0,258,3],[258,5,258,8],[258,10,258,12],[258,15,258,18],[258,20,258,23],[258,25,258,27],[257,30,257,33],[257,35,257,38],[257,40,257,43],[257,46,257,49],[257,51,257,54],[257,56,257,58],[257,0,257,3],[257,5,257,8],[257,10,257,12],[257,15,257,18],[257,20,257,23],[257,25,257,27],[256,30,256,33],[256,35,256,38],[256,40,256,43],[256,46,256,49],[256,51,256,54],[256,56,256,58],[256,0,256,3],[256,5,256,8],[256,10,256,12],[256,15,256,18],[256,20,256,23],[256,25,256,27],[255,30,255,33],[255,35,255,38],[255,40,255,43],[255,46,255,49],[255,51,255,54],[255,56,255,58],[255,0,255,3],[255,5,255,8],[255,10,255,12],[255,15,255,18],[255,20,255,23],[255,25,255,27],[254,30,254,33],[254,35,254,38],[254,40,254,43],[254,46,254,49],[254,51,254,54],[254,56,254,58],[253,40,253,43],[253,46,253,49],[253,51,253,54],[253,56,253,58],[254,0,254,3],[254,5,254,8],[254,10,254,12],[254,15,254,18],[254,20,254,23],[254,25,254,27],[229,56,229,58],[230,0,230,58],[253,0,253,3],[253,5,253,8],[253,10,253,12],[253,15,253,18],[253,20,253,23],[253,25,253,27],[253,30,253,33],[253,35,253,38],[229,25,229,27],[229,30,229,33],[229,35,229,38],[229,40,229,43],[229,46,229,49],[229,51,229,54],[228,35,228,38],[228,40,228,43],[228,46,228,49],[228,51,228,54],[228,56,228,58],[229,0,229,3],[229,5,229,8],[229,10,229,12],[229,15,229,18],[229,20,229,23],[227,46,227,49],[227,51,227,54],[227,56,227,58],[228,0,228,3],[228,5,228,8],[228,10,228,12],[228,15,228,18],[228,20,228,23],[228,25,228,27],[228,30,228,33],[226,56,226,58],[227,0,227,3],[227,5,227,8],[227,10,227,12],[227,15,227,18],[227,20,227,23],[227,25,227,27],[227,30,227,33],[227,35,227,38],[227,40,227,43],[226,25,226,27],[226,30,226,33],[226,35,226,38],[226,40,226,43],[226,46,226,49],[226,51,226,54],[225,35,225,38],[225,40,225,43],[225,46,225,49],[225,51,225,54],[225,56,225,58],[226,0,226,3],[226,5,226,8],[226,10,226,12],[226,15,226,18],[226,20,226,23],[224,46,224,49],[224,51,224,54],[224,56,224,58],[225,0,225,3],[225,5,225,8],[225,10,225,12],[225,15,225,18],[225,20,225,23],[225,25,225,27],[225,30,225,33],[223,56,223,58],[224,0,224,3],[224,5,224,8],[224,10,224,12],[224,15,224,18],[224,20,224,23],[224,25,224,27],[224,30,224,33],[224,35,224,38],[224,40,224,43],[223,25,223,27],[223,30,223,33],[223,35,223,38],[223,40,223,43],[223,46,223,49],[223,51,223,54],[222,35,222,38],[222,40,222,43],[222,46,222,49],[222,51,222,54],[222,56,222,58],[223,0,223,3],[223,5,223,8],[223,10,223,12],[223,15,223,18],[223,20,223,23],[221,46,221,49],[221,51,221,54],[221,56,221,58],[222,0,222,3],[222,5,222,8],[222,10,222,12],[222,15,222,18],[222,20,222,23],[222,25,222,27],[222,30,222,33],[220,56,220,58],[221,0,221,3],[221,5,221,8],[221,10,221,12],[221,15,221,18],[221,20,221,23],[221,25,221,27],[221,30,221,33],[221,35,221,38],[221,40,221,43],[220,25,220,27],[220,30,220,33],[220,35,220,38],[220,40,220,43],[220,46,220,49],[220,51,220,54],[219,35,219,38],[219,40,219,43],[219,46,219,49],[219,51,219,54],[219,56,219,58],[220,0,220,3],[220,5,220,8],[220,10,220,12],[220,15,220,18],[220,20,220,23],[218,46,218,49],[218,51,218,54],[218,56,218,58],[219,0,219,3],[219,5,219,8],[219,10,219,12],[219,15,219,18],[219,20,219,23],[219,25,219,27],[219,30,219,33],[217,56,217,58],[218,0,218,3],[218,5,218,8],[218,10,218,12],[218,15,218,18],[218,20,218,23],[218,25,218,27],[218,30,218,33],[218,35,218,38],[218,40,218,43],[217,25,217,27],[217,30,217,33],[217,35,217,38],[217,40,217,43],[217,46,217,49],[217,51,217,54],[216,35,216,38],[216,40,216,43],[216,46,216,49],[216,51,216,54],[216,56,216,58],[217,0,217,3],[217,5,217,8],[217,10,217,12],[217,15,217,18],[217,20,217,23],[215,46,215,49],[215,51,215,54],[215,56,215,58],[216,0,216,3],[216,5,216,8],[216,10,216,12],[216,15,216,18],[216,20,216,23],[216,25,216,27],[216,30,216,33],[214,56,214,58],[215,0,215,3],[215,5,215,8],[215,10,215,12],[215,15,215,18],[215,20,215,23],[215,25,215,27],[215,30,215,33],[215,35,215,38],[215,40,215,43],[214,25,214,27],[214,30,214,33],[214,35,214,38],[214,40,214,43],[214,46,214,49],[214,51,214,54],[213,35,213,38],[213,40,213,43],[213,46,213,49],[213,51,213,54],[213,56,213,58],[214,0,214,3],[214,5,214,8],[214,10,214,12],[214,15,214,18],[214,20,214,23],[212,46,212,49],[212,51,212,54],[212,56,212,58],[213,0,213,3],[213,5,213,8],[213,10,213,12],[213,15,213,18],[213,20,213,23],[213,25,213,27],[213,30,213,33],[211,56,211,58],[212,0,212,3],[212,5,212,8],[212,10,212,12],[212,15,212,18],[212,20,212,23],[212,25,212,27],[212,30,212,33],[212,35,212,38],[212,40,212,43],[211,25,211,27],[211,30,211,33],[211,35,211,38],[211,40,211,43],[211,46,211,49],[211,51,211,54],[210,35,210,38],[210,40,210,43],[210,46,210,49],[210,51,210,54],[210,56,210,58],[211,0,211,3],[211,5,211,8],[211,10,211,12],[211,15,211,18],[211,20,211,23],[209,46,209,49],[209,51,209,54],[209,56,209,58],[210,0,210,3],[210,5,210,8],[210,10,210,12],[210,15,210,18],[210,20,210,23],[210,25,210,27],[210,30,210,33],[208,56,208,58],[209,0,209,3],[209,5,209,8],[209,10,209,12],[209,15,209,18],[209,20,209,23],[209,25,209,27],[209,30,209,33],[209,35,209,38],[209,40,209,43],[208,25,208,27],[208,30,208,33],[208,35,208,38],[208,40,208,43],[208,46,208,49],[208,51,208,54],[207,35,207,38],[207,40,207,43],[207,46,207,49],[207,51,207,54],[207,56,207,58],[208,0,208,3],[208,5,208,8],[208,10,208,12],[208,15,208,18],[208,20,208,23],[206,46,206,49],[206,51,206,54],[206,56,206,58],[207,0,207,3],[207,5,207,8],[207,10,207,12],[207,15,207,18],[207,20,207,23],[207,25,207,27],[207,30,207,33],[205,56,205,58],[206,0,206,3],[206,5,206,8],[206,10,206,12],[206,15,206,18],[206,20,206,23],[206,25,206,27],[206,30,206,33],[206,35,206,38],[206,40,206,43],[205,25,205,27],[205,30,205,33],[205,35,205,38],[205,40,205,43],[205,46,205,49],[205,51,205,54],[204,35,204,38],[204,40,204,43],[204,46,204,49],[204,51,204,54],[204,56,204,58],[205,0,205,3],[205,5,205,8],[205,10,205,12],[205,15,205,18],[205,20,205,23],[203,46,203,49],[203,51,203,54],[203,56,203,58],[204,0,204,3],[204,5,204,8],[204,10,204,12],[204,15,204,18],[204,20,204,23],[204,25,204,27],[204,30,204,33],[202,56,202,58],[203,0,203,3],[203,5,203,8],[203,10,203,12],[203,15,203,18],[203,20,203,23],[203,25,203,27],[203,30,203,33],[203,35,203,38],[203,40,203,43],[202,25,202,27],[202,30,202,33],[202,35,202,38],[202,40,202,43],[202,46,202,49],[202,51,202,54],[200,35,201,38],[200,40,201,43],[200,46,201,49],[200,51,201,54],[200,56,201,58],[202,0,202,3],[202,5,202,8],[202,10,202,12],[202,15,202,18],[202,20,202,23],[196,7,196,58],[198,0,198,15],[198,16,198,19],[200,0,201,3],[200,5,201,8],[200,10,201,12],[200,15,201,18],[200,20,201,23],[200,25,201,27],[200,30,201,33],[190,22,190,39],[190,40,190,57],[191,22,191,39],[191,40,191,57],[192,0,192,58],[194,0,194,5],[194,6,194,27],[194,28,194,33],[194,34,194,40],[169,0,169,58],[184,0,184,40],[185,0,185,58],[186,0,186,40],[187,0,187,40],[189,22,189,39],[189,40,189,57],[168,30,168,33],[168,35,168,38],[168,40,168,43],[168,46,168,49],[168,51,168,54],[168,56,168,58],[168,0,168,3],[168,5,168,8],[168,10,168,12],[168,15,168,18],[168,20,168,23],[168,25,168,27],[167,30,167,33],[167,35,167,38],[167,40,167,43],[167,46,167,49],[167,51,167,54],[167,56,167,58],[167,0,167,3],[167,5,167,8],[167,10,167,12],[167,15,167,18],[167,20,167,23],[167,25,167,27],[165,30,165,33],[165,35,165,38],[165,40,165,43],[165,46,165,49],[165,51,165,54],[165,56,165,58],[165,0,165,3],[165,5,165,8],[165,10,165,12],[165,15,165,18],[165,20,165,23],[165,25,165,27],[164,30,164,33],[164,35,164,38],[164,40,164,43],[164,46,164,49],[164,51,164,54],[164,56,164,58],[164,0,164,3],[164,5,164,8],[164,10,164,12],[164,15,164,18],[164,20,164,23],[164,25,164,27],[163,30,163,33],[163,35,163,38],[163,40,163,43],[163,46,163,49],[163,51,163,54],[163,56,163,58],[163,0,163,3],[163,5,163,8],[163,10,163,12],[163,15,163,18],[163,20,163,23],[163,25,163,27],[162,30,162,33],[162,35,162,38],[162,40,162,43],[162,46,162,49],[162,51,162,54],[162,56,162,58],[162,0,162,3],[162,5,162,8],[162,10,162,12],[162,15,162,18],[162,20,162,23],[162,25,162,27],[161,30,161,33],[161,35,161,38],[161,40,161,43],[161,46,161,49],[161,51,161,54],[161,56,161,58],[160,40,160,43],[160,46,160,49],[160,51,160,54],[160,56,160,58],[161,0,161,3],[161,5,161,8],[161,10,161,12],[161,15,161,18],[161,20,161,23],[161,25,161,27],[136,56,136,58],[137,0,137,58],[160,0,160,3],[160,5,160,8],[160,10,160,12],[160,15,160,18],[160,20,160,23],[160,25,160,27],[160,30,160,33],[160,35,160,38],[136,25,136,27],[136,30,136,33],[136,35,136,38],[136,40,136,43],[136,46,136,49],[136,51,136,54],[135,35,135,38],[135,40,135,43],[135,46,135,49],[135,51,135,54],[135,56,135,58],[136,0,136,3],[136,5,136,8],[136,10,136,12],[136,15,136,18],[136,20,136,23],[134,46,134,49],[134,51,134,54],[134,56,134,58],[135,0,135,3],[135,5,135,8],[135,10,135,12],[135,15,135,18],[135,20,135,23],[135,25,135,27],[135,30,135,33],[133,56,133,58],[134,0,134,3],[134,5,134,8],[134,10,134,12],[134,15,134,18],[134,20,134,23],[134,25,134,27],[134,30,134,33],[134,35,134,38],[134,40,134,43],[133,25,133,27],[133,30,133,33],[133,35,133,38],[133,40,133,43],[133,46,133,49],[133,51,133,54],[132,35,132,38],[132,40,132,43],[132,46,132,49],[132,51,132,54],[132,56,132,58],[133,0,133,3],[133,5,133,8],[133,10,133,12],[133,15,133,18],[133,20,133,23],[131,46,131,49],[131,51,131,54],[131,56,131,58],[132,0,132,3],[132,5,132,8],[132,10,132,12],[132,15,132,18],[132,20,132,23],[132,25,132,27],[132,30,132,33],[130,56,130,58],[131,0,131,3],[131,5,131,8],[131,10,131,12],[131,15,131,18],[131,20,131,23],[131,25,131,27],[131,30,131,33],[131,35,131,38],[131,40,131,43],[130,25,130,27],[130,30,130,33],[130,35,130,38],[130,40,130,43],[130,46,130,49],[130,51,130,54],[129,35,129,38],[129,40,129,43],[129,46,129,49],[129,51,129,54],[129,56,129,58],[130,0,130,3],[130,5,130,8],[130,10,130,12],[130,15,130,18],[130,20,130,23],[128,46,128,49],[128,51,128,54],[128,56,128,58],[129,0,129,3],[129,5,129,8],[129,10,129,12],[129,15,129,18],[129,20,129,23],[129,25,129,27],[129,30,129,33],[127,56,127,58],[128,0,128,3],[128,5,128,8],[128,10,128,12],[128,15,128,18],[128,20,128,23],[128,25,128,27],[128,30,128,33],[128,35,128,38],[128,40,128,43],[127,25,127,27],[127,30,127,33],[127,35,127,38],[127,40,127,43],[127,46,127,49],[127,51,127,54],[126,35,126,38],[126,40,126,43],[126,46,126,49],[126,51,126,54],[126,56,126,58],[127,0,127,3],[127,5,127,8],[127,10,127,12],[127,15,127,18],[127,20,127,23],[125,46,125,49],[125,51,125,54],[125,56,125,58],[126,0,126,3],[126,5,126,8],[126,10,126,12],[126,15,126,18],[126,20,126,23],[126,25,126,27],[126,30,126,33],[124,56,124,58],[125,0,125,3],[125,5,125,8],[125,10,125,12],[125,15,125,18],[125,20,125,23],[125,25,125,27],[125,30,125,33],[125,35,125,38],[125,40,125,43],[124,25,124,27],[124,30,124,33],[124,35,124,38],[124,40,124,43],[124,46,124,49],[124,51,124,54],[123,35,123,38],[123,40,123,43],[123,46,123,49],[123,51,123,54],[123,56,123,58],[124,0,124,3],[124,5,124,8],[124,10,124,12],[124,15,124,18],[124,20,124,23],[122,46,122,49],[122,51,122,54],[122,56,122,58],[123,0,123,3],[123,5,123,8],[123,10,123,12],[123,15,123,18],[123,20,123,23],[123,25,123,27],[123,30,123,33],[121,56,121,58],[122,0,122,3],[122,5,122,8],[122,10,122,12],[122,15,122,18],[122,20,122,23],[122,25,122,27],[122,30,122,33],[122,35,122,38],[122,40,122,43],[121,25,121,27],[121,30,121,33],[121,35,121,38],[121,40,121,43],[121,46,121,49],[121,51,121,54],[120,35,120,38],[120,40,120,43],[120,46,120,49],[120,51,120,54],[120,56,120,58],[121,0,121,3],[121,5,121,8],[121,10,121,12],[121,15,121,18],[121,20,121,23],[119,46,119,49],[119,51,119,54],[119,56,119,58],[120,0,120,3],[120,5,120,8],[120,10,120,12],[120,15,120,18],[120,20,120,23],[120,25,120,27],[120,30,120,33],[118,56,118,58],[119,0,119,3],[119,5,119,8],[119,10,119,12],[119,15,119,18],[119,20,119,23],[119,25,119,27],[119,30,119,33],[119,35,119,38],[119,40,119,43],[118,25,118,27],[118,30,118,33],[118,35,118,38],[118,40,118,43],[118,46,118,49],[118,51,118,54],[117,35,117,38],[117,40,117,43],[117,46,117,49],[117,51,117,54],[117,56,117,58],[118,0,118,3],[118,5,118,8],[118,10,118,12],[118,15,118,18],[118,20,118,23],[116,46,116,49],[116,51,116,54],[116,56,116,58],[117,0,117,3],[117,5,117,8],[117,10,117,12],[117,15,117,18],[117,20,117,23],[117,25,117,27],[117,30,117,33],[115,56,115,58],[116,0,116,3],[116,5,116,8],[116,10,116,12],[116,15,116,18],[116,20,116,23],[116,25,116,27],[116,30,116,33],[116,35,116,38],[116,40,116,43],[115,25,115,27],[115,30,115,33],[115,35,115,38],[115,40,115,43],[115,46,115,49],[115,51,115,54],[114,35,114,38],[114,40,114,43],[114,46,114,49],[114,51,114,54],[114,56,114,58],[115,0,115,3],[115,5,115,8],[115,10,115,12],[115,15,115,18],[115,20,115,23],[113,46,113,49],[113,51,113,54],[113,56,113,58],[114,0,114,3],[114,5,114,8],[114,10,114,12],[114,15,114,18],[114,20,114,23],[114,25,114,27],[114,30,114,33],[112,56,112,58],[113,0,113,3],[113,5,113,8],[113,10,113,12],[113,15,113,18],[113,20,113,23],[113,25,113,27],[113,30,113,33],[113,35,113,38],[113,40,113,43],[112,25,112,27],[112,30,112,33],[112,35,112,38],[112,40,112,43],[112,46,112,49],[112,51,112,54],[111,35,111,38],[111,40,111,43],[111,46,111,49],[111,51,111,54],[111,56,111,58],[112,0,112,3],[112,5,112,8],[112,10,112,12],[112,15,112,18],[112,20,112,23],[110,46,110,49],[110,51,110,54],[110,56,110,58],[111,0,111,3],[111,5,111,8],[111,10,111,12],[111,15,111,18],[111,20,111,23],[111,25,111,27],[111,30,111,33],[109,56,109,58],[110,0,110,3],[110,5,110,8],[110,10,110,12],[110,15,110,18],[110,20,110,23],[110,25,110,27],[110,30,110,33],[110,35,110,38],[110,40,110,43],[109,25,109,27],[109,30,109,33],[109,35,109,38],[109,40,109,43],[109,46,109,49],[109,51,109,54],[107,35,108,38],[107,40,108,43],[107,46,108,49],[107,51,108,54],[107,56,108,58],[109,0,109,3],[109,5,109,8],[109,10,109,12],[109,15,109,18],[109,20,109,23],[103,7,103,58],[105,0,105,15],[105,16,105,19],[107,0,108,3],[107,5,108,8],[107,10,108,12],[107,15,108,18],[107,20,108,23],[107,25,108,27],[107,30,108,33],[97,22,97,39],[97,40,97,57],[98,22,98,39],[98,40,98,57],[99,0,99,58],[101,0,101,5],[101,6,101,27],[101,28,101,33],[101,34,101,40],[91,0,91,40],[92,0,92,58],[93,0,93,40],[94,0,94,40],[96,22,96,39],[96,40,96,57],[75,35,75,38],[75,40,75,43],[75,46,75,49],[75,51,75,54],[75,56,75,58],[76,0,76,58],[74,46,74,49],[74,51,74,54],[74,56,74,58],[75,0,75,3],[75,5,75,8],[75,10,75,12],[75,15,75,18],[75,20,75,23],[75,25,75,27],[75,30,75,33],[73,56,73,58],[74,0,74,3],[74,5,74,8],[74,10,74,12],[74,15,74,18],[74,20,74,23],[74,25,74,27],[74,30,74,33],[74,35,74,38],[74,40,74,43],[73,25,73,27],[73,30,73,33],[73,35,73,38],[73,40,73,43],[73,46,73,49],[73,51,73,54],[72,35,72,38],[72,40,72,43],[72,46,72,49],[72,51,72,54],[72,56,72,58],[73,0,73,3],[73,5,73,8],[73,10,73,12],[73,15,73,18],[73,20,73,23],[70,46,70,49],[70,51,70,54],[70,56,70,58],[72,0,72,3],[72,5,72,8],[72,10,72,12],[72,15,72,18],[72,20,72,23],[72,25,72,27],[72,30,72,33],[69,56,69,58],[70,0,70,3],[70,5,70,8],[70,10,70,12],[70,15,70,18],[70,20,70,23],[70,25,70,27],[70,30,70,33],[70,35,70,38],[70,40,70,43]],"merged_total":1392,"flags":["merged_cut"]}
[]
[]
[]
[]
[]
[]
["IMÓVEL 1"]
[]
["PROPRIEDADE:",null,null,null,null,null,{"$f":"IF('INFORMAÇÕES GERAIS'!H31=\"\",\"\",'INFORMAÇÕES GERAIS'!H31)","v":""},null,null,null,null,null,null,null,null,null,null,null,null,null,null,null,null,null,null,null,null,null,"MATRÍCULA:",null,null,null,null,null,{"$f":"IF('INFORMAÇÕES GERAIS'!AJ31=\"\",\"\",'INFORMAÇÕES GERAIS'!AJ31)","v":""}]
[]
["ROTEIRO DE ACESSO:"]
[]
["COORDENADAS ENVIADAS PELO APLICATIVO:",null,null,null,null,null,null,null,null,null,null,null,null,null,null,null,"SIM"]
[]
["LATITUDE",null,null,null,null,"LONGITUDE",null,null,null,null,"ALT. (m)",null,null,null,null,"LATITUDE",null,null,null,null,"LONGITUDE",null,null,null,null,"ALT. (m)",null,null,null,null,"LATITUDE",null,null,null,null,"LONGITUDE",null,null,null,null,"ALT. (m)",null,null,null,null,null,"LATITUDE",null,null,null,null,"LONGITUDE",null,null,null,null,"ALT. (m)"]
[]
[]
[]
[]
[]
[]
[]
[]
[]
[]
[]
[]
[]
[]
[]
[]
[]
[]
[]
[]
[]
[]
[]
[]
[]
[]
[]
[]
[]
["IMAGEM DA PROPRIEDADE"]
[]
[]
[]
[]
[]
[]
[]
[]
[]
[]
[]
[]
[]
[]
[]
[]
[]
[]
[]
[]
[]
[]
[]
[]
[]
[]
[]
[]
[]
[]
[]
["CONSULTA GEOESPACIAL"]
[]
[]
[]
[]
[]
[]
[]
[]
[]
[]
[]
[]
[]
[]
["Declaro para os devidos fins que:"]
[{"$f":" \"- Realizei as consultas geoespaciais através da ferramenta IDE-SISEMA e não foram encontradas irregularidades que impeçam a utilização da área mencionada acima.\"","v":"- Realizei as consultas geoespaciais através da ferramenta IDE-SISEMA e não foram encontradas irregularidades que impeçam a utilização da área mencionada acima."}]
[{"$f":"\"- Conferi as documentações que atestam a Regularidade Ambiental e estão em conformidade com as exigências.\"","v":"- Conferi as documentações que atestam a Regularidade Ambiental e estão em conformidade com as exigências."}]
[{"$f":"\"- Conferi as documentações que atestam o uso legal dos Recursos Hídricos e estão em conformidade com as exigências.\"","v":"- Conferi as documentações que atestam o uso legal dos Recursos Hídricos e estão em conformidade com as exigências."}]
[]
[null,null,null,null,null,null,null,null,null,null,null,null,null,null,null,null,null,null,null,null,null,null,"________________________________________",null,null,null,null,null,null,null,null,null,null,null,null,null,null,null,null,null,"________________________________________"]
[null,null,null,null,null,null,null,null,null,null,null,null,null,null,null,null,null,null,null,null,null,null,{"$f":"UPPER(NOME_PROPONENTE)","v":""},null,null,null,null,null,null,null,null,null,null,null,null,null,null,null,null,null,{"$f":"UPPER(RESP_TECNICO)","v":""}]
[null,null,null,null,null,null,null,null,null,null,null,null,null,null,null,null,null,null,null,null,null,null,"Proponente",null,null,null,null,null,null,null,null,null,null,null,null,null,null,null,null,null,"Responsável Técnico"]
["IMÓVEL 2"]
[]
["PROPRIEDADE:",null,null,null,null,null,{"$f":"IF('INFORMAÇÕES GERAIS'!H39=\"\",\"\",'INFORMAÇÕES GERAIS'!H39)","v":""},null,null,null,null,null,null,null,null,null,null,null,null,null,null,null,null,null,null,null,null,null,"MATRÍCULA:",null,null,null,null,null,{"$f":"IF('INFORMAÇÕES GERAIS'!AJ39=\"\",\"\",'INFORMAÇÕES GERAIS'!AJ39)","v":""}]
[]
["ROTEIRO DE ACESSO:"]
[]
["COORDENADAS ENVIADAS PELO APLICATIVO:",null,null,null,null,null,null,null,null,null,null,null,null,null,null,null,"SIM"]
[]
["LATITUDE",null,null,null,null,"LONGITUDE",null,null,null,null,"ALT. (m)",null,null,null,null,"LATITUDE",null,null,null,null,"LONGITUDE",null,null,null,null,"ALT. (m)",null,null,null,null,"LATITUDE",null,null,null,null,"LONGITUDE",null,null,null,null,"ALT. (m)",null,null,null,null,null,"LATITUDE",null,null,null,null,"LONGITUDE",null,null,null,null,"ALT. (m)"]
[]
[]
[]
[]
[]
[]
[]
[]
[]
[]
[]
[]
[]
[]
[]
[]
[]
[]
[]
[]
[]
[]
[]
[]
[]
[]
[]
[]
[]
["IMAGEM DA PROPRIEDADE"]
[]
[]
[]
[]
[]
[]
[]
[]
[]
[]
[]
[]
[]
[]
[]
[]
[]
[]
[]
[]
[]
[]
[]
[]
[]
[]
[]
[]
[]
[]
[]
["CONSULTA GEOESPACIAL"]
[]
[]
[]
[]
[]
[]
[]
[]
[]
[]
[]
[]
[]
[]
["Declaro para os devidos fins que:"]
[{"$f":" \"- Realizei as consultas geoespaciais através da ferramenta IDE-SISEMA e não foram encontradas irregularidades que impeçam a utilização da área mencionada acima.\"","v":"- Realizei as consultas geoespaciais através da ferramenta IDE-SISEMA e não foram encontradas irregularidades que impeçam a utilização da área mencionada acima."}]
[{"$f":"\"- Conferi as documentações que atestam a Regularidade Ambiental e estão em conformidade com as exigências.\"","v":"- Conferi as documentações que atestam a Regularidade Ambiental e estão em conformidade com as exigências."}]
[{"$f":"\"- Conferi as documentações que atestam o uso legal dos Recursos Hídricos e estão em conformidade com as exigências.\"","v":"- Conferi as documentações que atestam o uso legal dos Recursos Hídricos e estão em conformidade com as exigências."}]
[]
[null,null,null,null,null,null,null,null,null,null,null,null,null,null,null,null,null,null,null,null,null,null,"________________________________________",null,null,null,null,null,null,null,null,null,null,null,null,null,null,null,null,null,"________________________________________"]
[null,null,null,null,null,null,null,null,null,null,null,null,null,null,null,null,null,null,null,null,null,null,{"$f":"UPPER(NOME_PROPONENTE)","v":""},null,null,null,null,null,null,null,null,null,null,null,null,null,null,null,null,null,{"$f":"UPPER(RESP_TECNICO)","v":""}]
[null,null,null,null,null,null,null,null,null,null,null,null,null,null,null,null,null,null,null,null,null,null,"Proponente",null,null,null,null,null,null,null,null,null,null,null,null,null,null,null,null,null,"Responsável Técnico"]
["IMÓVEL 3"]
[]
["PROPRIEDADE:",null,null,null,null,null,{"$f":"IF('INFORMAÇÕES GERAIS'!H47=\"\",\"\",'INFORMAÇÕES GERAIS'!H47)","v":""},null,null,null,null,null,null,null,null,null,null,null,null,null,null,null,null,null,null,null,null,null,"MATRÍCULA:",null,null,null,null,null,{"$f":"IF('INFORMAÇÕES GERAIS'!AJ47=\"\",\"\",'INFORMAÇÕES GERAIS'!AJ47)","v":""}]
[]
["ROTEIRO DE ACESSO:"]
[]
["COORDENADAS ENVIADAS PELO APLICATIVO:",null,null,null,null,null,null,null,null,null,null,null,null,null,null,null,"SIM"]
[]
["LATITUDE",null,null,null,null,"LONGITUDE",null,null,null,null,"ALT. (m)",null,null,null,null,"LATITUDE",null,null,null,null,"LONGITUDE",null,null,null,null,"ALT. (m)",null,null,null,null,"LATITUDE",null,null,null,null,"LONGITUDE",null,null,null,null,"ALT. (m)",null,null,null,null,null,"LATITUDE",null,null,null,null,"LONGITUDE",null,null,null,null,"ALT. (m)"]
[]
[]
[]
[]
[]
[]
[]
[]
[]
[]
[]
[]
[]
[]
[]
[]
[]
[]
[]
[]
[]
[]
[]
[]
[]
[]
[]
[]
[]
["IMAGEM DA PROPRIEDADE"]
[]
[]
[]
[]
[]
[]
[]
[]
[]
[]
[]
[]
[]
[]
[]
[]
[]
[]
[]
[]
[]
[]
[]
[]
[]
[]
[]
[]
[]
[]
[]
["CONSULTA GEOESPACIAL"]
[]
[]
[]
[]
[]
[]
[]
[]
[]
[]
[]
[]
[]
[]
["Declaro para os devidos fins que:"]
[{"$f":" \"- Realizei as consultas geoespaciais através da ferramenta IDE-SISEMA e não foram encontradas irregularidades que impeçam a utilização da área mencionada acima.\"","v":"- Realizei as consultas geoespaciais através da ferramenta IDE-SISEMA e não foram encontradas irregularidades que impeçam a utilização da área mencionada acima."}]
[{"$f":"\"- Conferi as documentações que atestam a Regularidade Ambiental e estão em conformidade com as exigências legais.\"","v":"- Conferi as documentações que atestam a Regularidade Ambiental e estão em conformidade com as exigências legais."}]
[{"$f":"\"- Conferi as documentações que atestam o uso legal dos Recursos Hídricos e estão em conformidade com as exigências legais.\"","v":"- Conferi as documentações que atestam o uso legal dos Recursos Hídricos e estão em conformidade com as exigências legais."}]
[]
[null,null,null,null,null,null,null,null,null,null,null,null,null,null,null,null,null,null,null,null,null,null,"________________________________________",null,null,null,null,null,null,null,null,null,null,null,null,null,null,null,null,null,"________________________________________"]
[null,null,null,null,null,null,null,null,null,null,null,null,null,null,null,null,null,null,null,null,null,null,{"$f":"UPPER(NOME_PROPONENTE)","v":""},null,null,null,null,null,null,null,null,null,null,null,null,null,null,null,null,null,{"$f":"UPPER(RESP_TECNICO)","v":""}]
[null,null,null,null,null,null,null,null,null,null,null,null,null,null,null,null,null,null,null,null,null,null,"Proponente",null,null,null,null,null,null,null,null,null,null,null,null,null,null,null,null,null,"Responsável Técnico"]

{"sheet":"MANUAL IDE-SISEMA","index":6,"n_rows":159,"n_cols":1,"rows_kept":159,"cut":false,"hidden":true,"merged":[[158,0,158,17],[0,0,3,17],[5,0,5,17],[6,0,6,17],[8,0,8,17],[42,0,42,17],[76,0,76,17],[110,0,110,17],[123,0,123,17],[125,0,125,17],[156,0,156,17],[157,0,157,17]]}
[]
[]
[]
[]
[]
["Acessar a plataforma IDE-SISEMA pelo link abaixo:"]
["http://idesisema.meioambiente.mg.gov.br/"]
[]
["Abrir o site importar o KML do empreendimento, conforme indicação setas amarelas na imagem abaixo:"]
[]
[]
[]
[]
[]
[]
[]
[]
[]
[]
[]
[]
[]
[]
[]
[]
[]
[]
[]
[]
[]
[]
[]
[]
[]
[]
[]
[]
[]
[]
[]
[]
[]
["Abaixo, a imagem demonstra o processo de anexar o arquivo KML."]
[]
[]
[]
[]
[]
[]
[]
[]
[]
[]
[]
[]
[]
[]
[]
[]
[]
[]
[]
[]
[]
[]
[]
[]
[]
[]
[]
[]
[]
[]
[]
[]
[]
["Ao final da inclusão, a área do empreendimento deve ficar demarcada como a imagem a abaixo:"]
[]
[]
[]
[]
[]
[]
[]
[]
[]
[]
[]
[]
[]
[]
[]
[]
[]
[]
[]
[]
[]
[]
[]
[]
[]
[]
[]
[]
[]
[]
[]
[]
[]
["Em seguida, clicar em CAMADAS, e selecionar a lista de camadas abaixo:"]
[]
["Restrição Ambiental / Terras Indígenas (FUNAI) / Terras Indígenas"]
["Restrição Ambiental / Quilombolas (Fundação Palmares INCRA) / Quilombolas"]
["Restrição Ambiental / Áreas Protegidas (IEF/ICMbio) / Propriedades Cadastradas em Áreas de Conservação"]
["Restrição Ambiental / Áreas Protegidas (IEF/ICMbio) / Unidade de Conservação Federal"]
["Restrição Ambiental / Áreas Protegidas (IEF/ICMbio) / Unidade de Conservação Estadual"]
["Restrição Ambiental / Áreas Protegidas (IEF/ICMbio) / Unidade de Conservação Municipal"]
["Restrição Ambiental / Áreas Protegidas (IEF/ICMbio) / Reserva Particular do Patrimônio Natural"]
["Restrição Ambiental / Áreas Protegidas (IEF/ICMbio) / Áreas prioritárias para criação de Unidades de Conservação"]
["Restrição Ambiental / Corredores ecológicos legalmente instituídos / Corredores Ecológicos"]
[]
[]
["Nesse momento, há que se observar se a área não se sobrepões em nenhuma das camadas, o que inviabilizaria a utilização da área."]
[]
["A imagem abaixo ilustra o procedimento:"]
[]
[]
[]
[]
[]
[]
[]
[]
[]
[]
[]
[]
[]
[]
[]
[]
[]
[]
[]
[]
[]
[]
[]
[]
[]
[]
[]
[]
[]
[]
["Em seguida, colocar o mouse sobre a área do empreendimento, de forma que as coordenadas fiquem visíveis no canto inferior da tela."]
[]
["Capturar a parte da tela, indicada pelo quadro abaixo utilizando alguma ferramenta (Print Screen, Ferramenta de Captura, etc...) depois inserir o arquivo da imagem capturada no projeto."]

{"sheet":"ORÇAMENTO","index":7,"n_rows":45,"n_cols":8,"rows_kept":45,"cut":false,"hidden":true,"merged":[[44,3,44,6],[43,3,43,6],[42,3,42,6],[31,0,31,5],[24,0,24,6],[30,0,30,6],[44,0,44,1],[42,0,42,1],[43,0,43,1],[26,0,26,5],[25,0,25,5],[19,0,19,6],[13,0,13,6],[18,0,18,6],[12,0,12,6],[6,0,6,6],[14,0,14,6],[7,0,7,6]]}
[]
[]
[]
[]
[]
[" "]
[" "]
["I - ALIMENTAÇÃO"]
[]
["ESPECIFICAÇÃO","UN","QUANTIDADE\n(POR U.A.)","VALOR UN.\n (R$)","CUSTO POR U.A\n(R$)","CUSTO TOTAL\n(R$)","FINANCIADO\n (R$)","EM BRANCO"]
[null,null,null,null,{"$f":"Tabela1[[#This Row],[VALOR UN.\n (R$)]]*Tabela1[[#This Row],[QUANTIDADE\n(POR U.A.)]]","v":0},{"$f":"Tabela1[[#This Row],[CUSTO POR U.A\n(R$)]]*ANIMAIS_CUSTEADOS","v":0}]
["Total",null,null,null,{"$f":"SUBTOTAL(109,Tabela1[CUSTO POR U.A\n(R$)])","v":0},{"$f":"SUBTOTAL(109,Tabela1[CUSTO TOTAL\n(R$)])","v":0},{"$f":"SUBTOTAL(109,Tabela1[FINANCIADO\n (R$)])","v":0},{"$f":"SUBTOTAL(109,Tabela1[EM BRANCO])","v":0}]
["   "]
["II - SANIDADE"]
[]
["ESPECIFICAÇÃO","UN","QUANTIDADE\n(POR U.A.)","VALOR UN.\n (R$)","CUSTO POR U.A\n(R$)","CUSTO TOTAL\n(R$)","FINANCIADO\n (R$)","EM BRANCO"]
[null,null,null,null,{"$f":"Tabela123[[#This Row],[VALOR UN.\n (R$)]]*Tabela123[[#This Row],[QUANTIDADE\n(POR U.A.)]]","v":0},{"$f":"Tabela123[[#This Row],[CUSTO POR U.A\n(R$)]]*ANIMAIS_CUSTEADOS","v":0}]
["Total",null,null,null,{"$f":"SUBTOTAL(109,Tabela123[CUSTO POR U.A\n(R$)])","v":0},{"$f":"SUBTOTAL(109,Tabela123[CUSTO TOTAL\n(R$)])","v":0},{"$f":"SUBTOTAL(109,Tabela123[FINANCIADO\n (R$)])","v":0},{"$f":"SUBTOTAL(109,Tabela123[EM BRANCO])","v":0}]
["   "]
["III - SERVIÇOS"]
[]
["ESPECIFICAÇÃO","UN","QUANTIDADE\n(POR U.A.)","VALOR UN.\n (R$)","CUSTO POR U.A\n(R$)","CUSTO TOTAL\n(R$)","FINANCIADO\n (R$)","EM BRANCO"]
[null,null,null,null,{"$f":"Tabela125[[#This Row],[QUANTIDADE\n(POR U.A.)]]*Tabela125[[#This Row],[VALOR UN.\n (R$)]]","v":0},{"$f":"Tabela125[[#This Row],[CUSTO POR U.A\n(R$)]]*ANIMAIS_CUSTEADOS","v":0}]
["Total",null,null,null,{"$f":"SUBTOTAL(109,Tabela125[CUSTO POR U.A\n(R$)])","v":0},{"$f":"SUBTOTAL(109,Tabela125[CUSTO TOTAL\n(R$)])","v":0},{"$f":"SUBTOTAL(109,Tabela125[FINANCIADO\n (R$)])","v":0},{"$f":"SUBTOTAL(109,Tabela125[EM BRANCO])","v":0}]
["   "]
["IV - AQUISIÇÃO DE ANIMAIS"]
[]
["ESPECIFICAÇÃO","RAÇA","QTDE\n(CABEÇAS)","CUSTO UNITÁRIO \n(R$)","CUSTO TOTAL \n(R$)","FINANCIADO\n (R$)"]
[null,null,null,null,{"$f":"Tabela1258[[#This Row],[CUSTO UNITÁRIO \n(R$)]]*Tabela1258[[#This Row],[QTDE\n(CABEÇAS)]]","v":0}]
["Total",null,{"$f":"SUBTOTAL(109,Tabela1258[QTDE\n(CABEÇAS)])","v":0},null,{"$f":"SUBTOTAL(109,Tabela1258[CUSTO TOTAL \n(R$)])","v":0},{"$f":"SUBTOTAL(109,Tabela1258[FINANCIADO\n (R$)])","v":0}]
["   "]
["TOTAL"]
["ESPECIFICAÇÃO","ORÇAMENTO\n(POR U.A)","FINANCIADO\n(POR U.A)","ORÇAMENTO\nTOTAL","FINANCIADO\nTOTAL","RECURSOS\nPRÓPRIOS"]
["I - ALIMENTAÇÃO",{"$f":"IFERROR(Tabela1[[#Totals],[CUSTO POR U.A\n(R$)]],0)","v":0},{"$f":"IFERROR(Tabela1[[#Totals],[FINANCIADO\n (R$)]]/ANIMAIS_CUSTEADOS,0)","v":0},{"$f":"B34*ANIMAIS_CUSTEADOS","v":0},0,{"$f":"D34-E34","v":0}]
["II - SANIDADE",{"$f":"IFERROR(Tabela123[[#Totals],[CUSTO POR U.A\n(R$)]],0)","v":0},{"$f":"IFERROR(Tabela123[[#Totals],[FINANCIADO\n (R$)]]/ANIMAIS_CUSTEADOS,0)","v":0},0,0,{"$f":"D35-E35","v":0}]
["III - SERVIÇOS",{"$f":"IFERROR(Tabela125[[#Totals],[CUSTO POR U.A\n(R$)]],0)","v":0},{"$f":"IFERROR(Tabela125[[#Totals],[FINANCIADO\n (R$)]]/ANIMAIS_CUSTEADOS,)","v":0},0,0,{"$f":"D36-E36","v":0}]
["IV - ANIMAIS",{"$f":"IFERROR(Tabela1258[[#Totals],[CUSTO TOTAL \n(R$)]]/Tabela1258[[#Totals],[QTDE\n(CABEÇAS)]],0)","v":0},{"$f":"IFERROR(Tabela1258[[#Totals],[FINANCIADO\n (R$)]]/Tabela1258[[#Totals],[QTDE\n(CABEÇAS)]],0)","v":0},{"$f":"Tabela1258[[#Totals],[CUSTO TOTAL \n(R$)]]","v":0},{"$f":"Tabela1258[[#Totals],[FINANCIADO\n (R$)]]","v":0},{"$f":"Tabela3[[#This Row],[ORÇAMENTO\nTOTAL]]-Tabela3[[#This Row],[FINANCIADO\nTOTAL]]","v":0}]
["Total",{"$f":"SUM(B34:B37)","v":0},{"$f":"C36+C35+C34+C37","v":0},{"$f":"D36+D35+D34+D37","v":0},{"$f":"SUM(E34:E37)","v":0},{"$f":"SUM(F34:F37)","v":0}]
[]
[]
[]
[]
["________________________________________",null,null,"________________________________________"]
[{"$f":"UPPER('INFORMAÇÕES GERAIS'!F19)","v":""},null,null,{"$f":"UPPER('INFORMAÇÕES GERAIS'!H15)","v":""}]
["Proponente",null,null,"Responsável Técnico"]

{"sheet":"DEMONSTRATIVO DE VIABILIDADE","index":8,"n_rows":25,"n_cols":6,"rows_kept":25,"cut":false,"hidden":true,"merged":[[6,0,6,1],[6,4,6,5],[14,4,14,5],[0,0,0,5],[22,0,22,1],[23,0,23,1],[24,0,24,1],[22,4,22,5],[23,4,23,5],[24,4,24,5]]}
[]
[]
[]
[]
[]
[]
["CUSTOS DE PRODUÇÃO",null,null,null,"RECEITA PREVISTA"]
["ESPECIFICAÇÃO","VALOR",null,null,"ESPECIFICAÇÃO","VALOR"]
["ESTE FINANCIAMENTO",{"$f":"VALOR_FINANCIADO","v":0},null,null,"PRODUÇÃO ESTIMADA (PRINCIPAL)",{"$f":"RECEITA_ESTIMADA","v":"-"}]
["RECURSOS PRÓPRIOS",{"$f":"VALOR_ORÇADO-VALOR_FINANCIADO","v":0},null,null,"PRODUTO SECUNDÁRIO:"]
["JUROS DESTE FINANCIAMENTO",{"$f":"IFERROR(((TAXA_JUROS)^1/12)*VLOOKUP(PRAZO,LISTAS!O1:P9999,2,0)*B9,0)","v":0}]
["ARRENDAMENTO",{"$f":"IFERROR(CUSTO_ARRENDAMENTO*AREA_ARRENDADA*VLOOKUP(PRAZO,LISTAS!O1:P9999,2,0),0)","v":0}]
["ASSISTÊNCIA TÉCNICA",0,null,null,"Total",{"$f":"SUBTOTAL(109,Tabela1319[VALOR])","v":0}]
["OUTRAS DESPESAS:",null,null,null," "]
[null,null,null,null,"RENTABILIDADE"]
[null,null,null,null,"ESPECIFICAÇÃO","VALOR"]
[null,null,null,null,"RECEITA - DESPESA",{"$f":"Tabela1319[[#Totals],[VALOR]]-Tabela13[[#Totals],[VALOR]]","v":0}]
["Total",{"$f":"SUBTOTAL(109,Tabela13[VALOR])","v":0},null,null,"RENTABILIDADE ",{"$f":"IFERROR(Tabela1319[[#Totals],[VALOR]]/Tabela13[[#Totals],[VALOR]],0)-1","v":-1}]
[]
[]
[]
[]
["________________________________________",null,null,null,"________________________________________"]
[{"$f":"UPPER('INFORMAÇÕES GERAIS'!F19)","v":""},null,null,null,{"$f":"UPPER('INFORMAÇÕES GERAIS'!H15)","v":""}]
["Proponente",null,null,null,"Responsável Técnico"]

{"sheet":"CAPACIDADE DE PAGAMENTO","index":9,"n_rows":120,"n_cols":15,"rows_kept":120,"cut":false,"hidden":true,"merged":[[7,12,7,13],[107,1,107,3],[106,5,106,8],[53,1,53,8],[75,1,75,8],[7,1,7,8],[118,5,118,8],[112,5,112,7],[108,1,108,3],[109,1,109,3],[108,5,108,7],[109,5,109,7],[119,5,119,8],[118,1,118,4],[119,1,119,4],[100,5,100,7],[101,5,101,7],[105,5,105,7],[100,1,100,3],[101,1,101,3],[104,5,104,7],[104,1,104,3],[110,5,110,7],[110,1,110,3],[107,5,107,7],[117,5,117,8],[117,1,117,4],[112,1,112,3],[6,1,6,8],[0,1,0,8],[106,1,106,4],[105,1,105,3],[29,1,29,8],[98,1,98,8],[99,5,99,8],[99,1,99,4],[102,5,102,7],[103,5,103,7],[52,1,52,8]]}
[]
[]
[]
[]
[]
[]
[null,"ATIVIDADE AGRÍCOLAS"]
[null,"RECEITAS PREVISTAS"]
[null,"CULTURA","EMPRESA / GRUPO","PARTICIPAÇÃO\n(%)","ÁREA\n(ha)","PRODUTIVIDADE (kg/ha)","RECEITA\n(R$/kg)","RECEITA TOTAL\n(R$)","RECEITA PART. \n(R$)",null,{"$f":"SUM(L10:L29)","v":1},null,{"$f":"SUM(N10:N29)","v":0},null,"Os que estão em amarelo, são contadores. O primeiro é um controle de quantas linhas estão inseridas. O segundo é um controle de quantas linhas estão completamente preenchidas. Se eles estiverem diferente, significa que existe linha sem todos os dados preenchidos."]
[null,null,null,null,null,null,null,{"$f":"IFERROR(IF(G10=\"\",\"\",G10*F10*E10),\"\")","v":""},{"$f":"IFERROR(IF(G10=\"\",\"\",D10*H10),\" \")","v":""},null,null,1,{"$f":"IF(AND(I10<>\"\",OR(H10<>\"\",G10<>\"\",F10<>\"\",E10<>\"\",D10<>\"\",C10<>\"\",B10<>\"\")),1,0)","v":0},{"$f":"M10*L10","v":0}]
[null,null,null,null,null,null,null,{"$f":"IFERROR(IF(G11=\"\",\"\",G11*F11*E11),\"\")","v":""},{"$f":"IFERROR(IF(G11=\"\",\"\",D11*H11),\"\")","v":""},null,null,null,0,{"$f":"M11*L11","v":0}]
[null,null,null,null,null,null,null,"","",null,null,null,0,0]
[null,null,null,null,null,null,null,{"$f":"IFERROR(IF(G13=\"\",\"\",G13*F13*E13),\"\")","v":""},"",null,null,null,0,0]
[null,null,null,null,null,null,null,"","",null,null,null,0,0]
[null,null,null,null,null,null,null,"","",null,null,null,0,0]
[null,null,null,null,null,null,null,"","",null,null,null,0,0]
[null,null,null,null,null,null,null,"","",null,null,null,0,0]
[null,null,null,null,null,null,null,"","",null,null,null,0,0]
[null,null,null,null,null,null,null,"","",null,null,null,0,0]
[null,null,null,null,null,null,null,"","",null,null,null,0,0]
[null,null,null,null,null,null,null,"","",null,null,null,0,0]
[null,null,null,null,null,null,null,"","",null,null,null,0,0]
[null,null,null,null,null,null,null,"","",null,null,null,0,0]
[null,null,null,null,null,null,null,"","",null,null,null,0,0]
[null,null,null,null,null,null,null,"","",null,null,null,0,0]
[null,null,null,null,null,null,null,"","",null,null,null,0,0]
[null,null,null,null,null,null,null,"","",null,null,null,0,0]
[null,null,null,null,null,null,null,"","",null,null,null,0,0]
[null,null,null,null,null,null,null,"","",null,null,null,0,0]
[null,"CUSTOS DE PRODUÇÃO"]
[null,"CULTURA","EMPRESA / GRUPO","PARTICIPAÇÃO\n(%)","ÁREA\n(ha)","PRODUTIVIDADE (kg/ha)","CUSTO\n(R$/kg)","CUSTO TOTAL\n (R$)","CUSTO PART.\n (R$)",null,{"$f":"SUM(L32:L51)","v":1},null,{"$f":"SUM(N32:N51)","v":0}]
[null,{"$f":"IF(B10=\"\",\"\",B10)","v":""},{"$f":"IF(C10=\"\",\"\",C10)","v":""},{"$f":"IF(D10=\"\",\"\",D10)","v":""},{"$f":"IF(E10=\"\",\"\",E10)","v":""},{"$f":"IF(F10=\"\",\"\",F10)","v":""},null,{"$f":"IFERROR(IF(G32=\"\",\"\",G32*F32*E32),\"\")","v":""},{"$f":"IFERROR(IF(G32=\"\",\"\",D32*H32),\"\")","v":""},null,null,1,{"$f":"IF(AND(I32<>\"\",OR(H32<>\"\",G32<>\"\",F32<>\"\",E32<>\"\",D32<>\"\",C32<>\"\",B32<>\"\")),1,0)","v":0},{"$f":"M32*L32","v":0}]
[null,{"$f":"IF(B11=\"\",\"\",B11)","v":""},{"$f":"IF(C11=\"\",\"\",C11)","v":""},"","","",null,{"$f":"IFERROR(IF(G33=\"\",\"\",G33*F33*E33),\"\")","v":""},{"$f":"IFERROR(IF(G33=\"\",\"\",D33*H33),\"\")","v":""},null,null,null,{"$f":"IF(AND(I33<>\"\",OR(H33<>\"\",G33<>\"\",F33<>\"\",E33<>\"\",D33<>\"\",C33<>\"\",B33<>\"\")),1,0)","v":0},{"$f":"M33*L33","v":0}]
[null,{"$f":"IF(B12=\"\",\"\",B12)","v":""},"","","","",null,"","",null,null,null,0,0]
[null,{"$f":"IF(B13=\"\",\"\",B13)","v":""},"","","","",null,"","",null,null,null,0,0]
[null,{"$f":"IF(B14=\"\",\"\",B14)","v":""},"","","","",null,"","",null,null,null,0,0]
[null,{"$f":"IF(B15=\"\",\"\",B15)","v":""},"","","","",null,"","",null,null,null,0,0]
[null,{"$f":"IF(B16=\"\",\"\",B16)","v":""},"","","","",null,"","",null,null,null,0,0]
[null,{"$f":"IF(B17=\"\",\"\",B17)","v":""},"","","","",null,"","",null,null,null,0,0]
[null,{"$f":"IF(B18=\"\",\"\",B18)","v":""},"","","","",null,"","",null,null,null,0,0]
[null,{"$f":"IF(B19=\"\",\"\",B19)","v":""},"","","","",null,"","",null,null,null,0,0]
[null,{"$f":"IF(B20=\"\",\"\",B20)","v":""},"","","","",null,"","",null,null,null,0,0]
[null,{"$f":"IF(B21=\"\",\"\",B21)","v":""},"","","","",null,"","",null,null,null,0,0]
[null,{"$f":"IF(B22=\"\",\"\",B22)","v":""},"","","","",null,"","",null,null,null,0,0]
[null,{"$f":"IF(B23=\"\",\"\",B23)","v":""},"","","","",null,"","",null,null,null,0,0]
[null,{"$f":"IF(B24=\"\",\"\",B24)","v":""},"","","","",null,"","",null,null,null,0,0]
[null,{"$f":"IF(B25=\"\",\"\",B25)","v":""},"","","","",null,"","",null,null,null,0,0]
[null,{"$f":"IF(B26=\"\",\"\",B26)","v":""},"","","","",null,"","",null,null,null,0,0]
[null,{"$f":"IF(B27=\"\",\"\",B27)","v":""},"","","","",null,"","",null,null,null,0,0]
[null,{"$f":"IF(B28=\"\",\"\",B28)","v":""},"","","","",null,"","",null,null,null,0,0]
[null,{"$f":"IF(B29=\"\",\"\",B29)","v":""},"","","","",null,{"$f":"IFERROR(IF(G51=\"\",\"\",G51*F51*E51),\"\")","v":""},{"$f":"IFERROR(IF(G51=\"\",\"\",D51*H51),\"\")","v":""},null,null,null,0,0]
[null," ",null,null," "]
[null,"ATIVIDADES PECUÁRIAS"]
[null,"RECEITAS PREVISTAS"]
[null,"ATIVIDADE","EMPRESA / GRUPO","PARTICIPAÇÃO\n(%)","UNIDADE DE PRODUÇÃO","PRODUTIVIDADE","RECEITA\n(R$/UN)","RECEITA TOTAL\n(R$)","RECEITA PART. \n(R$)",null,{"$f":"SUM(L56:L75)","v":1},null,{"$f":"SUM(N56:N75)","v":0}]
[null,null,null,null,{"$f":"IF(B56=\"LEITE\",\"LITROS\",IF(B56=\"\",\"\",\"CABEÇAS\"))","v":""},null,null,{"$f":"IF(G56=\"\",\"\",G56*F56)","v":""},{"$f":"IF(G56=\"\",\"\",H56*D56)","v":""},null,null,1,{"$f":"IF(AND(I56<>\"\",OR(H56<>\"\",G56<>\"\",F56<>\"\",E56<>\"\",D56<>\"\",C56<>\"\",B56<>\"\")),1,0)","v":0},{"$f":"M56*L56","v":0}]
[null,null,null,null,{"$f":"IF(B57=\"LEITE\",\"LITROS\",IF(B57=\"\",\"\",\"CABEÇAS\"))","v":""},null,null,{"$f":"IF(G57=\"\",\"\",G57*F57)","v":""},{"$f":"IF(G57=\"\",\"\",H57*D57)","v":""},null,null,null,{"$f":"IF(AND(I57<>\"\",OR(H57<>\"\",G57<>\"\",F57<>\"\",E57<>\"\",D57<>\"\",C57<>\"\",B57<>\"\")),1,0)","v":0},{"$f":"M57*L57","v":0}]
[null,null,null,null,"",null,null,{"$f":"IF(G58=\"\",\"\",G58*F58)","v":""},{"$f":"IF(G58=\"\",\"\",H58*D58)","v":""},null,null,null,0,0]
[null,null,null,null,{"$f":"IF(B59=\"LEITE\",\"LITROS\",IF(B59=\"\",\"\",\"CABEÇAS\"))","v":""},null,null,{"$f":"IF(G59=\"\",\"\",G59*F59)","v":""},{"$f":"IF(G59=\"\",\"\",H59*D59)","v":""},null,null,null,0,0]
[null,null,null,null,"",null,null,"","",null,null,null,0,0]
[null,null,null,null,"",null,null,"","",null,null,null,0,0]
[null,null,null,null,"",null,null,"","",null,null,null,0,0]
[null,null,null,null,"",null,null,"","",null,null,null,0,0]
[null,null,null,null,"",null,null,"","",null,null,null,0,0]
[null,null,null,null,"",null,null,"","",null,null,null,0,0]
[null,null,null,null,"",null,null,"","",null,null,null,0,0]
[null,null,null,null,"",null,null,"","",null,null,null,0,0]
[null,null,null,null,"",null,null,"","",null,null,null,0,0]
[null,null,null,null,"",null,null,"","",null,null,null,0,0]
[null,null,null,null,{"$f":"IF(B70=\"LEITE\",\"LITROS\",IF(B70=\"\",\"\",\"CABEÇAS\"))","v":""},null,null,{"$f":"IF(G70=\"\",\"\",G70*F70)","v":""},{"$f":"IF(G70=\"\",\"\",H70*D70)","v":""},null,null,null,0,0]
[null,null,null,null,"",null,null,"","",null,null,null,0,0]
[null,null,null,null,"",null,null,"","",null,null,null,0,0]
[null,null,null,null,"",null,null,"","",null,null,null,0,0]
[null,null,null,null,"",null,null,"","",null,null,null,0,0]
[null,null,null,null,"",null,null,"","",null,null,null,0,0]
[null,"CUSTOS DE PRODUÇÃO"]
[null,"ATIVIDADE","EMPRESA / GRUPO","PARTICIPAÇÃO\n(%)","UNIDADE DE PRODUÇÃO","PRODUTIVIDADE","CUSTO \n(R$/U.A)","CUSTO TOTAL\n (R$)","CUSTO PART.\n (R$)",null,{"$f":"SUM(L78:L97)","v":1},null,{"$f":"SUM(N78:N97)","v":0}]
[null,{"$f":"IF(B56=\"\",\"\",B56)","v":""},"","","","",null,{"$f":"IF(G78=\"\",\"\",G78*F78)","v":""},{"$f":"IF(G78=\"\",\"\",H78*D78)","v":""},null,null,1,{"$f":"IF(AND(I78<>\"\",OR(H78<>\"\",G78<>\"\",F78<>\"\",E78<>\"\",D78<>\"\",C78<>\"\",B78<>\"\")),1,0)","v":0},{"$f":"M78*L78","v":0}]
[null,"","","","","",null,{"$f":"IF(G79=\"\",\"\",G79*F79)","v":""},{"$f":"IF(G79=\"\",\"\",H79*D79)","v":""},null,null,null,{"$f":"IF(AND(I79<>\"\",OR(H79<>\"\",G79<>\"\",F79<>\"\",E79<>\"\",D79<>\"\",C79<>\"\",B79<>\"\")),1,0)","v":0},{"$f":"M79*L79","v":0}]
[null,"","","","","",null,{"$f":"IF(G80=\"\",\"\",G80*F80)","v":""},{"$f":"IF(G80=\"\",\"\",H80*D80)","v":""},null,null,null,0,0]
[null,{"$f":"IF(B59=\"\",\"\",B59)","v":""},"","","","",null,{"$f":"IF(G81=\"\",\"\",G81*F81)","v":""},{"$f":"IF(G81=\"\",\"\",H81*D81)","v":""},null,null,null,0,0]
[null,"","","","","",null,"","",null,null,null,0,0]
[null,"","","","","",null,"","",null,null,null,0,0]
[null,"","","","","",null,"","",null,null,null,0,0]
[null,"","","","","",null,"","",null,null,null,0,0]
[null,"","","","","",null,"","",null,null,null,0,0]
[null,"","","","","",null,"","",null,null,null,0,0]
[null,"","","","","",null,"","",null,null,null,0,0]
[null,"","","","","",null,"","",null,null,null,0,0]
[null,"","","","","",null,"","",null,null,null,0,0]
[null,"","","","","",null,"","",null,null,null,0,0]
[null,"","","","","",null,"","",null,null,null,0,0]
[null,"","","","","",null,"","",null,null,null,0,0]
[null,"","","","","",null,"","",null,null,null,0,0]
[null,"","","","","",null,"","",null,null,null,0,0]
[null,"","","","","",null,"","",null,null,null,0,0]
[null,"","","","","",null,"","",null,null,null,0,0]
[]
[null,"CAPACIDADE DE PAGAMENTO"]
[null,"RECEITAS",null,null,null,"DESPESAS"]
[null,"RECEITA PREVISTA ATIVIDADES AGRÍCOLAS",null,null,{"$f":"SUM(I10:I29)","v":0},"CUSTO PREVISTO ATIVIDADES AGRÍCOLAS",null,null,{"$f":"SUM(I32:I51)","v":0}]
[null,"RECEITA PREVISTA ATIVIDADES PECUÁRIAS",null,null,{"$f":"SUM(I56:I75)","v":0},"CUSTO PREVISTO ATIVIDADES PECUÁRIAS",null,null,{"$f":"SUM(I78:I97)","v":0}]
[null,null,null,null,null,"OUTROS ARRENDAMENTOS"]
[null,null,null,null,null,"JUROS DE OUTROS FINANCIAMENTOS"]
[null,null,null,null,null,"MANUTENÇÃO DE MAQUINÁRIO"]
[null,null,null,null,null,"MANUTENÇÃO FAMILIAR MENSAL"]
[null,"OUTRAS RECEITAS PREVISTAS:",null,null,null,"OUTRAS DESPESAS PREVISTAS:"]
[]
[]
[]
[null,"TOTAL RECEITAS:",null,null,{"$f":"IF(SUM(E101:E104,E108:E110)=0,\"-\",SUM(E101:E104,E108:E110))","v":"-"},"TOTAL DESPESAS:",null,null,{"$f":"IFERROR(IF(SUM(I101:I110)+(I106*(VLOOKUP(PRAZO,LISTAS!O1:P9999,2,0)-1))=0,\"-\",SUM(I101:I110)+I106*(VLOOKUP(PRAZO,LISTAS!O1:P9999,2,0)-1)),\"-\")","v":"-"}]
[]
[null,"RESULTADO (RECEITAS - DESPESAS): ",null,null,{"$f":"IFERROR(E111-I111,\"-\")","v":"-"},"RENTABILIDADE (RESULTADO/DESPESAS):",null,null,{"$f":"IFERROR(((E111-I111)/I111),\"-\")","v":"-"}]
[]
[]
[]
[]
[null,"________________________________________",null,null,null,"________________________________________"]
[null,{"$f":"UPPER('INFORMAÇÕES GERAIS'!F19)","v":""},null,null,null,{"$f":"UPPER('INFORMAÇÕES GERAIS'!H15)","v":""}]
[null,"Proponente",null,null,null,"Responsável Técnico"]

{"sheet":"PATRIMÔNIO","index":10,"n_rows":496,"n_cols":58,"rows_kept":496,"cut":false,"hidden":true,"merged":[[438,39,438,44],[439,0,439,6],[439,7,439,29],[439,30,439,32],[439,39,439,44],[436,0,436,6],[436,7,436,29],[436,30,436,32],[436,33,436,38],[436,39,436,44],[437,0,437,6],[437,7,437,29],[437,30,437,32],[437,33,437,38],[437,39,437,44],[449,33,449,38],[449,39,449,44],[446,0,446,6],[446,7,446,29],[446,30,446,32],[446,33,446,38],[446,39,446,44],[447,0,447,6],[447,7,447,29],[447,30,447,32],[447,33,447,38],[447,39,447,44],[444,0,444,6],[444,7,444,29],[442,39,442,44],[443,0,443,6],[443,7,443,29],[430,39,430,44],[431,0,431,6],[431,7,431,29],[431,30,431,32],[431,33,431,38],[431,39,431,44],[448,0,448,6],[448,7,448,29],[448,30,448,32],[448,33,448,38],[448,39,448,44],[432,0,432,6],[432,7,432,29],[432,30,432,32],[432,33,432,38],[432,39,432,44],[433,0,433,6],[433,7,433,29],[433,30,433,32],[433,33,433,38],[433,39,433,44],[439,33,439,38],[434,0,434,6],[434,7,434,29],[434,30,434,32],[434,33,434,38],[434,39,434,44],[435,0,435,6],[435,7,435,29],[435,30,435,32],[435,33,435,38],[435,39,435,44],[458,39,458,44],[459,0,459,6],[459,7,459,29],[459,30,459,32],[459,33,459,38],[459,39,459,44],[456,0,456,6],[456,7,456,29],[456,30,456,32],[456,33,456,38],[456,39,456,44],[457,0,457,6],[457,7,457,29],[457,30,457,32],[457,33,457,38],[457,39,457,44],[454,0,454,6],[454,7,454,29],[454,39,454,44],[455,0,455,6],[455,7,455,29],[455,30,455,32],[455,33,455,38],[455,39,455,44],[452,39,452,44],[453,0,453,6],[453,7,453,29],[453,30,453,32],[453,33,453,38],[453,39,453,44],[440,0,440,6],[440,7,440,29],[440,30,440,32],[440,33,440,38],[440,39,440,44],[441,0,441,6],[441,7,441,29],[441,30,441,32],[441,33,441,38],[441,39,441,44],[444,30,444,32],[444,33,444,38],[444,39,444,44],[445,0,445,6],[445,7,445,29],[445,30,445,32],[450,39,450,44],[451,0,451,6],[451,7,451,29],[451,30,451,32],[451,33,451,38],[451,39,451,44],[443,30,443,32],[443,33,443,38],[443,39,443,44],[384,0,384,6],[384,7,384,12],[384,13,384,18],[384,19,384,25],[384,26,384,32],[384,33,384,38],[384,39,384,44],[385,0,385,6],[385,7,385,12],[385,13,385,18],[385,19,385,25],[385,26,385,32],[385,33,385,38],[385,39,385,44],[394,0,394,6],[394,7,394,12],[394,13,394,18],[394,19,394,25],[394,26,394,32],[394,33,394,38],[394,39,394,44],[388,0,388,6],[388,7,388,12],[388,13,388,18],[388,19,388,25],[388,26,388,32],[388,33,388,38],[388,39,388,44],[389,0,389,6],[389,7,389,12],[389,13,389,18],[389,19,389,25],[395,0,395,6],[445,33,445,38],[445,39,445,44],[442,0,442,6],[442,7,442,29],[382,0,382,6],[382,7,382,12],[382,13,382,18],[382,19,382,25],[382,26,382,32],[382,33,382,38],[382,39,382,44],[383,0,383,6],[383,7,383,12],[383,13,383,18],[383,19,383,25],[383,26,383,32],[383,33,383,38],[383,39,383,44],[393,33,393,38],[393,39,393,44],[390,19,390,25],[390,26,390,32],[390,33,390,38],[390,39,390,44],[391,0,391,6],[391,7,391,12],[391,13,391,18],[391,19,391,25],[391,26,391,32],[391,33,391,38],[391,39,391,44],[380,0,380,6],[380,7,380,12],[380,13,380,18],[380,19,380,25],[380,26,380,32],[380,33,380,38],[380,39,380,44],[381,0,381,6],[381,7,381,12],[381,13,381,18],[381,19,381,25],[381,26,381,32],[381,33,381,38],[381,39,381,44],[378,0,378,6],[378,7,378,12],[378,13,378,18],[378,19,378,25],[378,26,378,32],[378,33,378,38],[378,39,378,44],[379,0,379,6],[379,7,379,12],[379,13,379,18],[379,19,379,25],[379,26,379,32],[379,33,379,38],[379,39,379,44],[376,0,376,6],[376,7,376,12],[376,13,376,18],[376,19,376,25],[376,26,376,32],[376,33,376,38],[376,39,376,44],[377,0,377,6],[377,7,377,12],[377,13,377,18],[377,19,377,25],[377,26,377,32],[377,33,377,38],[377,39,377,44],[395,7,395,12],[395,13,395,18],[395,19,395,25],[395,26,395,32],[395,33,395,38],[395,39,395,44],[392,0,392,6],[392,7,392,12],[392,13,392,18],[392,19,392,25],[392,26,392,32],[392,33,392,38],[392,39,392,44],[393,0,393,6],[393,7,393,12],[393,13,393,18],[393,19,393,25],[393,26,393,32],[389,26,389,32],[389,33,389,38],[389,39,389,44],[405,0,405,6],[405,7,405,12],[405,13,405,18],[405,19,405,25],[405,26,405,32],[405,33,405,38],[405,39,405,44],[402,0,402,6],[402,7,402,12],[402,13,402,18],[402,19,402,25],[402,26,402,32],[402,33,402,38],[402,39,402,44],[403,0,403,6],[403,7,403,12],[403,13,403,18],[403,19,403,25],[403,26,403,32],[403,33,403,38],[403,39,403,44],[404,0,404,6],[404,7,404,12],[404,13,404,18],[404,19,404,25],[404,26,404,32],[404,33,404,38],[404,39,404,44],[401,26,401,32],[401,33,401,38],[401,39,401,44],[398,0,398,6],[398,7,398,12],[398,13,398,18],[398,19,398,25],[398,26,398,32],[398,33,398,38],[398,39,398,44],[399,0,399,6],[399,7,399,12],[399,13,399,18],[399,19,399,25],[399,26,399,32],[399,33,399,38],[399,39,399,44],[400,0,400,6],[400,7,400,12],[400,13,400,18],[400,19,400,25],[400,26,400,32],[400,33,400,38],[400,39,400,44],[401,0,401,6],[401,7,401,12],[401,13,401,18],[401,19,401,25],[397,0,397,6],[397,7,397,12],[397,13,397,18],[397,19,397,25],[397,26,397,32],[397,33,397,38],[397,39,397,44],[340,0,340,5],[340,6,340,29],[340,30,340,32],[340,33,340,38],[340,39,340,44],[341,0,341,5],[341,6,341,29],[341,30,341,32],[341,33,341,38],[341,39,341,44],[348,30,348,32],[348,33,348,38],[348,39,348,44],[349,0,349,5],[349,6,349,29],[349,30,349,32],[349,33,349,38],[349,39,349,44],[386,0,386,6],[386,7,386,12],[386,13,386,18],[386,19,386,25],[386,26,386,32],[386,33,386,38],[386,39,386,44],[339,0,339,5],[339,6,339,29],[339,30,339,32],[339,33,339,38],[339,39,339,44],[336,0,336,5],[336,6,336,29],[336,30,336,32],[336,33,336,38],[336,39,336,44],[337,0,337,5],[337,6,337,29],[337,30,337,32],[337,33,337,38],[337,39,337,44],[396,0,396,6],[396,7,396,12],[396,13,396,18],[396,19,396,25],[396,26,396,32],[396,33,396,38],[396,39,396,44],[387,0,387,6],[387,7,387,12],[387,13,387,18],[387,19,387,25],[387,26,387,32],[387,33,387,38],[387,39,387,44],[390,0,390,6],[390,7,390,12],[390,13,390,18],[335,0,335,5],[335,6,335,29],[335,30,335,32],[335,33,335,38],[335,39,335,44],[332,0,332,5],[332,6,332,29],[332,30,332,32],[332,33,332,38],[332,39,332,44],[333,0,333,5],[333,6,333,29],[333,30,333,32],[333,33,333,38],[333,39,333,44],[338,0,338,5],[338,6,338,29],[338,30,338,32],[338,33,338,38],[338,39,338,44],[331,0,331,5],[331,6,331,29],[331,30,331,32],[331,33,331,38],[331,39,331,44],[328,0,328,5],[328,6,328,29],[328,30,328,32],[328,33,328,38],[328,39,328,44],[329,0,329,5],[329,6,329,29],[329,30,329,32],[329,33,329,38],[329,39,329,44],[334,0,334,5],[334,6,334,29],[334,30,334,32],[334,33,334,38],[334,39,334,44],[327,0,327,5],[327,6,327,29],[327,30,327,32],[327,33,327,38],[327,39,327,44],[324,0,324,5],[324,6,324,29],[324,30,324,32],[324,33,324,38],[324,39,324,44],[325,0,325,5],[325,6,325,29],[325,30,325,32],[325,33,325,38],[325,39,325,44],[330,0,330,5],[330,6,330,29],[330,30,330,32],[330,33,330,38],[330,39,330,44],[323,30,323,32],[323,33,323,38],[323,39,323,44],[320,0,320,5],[320,6,320,29],[320,30,320,32],[320,33,320,38],[320,39,320,44],[321,0,321,5],[321,6,321,29],[321,30,321,32],[321,33,321,38],[321,39,321,44],[326,0,326,5],[326,6,326,29],[326,30,326,32],[326,33,326,38],[326,39,326,44],[279,6,279,29],[288,30,288,32],[288,33,288,38],[288,39,288,44],[289,0,289,5],[289,6,289,29],[289,30,289,32],[289,33,289,38],[289,39,289,44],[286,0,286,5],[286,6,286,29],[286,30,286,32],[286,33,286,38],[286,39,286,44],[287,0,287,5],[287,6,287,29],[319,30,319,32],[319,33,319,38],[319,39,319,44],[316,0,316,5],[316,6,316,29],[316,30,316,32],[316,33,316,38],[316,39,316,44],[317,0,317,5],[317,6,317,29],[317,30,317,32],[317,33,317,38],[317,39,317,44],[233,0,233,5],[233,6,233,29],[233,30,233,32],[233,33,233,38],[233,39,233,44],[234,0,234,5],[234,6,234,29],[234,30,234,32],[234,33,234,38],[234,39,234,44],[231,0,231,5],[231,6,231,29],[231,30,231,32],[231,33,231,38],[231,39,231,44],[232,0,232,5],[232,6,232,29],[232,30,232,32],[232,33,232,38],[232,39,232,44],[229,0,229,5],[229,6,229,29],[229,30,229,32],[229,33,229,38],[229,39,229,44],[230,0,230,5],[230,6,230,29],[230,30,230,32],[230,33,230,38],[230,39,230,44],[227,0,227,5],[227,6,227,29],[227,30,227,32],[227,33,227,38],[227,39,227,44],[228,0,228,5],[228,6,228,29],[228,30,228,32],[228,33,228,38],[228,39,228,44],[225,0,225,5],[225,6,225,29],[225,30,225,32],[225,33,225,38],[225,39,225,44],[226,0,226,5],[226,6,226,29],[226,30,226,32],[226,33,226,38],[226,39,226,44],[223,0,223,5],[223,6,223,29],[223,30,223,32],[223,33,223,38],[223,39,223,44],[224,0,224,5],[224,6,224,29],[224,30,224,32],[224,33,224,38],[224,39,224,44],[221,0,221,5],[221,6,221,29],[221,30,221,32],[221,33,221,38],[221,39,221,44],[222,0,222,5],[222,6,222,29],[222,30,222,32],[222,33,222,38],[222,39,222,44],[219,0,219,5],[219,6,219,29],[219,30,219,32],[219,33,219,38],[219,39,219,44],[220,0,220,5],[220,6,220,29],[220,30,220,32],[220,33,220,38],[220,39,220,44],[217,0,217,5],[217,6,217,29],[217,30,217,32],[217,33,217,38],[217,39,217,44],[218,0,218,5],[218,6,218,29],[218,30,218,32],[218,33,218,38],[218,39,218,44],[215,0,215,5],[215,6,215,29],[215,30,215,32],[215,33,215,38],[215,39,215,44],[216,0,216,5],[216,6,216,29],[216,30,216,32],[216,33,216,38],[216,39,216,44],[213,0,213,5],[213,6,213,29],[213,30,213,32],[213,33,213,38],[213,39,213,44],[214,0,214,5],[214,6,214,29],[214,30,214,32],[214,33,214,38],[214,39,214,44],[211,0,211,5],[211,6,211,29],[211,30,211,32],[211,33,211,38],[211,39,211,44],[212,0,212,5],[212,6,212,29],[212,30,212,32],[212,33,212,38],[212,39,212,44],[209,0,209,5],[209,6,209,29],[209,30,209,32],[209,33,209,38],[209,39,209,44],[210,0,210,5],[210,6,210,29],[210,30,210,32],[210,33,210,38],[210,39,210,44],[207,0,207,5],[207,6,207,29],[207,30,207,32],[207,33,207,38],[207,39,207,44],[208,0,208,5],[208,6,208,29],[208,30,208,32],[208,33,208,38],[208,39,208,44],[205,0,205,5],[205,6,205,29],[205,30,205,32],[205,33,205,38],[205,39,205,44],[206,0,206,5],[206,6,206,29],[206,30,206,32],[206,33,206,38],[206,39,206,44],[203,0,203,5],[203,6,203,29],[203,30,203,32],[203,33,203,38],[203,39,203,44],[204,0,204,5],[204,6,204,29],[204,30,204,32],[204,33,204,38],[204,39,204,44],[198,39,198,44],[195,0,195,5],[195,6,195,29],[195,30,195,32],[195,33,195,38],[195,39,195,44],[196,0,196,5],[196,6,196,29],[196,30,196,32],[196,33,196,38],[196,39,196,44],[201,0,201,5],[201,6,201,29],[201,30,201,32],[201,33,201,38],[201,39,201,44],[202,0,202,5],[202,6,202,29],[202,30,202,32],[202,33,202,38],[202,39,202,44],[199,0,199,5],[199,6,199,29],[199,30,199,32],[199,33,199,38],[199,39,199,44],[200,0,200,5],[200,6,200,29],[200,30,200,32],[200,33,200,38],[200,39,200,44],[185,0,185,5],[185,6,185,29],[185,30,185,32],[185,33,185,38],[185,39,185,44],[186,0,186,5],[186,6,186,29],[186,30,186,32],[186,33,186,38],[186,39,186,44],[187,0,187,5],[187,6,187,29],[187,30,187,32],[187,33,187,38],[187,39,187,44],[188,0,188,5],[193,0,193,5],[193,6,193,29],[193,30,193,32],[193,33,193,38],[193,39,193,44],[191,0,191,5],[191,6,191,29],[191,30,191,32],[191,33,191,38],[191,39,191,44],[192,0,192,5],[192,6,192,29],[192,30,192,32],[192,33,192,38],[192,39,192,44],[188,39,188,44],[189,0,189,5],[189,6,189,29],[189,30,189,32],[189,33,189,38],[189,39,189,44],[190,0,190,5],[190,6,190,29],[190,30,190,32],[190,33,190,38],[190,39,190,44],[284,0,284,5],[284,6,284,29],[284,30,284,32],[284,33,284,38],[284,39,284,44],[194,0,194,5],[194,6,194,29],[194,30,194,32],[194,33,194,38],[194,39,194,44],[197,0,197,5],[197,6,197,29],[197,30,197,32],[197,33,197,38],[197,39,197,44],[198,0,198,5],[198,6,198,29],[275,6,275,29],[275,30,275,32],[198,30,198,32],[198,33,198,38],[273,30,273,32],[188,6,188,29],[188,30,188,32],[188,33,188,38],[282,0,282,5],[282,6,282,29],[282,30,282,32],[282,33,282,38],[282,39,282,44],[283,0,283,5],[283,6,283,29],[283,30,283,32],[283,33,283,38],[283,39,283,44],[280,0,280,5],[280,6,280,29],[280,30,280,32],[280,33,280,38],[280,39,280,44],[281,0,281,5],[281,6,281,29],[281,30,281,32],[281,33,281,38],[281,39,281,44],[278,0,278,5],[278,6,278,29],[278,30,278,32],[278,33,278,38],[278,39,278,44],[273,0,273,5],[273,6,273,29],[279,30,279,32],[279,33,279,38],[273,33,273,38],[273,39,273,44],[270,0,270,5],[270,6,270,29],[270,30,270,32],[270,33,270,38],[270,39,270,44],[271,0,271,5],[271,6,271,29],[271,30,271,32],[271,33,271,38],[271,39,271,44],[279,39,279,44],[276,0,276,5],[276,6,276,29],[276,30,276,32],[276,33,276,38],[276,39,276,44],[277,0,277,5],[277,6,277,29],[277,30,277,32],[277,33,277,38],[277,39,277,44],[274,0,274,5],[274,6,274,29],[274,30,274,32],[274,33,274,38],[274,39,274,44],[275,0,275,5],[275,33,275,38],[275,39,275,44],[279,0,279,5],[269,0,269,5],[269,6,269,29],[269,30,269,32],[269,33,269,38],[269,39,269,44],[266,0,266,5],[266,6,266,29],[266,30,266,32],[266,33,266,38],[266,39,266,44],[267,0,267,5],[267,6,267,29],[267,30,267,32],[267,33,267,38],[267,39,267,44],[272,0,272,5],[272,6,272,29],[272,30,272,32],[272,33,272,38],[272,39,272,44],[265,0,265,5],[265,6,265,29],[265,30,265,32],[265,33,265,38],[265,39,265,44],[262,0,262,5],[262,6,262,29],[262,30,262,32],[262,33,262,38],[262,39,262,44],[263,0,263,5],[263,6,263,29],[263,30,263,32],[263,33,263,38],[263,39,263,44],[268,0,268,5],[268,6,268,29],[268,30,268,32],[268,33,268,38],[268,39,268,44],[261,0,261,5],[261,6,261,29],[261,30,261,32],[261,33,261,38],[261,39,261,44],[258,0,258,5],[258,6,258,29],[258,30,258,32],[258,33,258,38],[258,39,258,44],[259,0,259,5],[259,6,259,29],[259,30,259,32],[259,33,259,38],[259,39,259,44],[264,0,264,5],[264,6,264,29],[264,30,264,32],[264,33,264,38],[264,39,264,44],[257,0,257,5],[257,6,257,29],[257,30,257,32],[257,33,257,38],[257,39,257,44],[254,0,254,5],[254,6,254,29],[254,30,254,32],[254,33,254,38],[254,39,254,44],[255,0,255,5],[255,6,255,29],[255,30,255,32],[255,33,255,38],[255,39,255,44],[260,0,260,5],[260,6,260,29],[260,30,260,32],[260,33,260,38],[260,39,260,44],[253,0,253,5],[253,6,253,29],[253,30,253,32],[253,33,253,38],[253,39,253,44],[250,0,250,5],[250,6,250,29],[250,30,250,32],[250,33,250,38],[250,39,250,44],[251,0,251,5],[251,6,251,29],[251,30,251,32],[251,33,251,38],[251,39,251,44],[256,0,256,5],[256,6,256,29],[256,30,256,32],[256,33,256,38],[256,39,256,44],[249,0,249,5],[249,6,249,29],[249,30,249,32],[249,33,249,38],[249,39,249,44],[246,0,246,5],[246,6,246,29],[246,30,246,32],[246,33,246,38],[246,39,246,44],[247,0,247,5],[247,6,247,29],[247,30,247,32],[247,33,247,38],[247,39,247,44],[252,0,252,5],[252,6,252,29],[252,30,252,32],[252,33,252,38],[252,39,252,44],[245,0,245,5],[245,6,245,29],[245,30,245,32],[245,33,245,38],[245,39,245,44],[242,0,242,5],[242,6,242,29],[242,30,242,32],[242,33,242,38],[242,39,242,44],[243,0,243,5],[243,6,243,29],[243,30,243,32],[243,33,243,38],[243,39,243,44],[248,0,248,5],[248,6,248,29],[248,30,248,32],[248,33,248,38],[248,39,248,44],[241,33,241,38],[241,39,241,44],[237,39,237,44],[238,0,238,5],[238,6,238,29],[238,30,238,32],[238,33,238,38],[238,39,238,44],[239,0,239,5],[239,6,239,29],[239,30,239,32],[239,33,239,38],[239,39,239,44],[244,0,244,5],[244,6,244,29],[244,30,244,32],[244,33,244,38],[244,39,244,44],[241,0,241,5],[241,6,241,29],[241,30,241,32],[182,0,182,5],[182,6,182,29],[182,30,182,32],[182,33,182,38],[182,39,182,44],[183,0,183,5],[183,6,183,29],[183,30,183,32],[183,33,183,38],[183,39,183,44],[180,0,180,5],[180,6,180,29],[180,30,180,32],[180,33,180,38],[180,39,180,44],[181,0,181,5],[181,6,181,29],[181,30,181,32],[181,33,181,38],[181,39,181,44],[178,0,178,5],[178,6,178,29],[178,30,178,32],[178,33,178,38],[178,39,178,44],[179,0,179,5],[179,6,179,29],[179,30,179,32],[179,33,179,38],[179,39,179,44],[176,0,176,5],[176,6,176,29],[176,30,176,32],[176,33,176,38],[176,39,176,44],[177,0,177,5],[177,6,177,29],[177,30,177,32],[177,33,177,38],[177,39,177,44],[174,0,174,5],[174,6,174,29],[174,30,174,32],[174,33,174,38],[174,39,174,44],[175,0,175,5],[175,6,175,29]],"merged_total":2533,"flags":["merged_cut"]}
[null,null,null,null,null,null,null,null,null,null,null,null,null,null,null,null,null,null,null,null,null,null,null,null,null,null,null,null,null,null,null,null,null,null,null,null,null,null,null,null,null,null,null,null,null,null,"SINALIZADORES DE INCLUSÃO E EXCLUSÃO (IMPORTANTES)!!!!"]
[]
[]
[]
[]
[]
["I - BENS IMÓVEIS"]
["IMÓVEIS RURAIS E URBANOS"]
["REF",null,"TIPO",null,null,"DESCRIÇÃO",null,null,null,null,null,null,null,null,null,null,null,null,null,null,null,null,null,null,null,null,null,null,null,null,null,null,null,"PART.\n%",null,null,"VALOR BEM\n (R$)",null,null,null,"VALOR %\n(R$)"]
[{"$f":"IF(C10<>\"\",1,\"\")","v":""},null,null,null,null,null,null,null,null,null,null,null,null,null,null,null,null,null,null,null,null,null,null,null,null,null,null,null,null,null,null,null,null,null,null,null,null,null,null,null,{"$f":"IF(OR(AH10=\"\",AK10=\"\"),\"\",AK10*AH10)","v":""},null,null,null,null,null,{"$f":"SUM(AV10:AV109)","v":1},1,null,null,null,null,null,null,null,null,{"$f":"_xlfn.CONCAT(\"IMÓVEL \",A10)","v":"IMÓVEL "},{"$f":"_xlfn.CONCAT(\"Be10:Be\"&(9+LARGE(A10:C109,1)))","v":{"$error":"#NUM!"}}]
[{"$f":"IF(C11<>\"\",1+A10,\"\")","v":""},null,null,null,null,null,null,null,null,null,null,null,null,null,null,null,null,null,null,null,null,null,null,null,null,null,null,null,null,null,null,null,null,null,null,null,null,null,null,null,{"$f":"IF(OR(AH11=\"\",AK11=\"\"),\"\",AK11*AH11)","v":""},null,null,null,null,null,null,null,null,null,null,null,null,null,null,null,"IMÓVEL "]
[{"$f":"IF(C12<>\"\",1+A11,\"\")","v":""},null,null,null,null,null,null,null,null,null,null,null,null,null,null,null,null,null,null,null,null,null,null,null,null,null,null,null,null,null,null,null,null,null,null,null,null,null,null,null,"",null,null,null,null,null,null,null,null,null,null,null,null,null,null,null,"IMÓVEL "]
["",null,null,null,null,null,null,null,null,null,null,null,null,null,null,null,null,null,null,null,null,null,null,null,null,null,null,null,null,null,null,null,null,null,null,null,null,null,null,null,"",null,null,null,null,null,null,null,null,null,null,null,null,null,null,null,"IMÓVEL "]
["",null,null,null,null,null,null,null,null,null,null,null,null,null,null,null,null,null,null,null,null,null,null,null,null,null,null,null,null,null,null,null,null,null,null,null,null,null,null,null,"",null,null,null,null,null,null,null,null,null,null,null,null,null,null,null,"IMÓVEL "]
["",null,null,null,null,null,null,null,null,null,null,null,null,null,null,null,null,null,null,null,null,null,null,null,null,null,null,null,null,null,null,null,null,null,null,null,null,null,null,null,"",null,null,null,null,null,null,null,null,null,null,null,null,null,null,null,{"$f":"_xlfn.CONCAT(\"IMÓVEL \",A15)","v":"IMÓVEL "}]
["",null,null,null,null,null,null,null,null,null,null,null,null,null,null,null,null,null,null,null,null,null,null,null,null,null,null,null,null,null,null,null,null,null,null,null,null,null,null,null,"",null,null,null,null,null,null,null,null,null,null,null,null,null,null,null,"IMÓVEL "]
["",null,null,null,null,null,null,null,null,null,null,null,null,null,null,null,null,null,null,null,null,null,null,null,null,null,null,null,null,null,null,null,null,null,null,null,null,null,null,null,"",null,null,null,null,null,null,null,null,null,null,null,null,null,null,null,"IMÓVEL "]
["",null,null,null,null,null,null,null,null,null,null,null,null,null,null,null,null,null,null,null,null,null,null,null,null,null,null,null,null,null,null,null,null,null,null,null,null,null,null,null,"",null,null,null,null,null,null,null,null,null,null,null,null,null,null,null,"IMÓVEL "]
["",null,null,null,null,null,null,null,null,null,null,null,null,null,null,null,null,null,null,null,null,null,null,null,null,null,null,null,null,null,null,null,null,null,null,null,null,null,null,null,"",null,null,null,null,null,null,null,null,null,null,null,null,null,null,null,"IMÓVEL "]
["",null,null,null,null,null,null,null,null,null,null,null,null,null,null,null,null,null,null,null,null,null,null,null,null,null,null,null,null,null,null,null,null,null,null,null,null,null,null,null,"",null,null,null,null,null,null,null,null,null,null,null,null,null,null,null,"IMÓVEL "]
["",null,null,null,null,null,null,null,null,null,null,null,null,null,null,null,null,null,null,null,null,null,null,null,null,null,null,null,null,null,null,null,null,null,null,null,null,null,null,null,"",null,null,null,null,null,null,null,null,null,null,null,null,null,null,null,"IMÓVEL "]
["",null,null,null,null,null,null,null,null,null,null,null,null,null,null,null,null,null,null,null,null,null,null,null,null,null,null,null,null,null,null,null,null,null,null,null,null,null,null,null,"",null,null,null,null,null,null,null,null,null,null,null,null,null,null,null,"IMÓVEL "]
["",null,null,null,null,null,null,null,null,null,null,null,null,null,null,null,null,null,null,null,null,null,null,null,null,null,null,null,null,null,null,null,null,null,null,null,null,null,null,null,"",null,null,null,null,null,null,null,null,null,null,null,null,null,null,null,"IMÓVEL "]
["",null,null,null,null,null,null,null,null,null,null,null,null,null,null,null,null,null,null,null,null,null,null,null,null,null,null,null,null,null,null,null,null,null,null,null,null,null,null,null,"",null,null,null,null,null,null,null,null,null,null,null,null,null,null,null,"IMÓVEL "]
["",null,null,null,null,null,null,null,null,null,null,null,null,null,null,null,null,null,null,null,null,null,null,null,null,null,null,null,null,null,null,null,null,null,null,null,null,null,null,null,"",null,null,null,null,null,null,null,null,null,null,null,null,null,null,null,"IMÓVEL "]
["",null,null,null,null,null,null,null,null,null,null,null,null,null,null,null,null,null,null,null,null,null,null,null,null,null,null,null,null,null,null,null,null,null,null,null,null,null,null,null,"",null,null,null,null,null,null,null,null,null,null,null,null,null,null,null,"IMÓVEL "]
["",null,null,null,null,null,null,null,null,null,null,null,null,null,null,null,null,null,null,null,null,null,null,null,null,null,null,null,null,null,null,null,null,null,null,null,null,null,null,null,"",null,null,null,null,null,null,null,null,null,null,null,null,null,null,null,"IMÓVEL "]
["",null,null,null,null,null,null,null,null,null,null,null,null,null,null,null,null,null,null,null,null,null,null,null,null,null,null,null,null,null,null,null,null,null,null,null,null,null,null,null,"",null,null,null,null,null,null,null,null,null,null,null,null,null,null,null,"IMÓVEL "]
["",null,null,null,null,null,null,null,null,null,null,null,null,null,null,null,null,null,null,null,null,null,null,null,null,null,null,null,null,null,null,null,null,null,null,null,null,null,null,null,"",null,null,null,null,null,null,null,null,null,null,null,null,null,null,null,{"$f":"_xlfn.CONCAT(\"IMÓVEL \",A29)","v":"IMÓVEL "}]
["",null,null,null,null,null,null,null,null,null,null,null,null,null,null,null,null,null,null,null,null,null,null,null,null,null,null,null,null,null,null,null,null,null,null,null,null,null,null,null,"",null,null,null,null,null,null,null,null,null,null,null,null,null,null,null,"IMÓVEL "]
["",null,null,null,null,null,null,null,null,null,null,null,null,null,null,null,null,null,null,null,null,null,null,null,null,null,null,null,null,null,null,null,null,null,null,null,null,null,null,null,"",null,null,null,null,null,null,null,null,null,null,null,null,null,null,null,"IMÓVEL "]
["",null,null,null,null,null,null,null,null,null,null,null,null,null,null,null,null,null,null,null,null,null,null,null,null,null,null,null,null,null,null,null,null,null,null,null,null,null,null,null,"",null,null,null,null,null,null,null,null,null,null,null,null,null,null,null,"IMÓVEL "]
["",null,null,null,null,null,null,null,null,null,null,null,null,null,null,null,null,null,null,null,null,null,null,null,null,null,null,null,null,null,null,null,null,null,null,null,null,null,null,null,"",null,null,null,null,null,null,null,null,null,null,null,null,null,null,null,"IMÓVEL "]
["",null,null,null,null,null,null,null,null,null,null,null,null,null,null,null,null,null,null,null,null,null,null,null,null,null,null,null,null,null,null,null,null,null,null,null,null,null,null,null,"",null,null,null,null,null,null,null,null,null,null,null,null,null,null,null,"IMÓVEL "]
["",null,null,null,null,null,null,null,null,null,null,null,null,null,null,null,null,null,null,null,null,null,null,null,null,null,null,null,null,null,null,null,null,null,null,null,null,null,null,null,"",null,null,null,null,null,null,null,null,null,null,null,null,null,null,null,"IMÓVEL "]
["",null,null,null,null,null,null,null,null,null,null,null,null,null,null,null,null,null,null,null,null,null,null,null,null,null,null,null,null,null,null,null,null,null,null,null,null,null,null,null,"",null,null,null,null,null,null,null,null,null,null,null,null,null,null,null,"IMÓVEL "]
["",null,null,null,null,null,null,null,null,null,null,null,null,null,null,null,null,null,null,null,null,null,null,null,null,null,null,null,null,null,null,null,null,null,null,null,null,null,null,null,"",null,null,null,null,null,null,null,null,null,null,null,null,null,null,null,"IMÓVEL "]
["",null,null,null,null,null,null,null,null,null,null,null,null,null,null,null,null,null,null,null,null,null,null,null,null,null,null,null,null,null,null,null,null,null,null,null,null,null,null,null,"",null,null,null,null,null,null,null,null,null,null,null,null,null,null,null,"IMÓVEL "]
["",null,null,null,null,null,null,null,null,null,null,null,null,null,null,null,null,null,null,null,null,null,null,null,null,null,null,null,null,null,null,null,null,null,null,null,null,null,null,null,"",null,null,null,null,null,null,null,null,null,null,null,null,null,null,null,"IMÓVEL "]
["",null,null,null,null,null,null,null,null,null,null,null,null,null,null,null,null,null,null,null,null,null,null,null,null,null,null,null,null,null,null,null,null,null,null,null,null,null,null,null,"",null,null,null,null,null,null,null,null,null,null,null,null,null,null,null,"IMÓVEL "]
["",null,null,null,null,null,null,null,null,null,null,null,null,null,null,null,null,null,null,null,null,null,null,null,null,null,null,null,null,null,null,null,null,null,null,null,null,null,null,null,"",null,null,null,null,null,null,null,null,null,null,null,null,null,null,null,"IMÓVEL "]
["",null,null,null,null,null,null,null,null,null,null,null,null,null,null,null,null,null,null,null,null,null,null,null,null,null,null,null,null,null,null,null,null,null,null,null,null,null,null,null,"",null,null,null,null,null,null,null,null,null,null,null,null,null,null,null,"IMÓVEL "]
["",null,null,null,null,null,null,null,null,null,null,null,null,null,null,null,null,null,null,null,null,null,null,null,null,null,null,null,null,null,null,null,null,null,null,null,null,null,null,null,"",null,null,null,null,null,null,null,null,null,null,null,null,null,null,null,"IMÓVEL "]
["",null,null,null,null,null,null,null,null,null,null,null,null,null,null,null,null,null,null,null,null,null,null,null,null,null,null,null,null,null,null,null,null,null,null,null,null,null,null,null,"",null,null,null,null,null,null,null,null,null,null,null,null,null,null,null,"IMÓVEL "]
["",null,null,null,null,null,null,null,null,null,null,null,null,null,null,null,null,null,null,null,null,null,null,null,null,null,null,null,null,null,null,null,null,null,null,null,null,null,null,null,"",null,null,null,null,null,null,null,null,null,null,null,null,null,null,null,"IMÓVEL "]
["",null,null,null,null,null,null,null,null,null,null,null,null,null,null,null,null,null,null,null,null,null,null,null,null,null,null,null,null,null,null,null,null,null,null,null,null,null,null,null,"",null,null,null,null,null,null,null,null,null,null,null,null,null,null,null,"IMÓVEL "]
["",null,null,null,null,null,null,null,null,null,null,null,null,null,null,null,null,null,null,null,null,null,null,null,null,null,null,null,null,null,null,null,null,null,null,null,null,null,null,null,"",null,null,null,null,null,null,null,null,null,null,null,null,null,null,null,"IMÓVEL "]
["",null,null,null,null,null,null,null,null,null,null,null,null,null,null,null,null,null,null,null,null,null,null,null,null,null,null,null,null,null,null,null,null,null,null,null,null,null,null,null,"",null,null,null,null,null,null,null,null,null,null,null,null,null,null,null,"IMÓVEL "]
["",null,null,null,null,null,null,null,null,null,null,null,null,null,null,null,null,null,null,null,null,null,null,null,null,null,null,null,null,null,null,null,null,null,null,null,null,null,null,null,"",null,null,null,null,null,null,null,null,null,null,null,null,null,null,null,"IMÓVEL "]
["",null,null,null,null,null,null,null,null,null,null,null,null,null,null,null,null,null,null,null,null,null,null,null,null,null,null,null,null,null,null,null,null,null,null,null,null,null,null,null,"",null,null,null,null,null,null,null,null,null,null,null,null,null,null,null,"IMÓVEL "]
["",null,null,null,null,null,null,null,null,null,null,null,null,null,null,null,null,null,null,null,null,null,null,null,null,null,null,null,null,null,null,null,null,null,null,null,null,null,null,null,"",null,null,null,null,null,null,null,null,null,null,null,null,null,null,null,"IMÓVEL "]
["",null,null,null,null,null,null,null,null,null,null,null,null,null,null,null,null,null,null,null,null,null,null,null,null,null,null,null,null,null,null,null,null,null,null,null,null,null,null,null,"",null,null,null,null,null,null,null,null,null,null,null,null,null,null,null,"IMÓVEL "]
["",null,null,null,null,null,null,null,null,null,null,null,null,null,null,null,null,null,null,null,null,null,null,null,null,null,null,null,null,null,null,null,null,null,null,null,null,null,null,null,"",null,null,null,null,null,null,null,null,null,null,null,null,null,null,null,"IMÓVEL "]
["",null,null,null,null,null,null,null,null,null,null,null,null,null,null,null,null,null,null,null,null,null,null,null,null,null,null,null,null,null,null,null,null,null,null,null,null,null,null,null,"",null,null,null,null,null,null,null,null,null,null,null,null,null,null,null,"IMÓVEL "]
["",null,null,null,null,null,null,null,null,null,null,null,null,null,null,null,null,null,null,null,null,null,null,null,null,null,null,null,null,null,null,null,null,null,null,null,null,null,null,null,"",null,null,null,null,null,null,null,null,null,null,null,null,null,null,null,"IMÓVEL "]
["",null,null,null,null,null,null,null,null,null,null,null,null,null,null,null,null,null,null,null,null,null,null,null,null,null,null,null,null,null,null,null,null,null,null,null,null,null,null,null,"",null,null,null,null,null,null,null,null,null,null,null,null,null,null,null,"IMÓVEL "]
["",null,null,null,null,null,null,null,null,null,null,null,null,null,null,null,null,null,null,null,null,null,null,null,null,null,null,null,null,null,null,null,null,null,null,null,null,null,null,null,"",null,null,null,null,null,null,null,null,null,null,null,null,null,null,null,"IMÓVEL "]
["",null,null,null,null,null,null,null,null,null,null,null,null,null,null,null,null,null,null,null,null,null,null,null,null,null,null,null,null,null,null,null,null,null,null,null,null,null,null,null,"",null,null,null,null,null,null,null,null,null,null,null,null,null,null,null,"IMÓVEL "]
["",null,null,null,null,null,null,null,null,null,null,null,null,null,null,null,null,null,null,null,null,null,null,null,null,null,null,null,null,null,null,null,null,null,null,null,null,null,null,null,"",null,null,null,null,null,null,null,null,null,null,null,null,null,null,null,"IMÓVEL "]
["",null,null,null,null,null,null,null,null,null,null,null,null,null,null,null,null,null,null,null,null,null,null,null,null,null,null,null,null,null,null,null,null,null,null,null,null,null,null,null,"",null,null,null,null,null,null,null,null,null,null,null,null,null,null,null,"IMÓVEL "]
["",null,null,null,null,null,null,null,null,null,null,null,null,null,null,null,null,null,null,null,null,null,null,null,null,null,null,null,null,null,null,null,null,null,null,null,null,null,null,null,"",null,null,null,null,null,null,null,null,null,null,null,null,null,null,null,"IMÓVEL "]
["",null,null,null,null,null,null,null,null,null,null,null,null,null,null,null,null,null,null,null,null,null,null,null,null,null,null,null,null,null,null,null,null,null,null,null,null,null,null,null,"",null,null,null,null,null,null,null,null,null,null,null,null,null,null,null,"IMÓVEL "]
["",null,null,null,null,null,null,null,null,null,null,null,null,null,null,null,null,null,null,null,null,null,null,null,null,null,null,null,null,null,null,null,null,null,null,null,null,null,null,null,"",null,null,null,null,null,null,null,null,null,null,null,null,null,null,null,"IMÓVEL "]
["",null,null,null,null,null,null,null,null,null,null,null,null,null,null,null,null,null,null,null,null,null,null,null,null,null,null,null,null,null,null,null,null,null,null,null,null,null,null,null,"",null,null,null,null,null,null,null,null,null,null,null,null,null,null,null,"IMÓVEL "]
["",null,null,null,null,null,null,null,null,null,null,null,null,null,null,null,null,null,null,null,null,null,null,null,null,null,null,null,null,null,null,null,null,null,null,null,null,null,null,null,"",null,null,null,null,null,null,null,null,null,null,null,null,null,null,null,"IMÓVEL "]
["",null,null,null,null,null,null,null,null,null,null,null,null,null,null,null,null,null,null,null,null,null,null,null,null,null,null,null,null,null,null,null,null,null,null,null,null,null,null,null,"",null,null,null,null,null,null,null,null,null,null,null,null,null,null,null,"IMÓVEL "]
["",null,null,null,null,null,null,null,null,null,null,null,null,null,null,null,null,null,null,null,null,null,null,null,null,null,null,null,null,null,null,null,null,null,null,null,null,null,null,null,"",null,null,null,null,null,null,null,null,null,null,null,null,null,null,null,"IMÓVEL "]
["",null,null,null,null,null,null,null,null,null,null,null,null,null,null,null,null,null,null,null,null,null,null,null,null,null,null,null,null,null,null,null,null,null,null,null,null,null,null,null,"",null,null,null,null,null,null,null,null,null,null,null,null,null,null,null,"IMÓVEL "]
["",null,null,null,null,null,null,null,null,null,null,null,null,null,null,null,null,null,null,null,null,null,null,null,null,null,null,null,null,null,null,null,null,null,null,null,null,null,null,null,"",null,null,null,null,null,null,null,null,null,null,null,null,null,null,null,"IMÓVEL "]
["",null,null,null,null,null,null,null,null,null,null,null,null,null,null,null,null,null,null,null,null,null,null,null,null,null,null,null,null,null,null,null,null,null,null,null,null,null,null,null,"",null,null,null,null,null,null,null,null,null,null,null,null,null,null,null,"IMÓVEL "]
["",null,null,null,null,null,null,null,null,null,null,null,null,null,null,null,null,null,null,null,null,null,null,null,null,null,null,null,null,null,null,null,null,null,null,null,null,null,null,null,"",null,null,null,null,null,null,null,null,null,null,null,null,null,null,null,{"$f":"_xlfn.CONCAT(\"IMÓVEL \",A71)","v":"IMÓVEL "}]
["",null,null,null,null,null,null,null,null,null,null,null,null,null,null,null,null,null,null,null,null,null,null,null,null,null,null,null,null,null,null,null,null,null,null,null,null,null,null,null,"",null,null,null,null,null,null,null,null,null,null,null,null,null,null,null,"IMÓVEL "]
["",null,null,null,null,null,null,null,null,null,null,null,null,null,null,null,null,null,null,null,null,null,null,null,null,null,null,null,null,null,null,null,null,null,null,null,null,null,null,null,"",null,null,null,null,null,null,null,null,null,null,null,null,null,null,null,"IMÓVEL "]
["",null,null,null,null,null,null,null,null,null,null,null,null,null,null,null,null,null,null,null,null,null,null,null,null,null,null,null,null,null,null,null,null,null,null,null,null,null,null,null,"",null,null,null,null,null,null,null,null,null,null,null,null,null,null,null,"IMÓVEL "]
["",null,null,null,null,null,null,null,null,null,null,null,null,null,null,null,null,null,null,null,null,null,null,null,null,null,null,null,null,null,null,null,null,null,null,null,null,null,null,null,{"$f":"IF(OR(AH75=\"\",AK75=\"\"),\"\",AK75*AH75)","v":""},null,null,null,null,null,null,null,null,null,null,null,null,null,null,null,"IMÓVEL "]
[{"$f":"IF(C76<>\"\",1+A75,\"\")","v":""},null,null,null,null,null,null,null,null,null,null,null,null,null,null,null,null,null,null,null,null,null,null,null,null,null,null,null,null,null,null,null,null,null,null,null,null,null,null,null,"",null,null,null,null,null,null,null,null,null,null,null,null,null,null,null,"IMÓVEL "]
["",null,null,null,null,null,null,null,null,null,null,null,null,null,null,null,null,null,null,null,null,null,null,null,null,null,null,null,null,null,null,null,null,null,null,null,null,null,null,null,"",null,null,null,null,null,null,null,null,null,null,null,null,null,null,null,"IMÓVEL "]
["",null,null,null,null,null,null,null,null,null,null,null,null,null,null,null,null,null,null,null,null,null,null,null,null,null,null,null,null,null,null,null,null,null,null,null,null,null,null,null,"",null,null,null,null,null,null,null,null,null,null,null,null,null,null,null,"IMÓVEL "]
["",null,null,null,null,null,null,null,null,null,null,null,null,null,null,null,null,null,null,null,null,null,null,null,null,null,null,null,null,null,null,null,null,null,null,null,null,null,null,null,"",null,null,null,null,null,null,null,null,null,null,null,null,null,null,null,"IMÓVEL "]
["",null,null,null,null,null,null,null,null,null,null,null,null,null,null,null,null,null,null,null,null,null,null,null,null,null,null,null,null,null,null,null,null,null,null,null,null,null,null,null,"",null,null,null,null,null,null,null,null,null,null,null,null,null,null,null,"IMÓVEL "]
["",null,null,null,null,null,null,null,null,null,null,null,null,null,null,null,null,null,null,null,null,null,null,null,null,null,null,null,null,null,null,null,null,null,null,null,null,null,null,null,"",null,null,null,null,null,null,null,null,null,null,null,null,null,null,null,"IMÓVEL "]
["",null,null,null,null,null,null,null,null,null,null,null,null,null,null,null,null,null,null,null,null,null,null,null,null,null,null,null,null,null,null,null,null,null,null,null,null,null,null,null,"",null,null,null,null,null,null,null,null,null,null,null,null,null,null,null,"IMÓVEL "]
["",null,null,null,null,null,null,null,null,null,null,null,null,null,null,null,null,null,null,null,null,null,null,null,null,null,null,null,null,null,null,null,null,null,null,null,null,null,null,null,"",null,null,null,null,null,null,null,null,null,null,null,null,null,null,null,"IMÓVEL "]
["",null,null,null,null,null,null,null,null,null,null,null,null,null,null,null,null,null,null,null,null,null,null,null,null,null,null,null,null,null,null,null,null,null,null,null,null,null,null,null,"",null,null,null,null,null,null,null,null,null,null,null,null,null,null,null,"IMÓVEL "]
["",null,null,null,null,null,null,null,null,null,null,null,null,null,null,null,null,null,null,null,null,null,null,null,null,null,null,null,null,null,null,null,null,null,null,null,null,null,null,null,"",null,null,null,null,null,null,null,null,null,null,null,null,null,null,null,"IMÓVEL "]
["",null,null,null,null,null,null,null,null,null,null,null,null,null,null,null,null,null,null,null,null,null,null,null,null,null,null,null,null,null,null,null,null,null,null,null,null,null,null,null,"",null,null,null,null,null,null,null,null,null,null,null,null,null,null,null,"IMÓVEL "]
["",null,null,null,null,null,null,null,null,null,null,null,null,null,null,null,null,null,null,null,null,null,null,null,null,null,null,null,null,null,null,null,null,null,null,null,null,null,null,null,"",null,null,null,null,null,null,null,null,null,null,null,null,null,null,null,"IMÓVEL "]
["",null,null,null,null,null,null,null,null,null,null,null,null,null,null,null,null,null,null,null,null,null,null,null,null,null,null,null,null,null,null,null,null,null,null,null,null,null,null,null,"",null,null,null,null,null,null,null,null,null,null,null,null,null,null,null,"IMÓVEL "]
["",null,null,null,null,null,null,null,null,null,null,null,null,null,null,null,null,null,null,null,null,null,null,null,null,null,null,null,null,null,null,null,null,null,null,null,null,null,null,null,"",null,null,null,null,null,null,null,null,null,null,null,null,null,null,null,"IMÓVEL "]
["",null,null,null,null,null,null,null,null,null,null,null,null,null,null,null,null,null,null,null,null,null,null,null,null,null,null,null,null,null,null,null,null,null,null,null,null,null,null,null,"",null,null,null,null,null,null,null,null,null,null,null,null,null,null,null,"IMÓVEL "]
["",null,null,null,null,null,null,null,null,null,null,null,null,null,null,null,null,null,null,null,null,null,null,null,null,null,null,null,null,null,null,null,null,null,null,null,null,null,null,null,"",null,null,null,null,null,null,null,null,null,null,null,null,null,null,null,{"$f":"_xlfn.CONCAT(\"IMÓVEL \",A91)","v":"IMÓVEL "}]
["",null,null,null,null,null,null,null,null,null,null,null,null,null,null,null,null,null,null,null,null,null,null,null,null,null,null,null,null,null,null,null,null,null,null,null,null,null,null,null,"",null,null,null,null,null,null,null,null,null,null,null,null,null,null,null,"IMÓVEL "]
["",null,null,null,null,null,null,null,null,null,null,null,null,null,null,null,null,null,null,null,null,null,null,null,null,null,null,null,null,null,null,null,null,null,null,null,null,null,null,null,"",null,null,null,null,null,null,null,null,null,null,null,null,null,null,null,"IMÓVEL "]
["",null,null,null,null,null,null,null,null,null,null,null,null,null,null,null,null,null,null,null,null,null,null,null,null,null,null,null,null,null,null,null,null,null,null,null,null,null,null,null,"",null,null,null,null,null,null,null,null,null,null,null,null,null,null,null,"IMÓVEL "]
["",null,null,null,null,null,null,null,null,null,null,null,null,null,null,null,null,null,null,null,null,null,null,null,null,null,null,null,null,null,null,null,null,null,null,null,null,null,null,null,"",null,null,null,null,null,null,null,null,null,null,null,null,null,null,null,"IMÓVEL "]
["",null,null,null,null,null,null,null,null,null,null,null,null,null,null,null,null,null,null,null,null,null,null,null,null,null,null,null,null,null,null,null,null,null,null,null,null,null,null,null,"",null,null,null,null,null,null,null,null,null,null,null,null,null,null,null,"IMÓVEL "]
["",null,null,null,null,null,null,null,null,null,null,null,null,null,null,null,null,null,null,null,null,null,null,null,null,null,null,null,null,null,null,null,null,null,null,null,null,null,null,null,"",null,null,null,null,null,null,null,null,null,null,null,null,null,null,null,"IMÓVEL "]
["",null,null,null,null,null,null,null,null,null,null,null,null,null,null,null,null,null,null,null,null,null,null,null,null,null,null,null,null,null,null,null,null,null,null,null,null,null,null,null,"",null,null,null,null,null,null,null,null,null,null,null,null,null,null,null,"IMÓVEL "]
["",null,null,null,null,null,null,null,null,null,null,null,null,null,null,null,null,null,null,null,null,null,null,null,null,null,null,null,null,null,null,null,null,null,null,null,null,null,null,null,"",null,null,null,null,null,null,null,null,null,null,null,null,null,null,null,"IMÓVEL "]
["",null,null,null,null,null,null,null,null,null,null,null,null,null,null,null,null,null,null,null,null,null,null,null,null,null,null,null,null,null,null,null,null,null,null,null,null,null,null,null,"",null,null,null,null,null,null,null,null,null,null,null,null,null,null,null,"IMÓVEL "]
["",null,null,null,null,null,null,null,null,null,null,null,null,null,null,null,null,null,null,null,null,null,null,null,null,null,null,null,null,null,null,null,null,null,null,null,null,null,null,null,"",null,null,null,null,null,null,null,null,null,null,null,null,null,null,null,"IMÓVEL "]
["",null,null,null,null,null,null,null,null,null,null,null,null,null,null,null,null,null,null,null,null,null,null,null,null,null,null,null,null,null,null,null,null,null,null,null,null,null,null,null,"",null,null,null,null,null,null,null,null,null,null,null,null,null,null,null,"IMÓVEL "]
["",null,null,null,null,null,null,null,null,null,null,null,null,null,null,null,null,null,null,null,null,null,null,null,null,null,null,null,null,null,null,null,null,null,null,null,null,null,null,null,"",null,null,null,null,null,null,null,null,null,null,null,null,null,null,null,"IMÓVEL "]
["",null,null,null,null,null,null,null,null,null,null,null,null,null,null,null,null,null,null,null,null,null,null,null,null,null,null,null,null,null,null,null,null,null,null,null,null,null,null,null,"",null,null,null,null,null,null,null,null,null,null,null,null,null,null,null,"IMÓVEL "]
["",null,null,null,null,null,null,null,null,null,null,null,null,null,null,null,null,null,null,null,null,null,null,null,null,null,null,null,null,null,null,null,null,null,null,null,null,null,null,null,"",null,null,null,null,null,null,null,null,null,null,null,null,null,null,null,"IMÓVEL "]
["",null,null,null,null,null,null,null,null,null,null,null,null,null,null,null,null,null,null,null,null,null,null,null,null,null,null,null,null,null,null,null,null,null,null,null,null,null,null,null,"",null,null,null,null,null,null,null,null,null,null,null,null,null,null,null,"IMÓVEL "]
["",null,null,null,null,null,null,null,null,null,null,null,null,null,null,null,null,null,null,null,null,null,null,null,null,null,null,null,null,null,null,null,null,null,null,null,null,null,null,null,"",null,null,null,null,null,null,null,null,null,null,null,null,null,null,null,"IMÓVEL "]
["",null,null,null,null,null,null,null,null,null,null,null,null,null,null,null,null,null,null,null,null,null,null,null,null,null,null,null,null,null,null,null,null,null,null,null,null,null,null,null,"",null,null,null,null,null,null,null,null,null,null,null,null,null,null,null,"IMÓVEL "]
["",null,null,null,null,null,null,null,null,null,null,null,null,null,null,null,null,null,null,null,null,null,null,null,null,null,null,null,null,null,null,null,null,null,null,null,null,null,null,null,"",null,null,null,null,null,null,null,null,null,null,null,null,null,null,null,"IMÓVEL "]
["TOTAL",null,null,null,null,null,null,null,null,null,null,null,null,null,null,null,null,null,null,null,null,null,null,null,null,null,null,null,null,null,null,null,null,null,null,null,null,null,null,null,{"$f":"IF(SUM(AO10:AS109)=0,\"-\",SUM(AO10:AS109))","v":"-"}]
["BENFEITORIAS"]
["IMÓVEL REF",null,null,null,null,"DESCRIÇÃO",null,null,null,null,null,null,null,null,null,null,null,null,null,null,null,null,null,null,null,null,null,null,null,"QTDE",null,null,null,"VALOR UNITÁRIO (R$)",null,null,null,null,null,"VALOR TOTAL\n(R$)"]
[null,null,null,null,null,null,null,null,null,null,null,null,null,null,null,null,null,null,null,null,null,null,null,null,null,null,null,null,null,null,null,null,null,null,null,null,null,null,null,{"$f":"IF(OR(AD113=\"\",AH113=\"\"),\"\",AH113*AD113)","v":""},null,null,null,null,null,null,{"$f":"SUM(AV113:AV162)","v":1},1]
[null,null,null,null,null,null,null,null,null,null,null,null,null,null,null,null,null,null,null,null,null,null,null,null,null,null,null,null,null,null,null,null,null,null,null,null,null,null,null,{"$f":"IF(OR(AD114=\"\",AH114=\"\"),\"\",AH114*AD114)","v":""}]
[null,null,null,null,null,null,null,null,null,null,null,null,null,null,null,null,null,null,null,null,null,null,null,null,null,null,null,null,null,null,null,null,null,null,null,null,null,null,null,""]
[null,null,null,null,null,null,null,null,null,null,null,null,null,null,null,null,null,null,null,null,null,null,null,null,null,null,null,null,null,null,null,null,null,null,null,null,null,null,null,""]
[null,null,null,null,null,null,null,null,null,null,null,null,null,null,null,null,null,null,null,null,null,null,null,null,null,null,null,null,null,null,null,null,null,null,null,null,null,null,null,""]
[null,null,null,null,null,null,null,null,null,null,null,null,null,null,null,null,null,null,null,null,null,null,null,null,null,null,null,null,null,null,null,null,null,null,null,null,null,null,null,""]
[null,null,null,null,null,null,null,null,null,null,null,null,null,null,null,null,null,null,null,null,null,null,null,null,null,null,null,null,null,null,null,null,null,null,null,null,null,null,null,""]
[null,null,null,null,null,null,null,null,null,null,null,null,null,null,null,null,null,null,null,null,null,null,null,null,null,null,null,null,null,null,null,null,null,null,null,null,null,null,null,{"$f":"IF(OR(AD120=\"\",AH120=\"\"),\"\",AH120*AD120)","v":""}]
[null,null,null,null,null,null,null,null,null,null,null,null,null,null,null,null,null,null,null,null,null,null,null,null,null,null,null,null,null,null,null,null,null,null,null,null,null,null,null,""]
[null,null,null,null,null,null,null,null,null,null,null,null,null,null,null,null,null,null,null,null,null,null,null,null,null,null,null,null,null,null,null,null,null,null,null,null,null,null,null,""]
[null,null,null,null,null,null,null,null,null,null,null,null,null,null,null,null,null,null,null,null,null,null,null,null,null,null,null,null,null,null,null,null,null,null,null,null,null,null,null,""]
[null,null,null,null,null,null,null,null,null,null,null,null,null,null,null,null,null,null,null,null,null,null,null,null,null,null,null,null,null,null,null,null,null,null,null,null,null,null,null,""]
[null,null,null,null,null,null,null,null,null,null,null,null,null,null,null,null,null,null,null,null,null,null,null,null,null,null,null,null,null,null,null,null,null,null,null,null,null,null,null,""]
[null,null,null,null,null,null,null,null,null,null,null,null,null,null,null,null,null,null,null,null,null,null,null,null,null,null,null,null,null,null,null,null,null,null,null,null,null,null,null,""]
[null,null,null,null,null,null,null,null,null,null,null,null,null,null,null,null,null,null,null,null,null,null,null,null,null,null,null,null,null,null,null,null,null,null,null,null,null,null,null,""]
[null,null,null,null,null,null,null,null,null,null,null,null,null,null,null,null,null,null,null,null,null,null,null,null,null,null,null,null,null,null,null,null,null,null,null,null,null,null,null,""]
[null,null,null,null,null,null,null,null,null,null,null,null,null,null,null,null,null,null,null,null,null,null,null,null,null,null,null,null,null,null,null,null,null,null,null,null,null,null,null,""]
[null,null,null,null,null,null,null,null,null,null,null,null,null,null,null,null,null,null,null,null,null,null,null,null,null,null,null,null,null,null,null,null,null,null,null,null,null,null,null,""]
[null,null,null,null,null,null,null,null,null,null,null,null,null,null,null,null,null,null,null,null,null,null,null,null,null,null,null,null,null,null,null,null,null,null,null,null,null,null,null,""]
[null,null,null,null,null,null,null,null,null,null,null,null,null,null,null,null,null,null,null,null,null,null,null,null,null,null,null,null,null,null,null,null,null,null,null,null,null,null,null,""]
[null,null,null,null,null,null,null,null,null,null,null,null,null,null,null,null,null,null,null,null,null,null,null,null,null,null,null,null,null,null,null,null,null,null,null,null,null,null,null,""]
[null,null,null,null,null,null,null,null,null,null,null,null,null,null,null,null,null,null,null,null,null,null,null,null,null,null,null,null,null,null,null,null,null,null,null,null,null,null,null,""]
[null,null,null,null,null,null,null,null,null,null,null,null,null,null,null,null,null,null,null,null,null,null,null,null,null,null,null,null,null,null,null,null,null,null,null,null,null,null,null,""]
[null,null,null,null,null,null,null,null,null,null,null,null,null,null,null,null,null,null,null,null,null,null,null,null,null,null,null,null,null,null,null,null,null,null,null,null,null,null,null,""]
[null,null,null,null,null,null,null,null,null,null,null,null,null,null,null,null,null,null,null,null,null,null,null,null,null,null,null,null,null,null,null,null,null,null,null,null,null,null,null,""]
[null,null,null,null,null,null,null,null,null,null,null,null,null,null,null,null,null,null,null,null,null,null,null,null,null,null,null,null,null,null,null,null,null,null,null,null,null,null,null,""]
[null,null,null,null,null,null,null,null,null,null,null,null,null,null,null,null,null,null,null,null,null,null,null,null,null,null,null,null,null,null,null,null,null,null,null,null,null,null,null,""]
[null,null,null,null,null,null,null,null,null,null,null,null,null,null,null,null,null,null,null,null,null,null,null,null,null,null,null,null,null,null,null,null,null,null,null,null,null,null,null,{"$f":"IF(OR(AD140=\"\",AH140=\"\"),\"\",AH140*AD140)","v":""}]
[null,null,null,null,null,null,null,null,null,null,null,null,null,null,null,null,null,null,null,null,null,null,null,null,null,null,null,null,null,null,null,null,null,null,null,null,null,null,null,""]
[null,null,null,null,null,null,null,null,null,null,null,null,null,null,null,null,null,null,null,null,null,null,null,null,null,null,null,null,null,null,null,null,null,null,null,null,null,null,null,""]
[null,null,null,null,null,null,null,null,null,null,null,null,null,null,null,null,null,null,null,null,null,null,null,null,null,null,null,null,null,null,null,null,null,null,null,null,null,null,null,""]
[null,null,null,null,null,null,null,null,null,null,null,null,null,null,null,null,null,null,null,null,null,null,null,null,null,null,null,null,null,null,null,null,null,null,null,null,null,null,null,""]
[null,null,null,null,null,null,null,null,null,null,null,null,null,null,null,null,null,null,null,null,null,null,null,null,null,null,null,null,null,null,null,null,null,null,null,null,null,null,null,""]
[null,null,null,null,null,null,null,null,null,null,null,null,null,null,null,null,null,null,null,null,null,null,null,null,null,null,null,null,null,null,null,null,null,null,null,null,null,null,null,""]
[null,null,null,null,null,null,null,null,null,null,null,null,null,null,null,null,null,null,null,null,null,null,null,null,null,null,null,null,null,null,null,null,null,null,null,null,null,null,null,""]
[null,null,null,null,null,null,null,null,null,null,null,null,null,null,null,null,null,null,null,null,null,null,null,null,null,null,null,null,null,null,null,null,null,null,null,null,null,null,null,""]
[null,null,null,null,null,null,null,null,null,null,null,null,null,null,null,null,null,null,null,null,null,null,null,null,null,null,null,null,null,null,null,null,null,null,null,null,null,null,null,""]
[null,null,null,null,null,null,null,null,null,null,null,null,null,null,null,null,null,null,null,null,null,null,null,null,null,null,null,null,null,null,null,null,null,null,null,null,null,null,null,""]
[null,null,null,null,null,null,null,null,null,null,null,null,null,null,null,null,null,null,null,null,null,null,null,null,null,null,null,null,null,null,null,null,null,null,null,null,null,null,null,""]
[null,null,null,null,null,null,null,null,null,null,null,null,null,null,null,null,null,null,null,null,null,null,null,null,null,null,null,null,null,null,null,null,null,null,null,null,null,null,null,""]
[null,null,null,null,null,null,null,null,null,null,null,null,null,null,null,null,null,null,null,null,null,null,null,null,null,null,null,null,null,null,null,null,null,null,null,null,null,null,null,""]
[null,null,null,null,null,null,null,null,null,null,null,null,null,null,null,null,null,null,null,null,null,null,null,null,null,null,null,null,null,null,null,null,null,null,null,null,null,null,null,""]
[null,null,null,null,null,null,null,null,null,null,null,null,null,null,null,null,null,null,null,null,null,null,null,null,null,null,null,null,null,null,null,null,null,null,null,null,null,null,null,""]
[null,null,null,null,null,null,null,null,null,null,null,null,null,null,null,null,null,null,null,null,null,null,null,null,null,null,null,null,null,null,null,null,null,null,null,null,null,null,null,""]
[null,null,null,null,null,null,null,null,null,null,null,null,null,null,null,null,null,null,null,null,null,null,null,null,null,null,null,null,null,null,null,null,null,null,null,null,null,null,null,""]
[null,null,null,null,null,null,null,null,null,null,null,null,null,null,null,null,null,null,null,null,null,null,null,null,null,null,null,null,null,null,null,null,null,null,null,null,null,null,null,""]
[null,null,null,null,null,null,null,null,null,null,null,null,null,null,null,null,null,null,null,null,null,null,null,null,null,null,null,null,null,null,null,null,null,null,null,null,null,null,null,""]
[null,null,null,null,null,null,null,null,null,null,null,null,null,null,null,null,null,null,null,null,null,null,null,null,null,null,null,null,null,null,null,null,null,null,null,null,null,null,null,""]
[null,null,null,null,null,null,null,null,null,null,null,null,null,null,null,null,null,null,null,null,null,null,null,null,null,null,null,null,null,null,null,null,null,null,null,null,null,null,null,""]
[null,null,null,null,null,null,null,null,null,null,null,null,null,null,null,null,null,null,null,null,null,null,null,null,null,null,null,null,null,null,null,null,null,null,null,null,null,null,null,""]
["TOTAL",null,null,null,null,null,null,null,null,null,null,null,null,null,null,null,null,null,null,null,null,null,null,null,null,null,null,null,null,null,null,null,null,null,null,null,null,null,null,{"$f":"IF(SUM(AN113:AS162)=0,\"-\",SUM(AN113:AS162))","v":"-"}]
[]
["II - BENS MÓVEIS"]
[" VEÍCULOS, MÁQUINAS E EQUIPAMENTOS"]
["TIPO",null,null,null,null,null,"DESCRIÇÃO",null,null,null,null,null,null,null,null,null,null,null,null,null,null,null,null,null,null,null,null,null,null,null,"QTD",null,null,"VALOR UNITÁRIO (R$)",null,null,null,null,null,"VALOR TOTAL\n(R$)"]
["VEÍCULO",null,null,null,null,null,null,null,null,null,null,null,null,null,null,null,null,null,null,null,null,null,null,null,null,null,null,null,null,null,null,null,null,null,null,null,null,null,null,{"$f":"IF(AH168=\"\",\"\",AE168*AH168)","v":""},null,null,null,null,null,null,{"$f":"SUM(AV167:AV367)","v":1},1]
[null,null,null,null,null,null,null,null,null,null,null,null,null,null,null,null,null,null,null,null,null,null,null,null,null,null,null,null,null,null,null,null,null,null,null,null,null,null,null,{"$f":"IF(AH169=\"\",\"\",AE169*AH169)","v":""},null,null,null,null,null,null,null,null,1]
[null,null,null,null,null,null,null,null,null,null,null,null,null,null,null,null,null,null,null,null,null,null,null,null,null,null,null,null,null,null,null,null,null,null,null,null,null,null,null,"",null,null,null,null,null,null,null,null,null,null,null,null,1]
[null,null,null,null,null,null,null,null,null,null,null,null,null,null,null,null,null,null,null,null,null,null,null,null,null,null,null,null,null,null,null,null,null,null,null,null,null,null,null,""]
[null,null,null,null,null,null,null,null,null,null,null,null,null,null,null,null,null,null,null,null,null,null,null,null,null,null,null,null,null,null,null,null,null,null,null,null,null,null,null,""]
[null,null,null,null,null,null,null,null,null,null,null,null,null,null,null,null,null,null,null,null,null,null,null,null,null,null,null,null,null,null,null,null,null,null,null,null,null,null,null,""]
[null,null,null,null,null,null,null,null,null,null,null,null,null,null,null,null,null,null,null,null,null,null,null,null,null,null,null,null,null,null,null,null,null,null,null,null,null,null,null,""]
[null,null,null,null,null,null,null,null,null,null,null,null,null,null,null,null,null,null,null,null,null,null,null,null,null,null,null,null,null,null,null,null,null,null,null,null,null,null,null,{"$f":"IF(AH175=\"\",\"\",AE175*AH175)","v":""}]
[null,null,null,null,null,null,null,null,null,null,null,null,null,null,null,null,null,null,null,null,null,null,null,null,null,null,null,null,null,null,null,null,null,null,null,null,null,null,null,""]
[null,null,null,null,null,null,null,null,null,null,null,null,null,null,null,null,null,null,null,null,null,null,null,null,null,null,null,null,null,null,null,null,null,null,null,null,null,null,null,""]
[null,null,null,null,null,null,null,null,null,null,null,null,null,null,null,null,null,null,null,null,null,null,null,null,null,null,null,null,null,null,null,null,null,null,null,null,null,null,null,""]
[null,null,null,null,null,null,null,null,null,null,null,null,null,null,null,null,null,null,null,null,null,null,null,null,null,null,null,null,null,null,null,null,null,null,null,null,null,null,null,""]
[null,null,null,null,null,null,null,null,null,null,null,null,null,null,null,null,null,null,null,null,null,null,null,null,null,null,null,null,null,null,null,null,null,null,null,null,null,null,null,""]
[null,null,null,null,null,null,null,null,null,null,null,null,null,null,null,null,null,null,null,null,null,null,null,null,null,null,null,null,null,null,null,null,null,null,null,null,null,null,null,""]
[null,null,null,null,null,null,null,null,null,null,null,null,null,null,null,null,null,null,null,null,null,null,null,null,null,null,null,null,null,null,null,null,null,null,null,null,null,null,null,""]
[null,null,null,null,null,null,null,null,null,null,null,null,null,null,null,null,null,null,null,null,null,null,null,null,null,null,null,null,null,null,null,null,null,null,null,null,null,null,null,""]
[null,null,null,null,null,null,null,null,null,null,null,null,null,null,null,null,null,null,null,null,null,null,null,null,null,null,null,null,null,null,null,null,null,null,null,null,null,null,null,""]
[null,null,null,null,null,null,null,null,null,null,null,null,null,null,null,null,null,null,null,null,null,null,null,null,null,null,null,null,null,null,null,null,null,null,null,null,null,null,null,""]
[null,null,null,null,null,null,null,null,null,null,null,null,null,null,null,null,null,null,null,null,null,null,null,null,null,null,null,null,null,null,null,null,null,null,null,null,null,null,null,""]
[null,null,null,null,null,null,null,null,null,null,null,null,null,null,null,null,null,null,null,null,null,null,null,null,null,null,null,null,null,null,null,null,null,null,null,null,null,null,null,""]
[null,null,null,null,null,null,null,null,null,null,null,null,null,null,null,null,null,null,null,null,null,null,null,null,null,null,null,null,null,null,null,null,null,null,null,null,null,null,null,""]
[null,null,null,null,null,null,null,null,null,null,null,null,null,null,null,null,null,null,null,null,null,null,null,null,null,null,null,null,null,null,null,null,null,null,null,null,null,null,null,""]
[null,null,null,null,null,null,null,null,null,null,null,null,null,null,null,null,null,null,null,null,null,null,null,null,null,null,null,null,null,null,null,null,null,null,null,null,null,null,null,""]
[null,null,null,null,null,null,null,null,null,null,null,null,null,null,null,null,null,null,null,null,null,null,null,null,null,null,null,null,null,null,null,null,null,null,null,null,null,null,null,""]
[null,null,null,null,null,null,null,null,null,null,null,null,null,null,null,null,null,null,null,null,null,null,null,null,null,null,null,null,null,null,null,null,null,null,null,null,null,null,null,""]
[null,null,null,null,null,null,null,null,null,null,null,null,null,null,null,null,null,null,null,null,null,null,null,null,null,null,null,null,null,null,null,null,null,null,null,null,null,null,null,""]
[null,null,null,null,null,null,null,null,null,null,null,null,null,null,null,null,null,null,null,null,null,null,null,null,null,null,null,null,null,null,null,null,null,null,null,null,null,null,null,""]
[null,null,null,null,null,null,null,null,null,null,null,null,null,null,null,null,null,null,null,null,null,null,null,null,null,null,null,null,null,null,null,null,null,null,null,null,null,null,null,""]
[null,null,null,null,null,null,null,null,null,null,null,null,null,null,null,null,null,null,null,null,null,null,null,null,null,null,null,null,null,null,null,null,null,null,null,null,null,null,null,""]
[null,null,null,null,null,null,null,null,null,null,null,null,null,null,null,null,null,null,null,null,null,null,null,null,null,null,null,null,null,null,null,null,null,null,null,null,null,null,null,""]
[null,null,null,null,null,null,null,null,null,null,null,null,null,null,null,null,null,null,null,null,null,null,null,null,null,null,null,null,null,null,null,null,null,null,null,null,null,null,null,""]
[null,null,null,null,null,null,null,null,null,null,null,null,null,null,null,null,null,null,null,null,null,null,null,null,null,null,null,null,null,null,null,null,null,null,null,null,null,null,null,""]
[null,null,null,null,null,null,null,null,null,null,null,null,null,null,null,null,null,null,null,null,null,null,null,null,null,null,null,null,null,null,null,null,null,null,null,null,null,null,null,""]
[null,null,null,null,null,null,null,null,null,null,null,null,null,null,null,null,null,null,null,null,null,null,null,null,null,null,null,null,null,null,null,null,null,null,null,null,null,null,null,""]
[null,null,null,null,null,null,null,null,null,null,null,null,null,null,null,null,null,null,null,null,null,null,null,null,null,null,null,null,null,null,null,null,null,null,null,null,null,null,null,""]
[null,null,null,null,null,null,null,null,null,null,null,null,null,null,null,null,null,null,null,null,null,null,null,null,null,null,null,null,null,null,null,null,null,null,null,null,null,null,null,""]
[null,null,null,null,null,null,null,null,null,null,null,null,null,null,null,null,null,null,null,null,null,null,null,null,null,null,null,null,null,null,null,null,null,null,null,null,null,null,null,""]
[null,null,null,null,null,null,null,null,null,null,null,null,null,null,null,null,null,null,null,null,null,null,null,null,null,null,null,null,null,null,null,null,null,null,null,null,null,null,null,""]
[null,null,null,null,null,null,null,null,null,null,null,null,null,null,null,null,null,null,null,null,null,null,null,null,null,null,null,null,null,null,null,null,null,null,null,null,null,null,null,""]
[null,null,null,null,null,null,null,null,null,null,null,null,null,null,null,null,null,null,null,null,null,null,null,null,null,null,null,null,null,null,null,null,null,null,null,null,null,null,null,""]
[null,null,null,null,null,null,null,null,null,null,null,null,null,null,null,null,null,null,null,null,null,null,null,null,null,null,null,null,null,null,null,null,null,null,null,null,null,null,null,""]
[null,null,null,null,null,null,null,null,null,null,null,null,null,null,null,null,null,null,null,null,null,null,null,null,null,null,null,null,null,null,null,null,null,null,null,null,null,null,null,""]
[null,null,null,null,null,null,null,null,null,null,null,null,null,null,null,null,null,null,null,null,null,null,null,null,null,null,null,null,null,null,null,null,null,null,null,null,null,null,null,""]
[null,null,null,null,null,null,null,null,null,null,null,null,null,null,null,null,null,null,null,null,null,null,null,null,null,null,null,null,null,null,null,null,null,null,null,null,null,null,null,""]
[null,null,null,null,null,null,null,null,null,null,null,null,null,null,null,null,null,null,null,null,null,null,null,null,null,null,null,null,null,null,null,null,null,null,null,null,null,null,null,""]
[null,null,null,null,null,null,null,null,null,null,null,null,null,null,null,null,null,null,null,null,null,null,null,null,null,null,null,null,null,null,null,null,null,null,null,null,null,null,null,""]
[null,null,null,null,null,null,null,null,null,null,null,null,null,null,null,null,null,null,null,null,null,null,null,null,null,null,null,null,null,null,null,null,null,null,null,null,null,null,null,""]
[null,null,null,null,null,null,null,null,null,null,null,null,null,null,null,null,null,null,null,null,null,null,null,null,null,null,null,null,null,null,null,null,null,null,null,null,null,null,null,""]
[null,null,null,null,null,null,null,null,null,null,null,null,null,null,null,null,null,null,null,null,null,null,null,null,null,null,null,null,null,null,null,null,null,null,null,null,null,null,null,""]
[null,null,null,null,null,null,null,null,null,null,null,null,null,null,null,null,null,null,null,null,null,null,null,null,null,null,null,null,null,null,null,null,null,null,null,null,null,null,null,""]
[null,null,null,null,null,null,null,null,null,null,null,null,null,null,null,null,null,null,null,null,null,null,null,null,null,null,null,null,null,null,null,null,null,null,null,null,null,null,null,""]
[null,null,null,null,null,null,null,null,null,null,null,null,null,null,null,null,null,null,null,null,null,null,null,null,null,null,null,null,null,null,null,null,null,null,null,null,null,null,null,""]
[null,null,null,null,null,null,null,null,null,null,null,null,null,null,null,null,null,null,null,null,null,null,null,null,null,null,null,null,null,null,null,null,null,null,null,null,null,null,null,""]
[null,null,null,null,null,null,null,null,null,null,null,null,null,null,null,null,null,null,null,null,null,null,null,null,null,null,null,null,null,null,null,null,null,null,null,null,null,null,null,""]
[null,null,null,null,null,null,null,null,null,null,null,null,null,null,null,null,null,null,null,null,null,null,null,null,null,null,null,null,null,null,null,null,null,null,null,null,null,null,null,""]
[null,null,null,null,null,null,null,null,null,null,null,null,null,null,null,null,null,null,null,null,null,null,null,null,null,null,null,null,null,null,null,null,null,null,null,null,null,null,null,""]
[null,null,null,null,null,null,null,null,null,null,null,null,null,null,null,null,null,null,null,null,null,null,null,null,null,null,null,null,null,null,null,null,null,null,null,null,null,null,null,""]
[null,null,null,null,null,null,null,null,null,null,null,null,null,null,null,null,null,null,null,null,null,null,null,null,null,null,null,null,null,null,null,null,null,null,null,null,null,null,null,""]
[null,null,null,null,null,null,null,null,null,null,null,null,null,null,null,null,null,null,null,null,null,null,null,null,null,null,null,null,null,null,null,null,null,null,null,null,null,null,null,""]
[null,null,null,null,null,null,null,null,null,null,null,null,null,null,null,null,null,null,null,null,null,null,null,null,null,null,null,null,null,null,null,null,null,null,null,null,null,null,null,""]
[null,null,null,null,null,null,null,null,null,null,null,null,null,null,null,null,null,null,null,null,null,null,null,null,null,null,null,null,null,null,null,null,null,null,null,null,null,null,null,""]
[null,null,null,null,null,null,null,null,null,null,null,null,null,null,null,null,null,null,null,null,null,null,null,null,null,null,null,null,null,null,null,null,null,null,null,null,null,null,null,""]
[null,null,null,null,null,null,null,null,null,null,null,null,null,null,null,null,null,null,null,null,null,null,null,null,null,null,null,null,null,null,null,null,null,null,null,null,null,null,null,""]
[null,null,null,null,null,null,null,null,null,null,null,null,null,null,null,null,null,null,null,null,null,null,null,null,null,null,null,null,null,null,null,null,null,null,null,null,null,null,null,""]
[null,null,null,null,null,null,null,null,null,null,null,null,null,null,null,null,null,null,null,null,null,null,null,null,null,null,null,null,null,null,null,null,null,null,null,null,null,null,null,""]
[null,null,null,null,null,null,null,null,null,null,null,null,null,null,null,null,null,null,null,null,null,null,null,null,null,null,null,null,null,null,null,null,null,null,null,null,null,null,null,""]
[null,null,null,null,null,null,null,null,null,null,null,null,null,null,null,null,null,null,null,null,null,null,null,null,null,null,null,null,null,null,null,null,null,null,null,null,null,null,null,""]
[null,null,null,null,null,null,null,null,null,null,null,null,null,null,null,null,null,null,null,null,null,null,null,null,null,null,null,null,null,null,null,null,null,null,null,null,null,null,null,""]
[null,null,null,null,null,null,null,null,null,null,null,null,null,null,null,null,null,null,null,null,null,null,null,null,null,null,null,null,null,null,null,null,null,null,null,null,null,null,null,{"$f":"IF(AH236=\"\",\"\",AE236*AH236)","v":""}]
[null,null,null,null,null,null,null,null,null,null,null,null,null,null,null,null,null,null,null,null,null,null,null,null,null,null,null,null,null,null,null,null,null,null,null,null,null,null,null,""]
[null,null,null,null,null,null,null,null,null,null,null,null,null,null,null,null,null,null,null,null,null,null,null,null,null,null,null,null,null,null,null,null,null,null,null,null,null,null,null,""]
[null,null,null,null,null,null,null,null,null,null,null,null,null,null,null,null,null,null,null,null,null,null,null,null,null,null,null,null,null,null,null,null,null,null,null,null,null,null,null,""]
[null,null,null,null,null,null,null,null,null,null,null,null,null,null,null,null,null,null,null,null,null,null,null,null,null,null,null,null,null,null,null,null,null,null,null,null,null,null,null,""]
[null,null,null,null,null,null,null,null,null,null,null,null,null,null,null,null,null,null,null,null,null,null,null,null,null,null,null,null,null,null,null,null,null,null,null,null,null,null,null,""]
[null,null,null,null,null,null,null,null,null,null,null,null,null,null,null,null,null,null,null,null,null,null,null,null,null,null,null,null,null,null,null,null,null,null,null,null,null,null,null,""]
[null,null,null,null,null,null,null,null,null,null,null,null,null,null,null,null,null,null,null,null,null,null,null,null,null,null,null,null,null,null,null,null,null,null,null,null,null,null,null,""]
[null,null,null,null,null,null,null,null,null,null,null,null,null,null,null,null,null,null,null,null,null,null,null,null,null,null,null,null,null,null,null,null,null,null,null,null,null,null,null,""]
[null,null,null,null,null,null,null,null,null,null,null,null,null,null,null,null,null,null,null,null,null,null,null,null,null,null,null,null,null,null,null,null,null,null,null,null,null,null,null,""]
[null,null,null,null,null,null,null,null,null,null,null,null,null,null,null,null,null,null,null,null,null,null,null,null,null,null,null,null,null,null,null,null,null,null,null,null,null,null,null,""]
[null,null,null,null,null,null,null,null,null,null,null,null,null,null,null,null,null,null,null,null,null,null,null,null,null,null,null,null,null,null,null,null,null,null,null,null,null,null,null,""]
[null,null,null,null,null,null,null,null,null,null,null,null,null,null,null,null,null,null,null,null,null,null,null,null,null,null,null,null,null,null,null,null,null,null,null,null,null,null,null,""]
[null,null,null,null,null,null,null,null,null,null,null,null,null,null,null,null,null,null,null,null,null,null,null,null,null,null,null,null,null,null,null,null,null,null,null,null,null,null,null,""]
[null,null,null,null,null,null,null,null,null,null,null,null,null,null,null,null,null,null,null,null,null,null,null,null,null,null,null,null,null,null,null,null,null,null,null,null,null,null,null,""]
[null,null,null,null,null,null,null,null,null,null,null,null,null,null,null,null,null,null,null,null,null,null,null,null,null,null,null,null,null,null,null,null,null,null,null,null,null,null,null,""]
[null,null,null,null,null,null,null,null,null,null,null,null,null,null,null,null,null,null,null,null,null,null,null,null,null,null,null,null,null,null,null,null,null,null,null,null,null,null,null,""]
[null,null,null,null,null,null,null,null,null,null,null,null,null,null,null,null,null,null,null,null,null,null,null,null,null,null,null,null,null,null,null,null,null,null,null,null,null,null,null,""]
[null,null,null,null,null,null,null,null,null,null,null,null,null,null,null,null,null,null,null,null,null,null,null,null,null,null,null,null,null,null,null,null,null,null,null,null,null,null,null,""]
[null,null,null,null,null,null,null,null,null,null,null,null,null,null,null,null,null,null,null,null,null,null,null,null,null,null,null,null,null,null,null,null,null,null,null,null,null,null,null,""]
[null,null,null,null,null,null,null,null,null,null,null,null,null,null,null,null,null,null,null,null,null,null,null,null,null,null,null,null,null,null,null,null,null,null,null,null,null,null,null,""]
[null,null,null,null,null,null,null,null,null,null,null,null,null,null,null,null,null,null,null,null,null,null,null,null,null,null,null,null,null,null,null,null,null,null,null,null,null,null,null,""]
[null,null,null,null,null,null,null,null,null,null,null,null,null,null,null,null,null,null,null,null,null,null,null,null,null,null,null,null,null,null,null,null,null,null,null,null,null,null,null,""]
[null,null,null,null,null,null,null,null,null,null,null,null,null,null,null,null,null,null,null,null,null,null,null,null,null,null,null,null,null,null,null,null,null,null,null,null,null,null,null,""]
[null,null,null,null,null,null,null,null,null,null,null,null,null,null,null,null,null,null,null,null,null,null,null,null,null,null,null,null,null,null,null,null,null,null,null,null,null,null,null,""]
[null,null,null,null,null,null,null,null,null,null,null,null,null,null,null,null,null,null,null,null,null,null,null,null,null,null,null,null,null,null,null,null,null,null,null,null,null,null,null,""]
[null,null,null,null,null,null,null,null,null,null,null,null,null,null,null,null,null,null,null,null,null,null,null,null,null,null,null,null,null,null,null,null,null,null,null,null,null,null,null,""]
[null,null,null,null,null,null,null,null,null,null,null,null,null,null,null,null,null,null,null,null,null,null,null,null,null,null,null,null,null,null,null,null,null,null,null,null,null,null,null,""]
[null,null,null,null,null,null,null,null,null,null,null,null,null,null,null,null,null,null,null,null,null,null,null,null,null,null,null,null,null,null,null,null,null,null,null,null,null,null,null,""]
[null,null,null,null,null,null,null,null,null,null,null,null,null,null,null,null,null,null,null,null,null,null,null,null,null,null,null,null,null,null,null,null,null,null,null,null,null,null,null,""]
[null,null,null,null,null,null,null,null,null,null,null,null,null,null,null,null,null,null,null,null,null,null,null,null,null,null,null,null,null,null,null,null,null,null,null,null,null,null,null,""]
[null,null,null,null,null,null,null,null,null,null,null,null,null,null,null,null,null,null,null,null,null,null,null,null,null,null,null,null,null,null,null,null,null,null,null,null,null,null,null,""]
[null,null,null,null,null,null,null,null,null,null,null,null,null,null,null,null,null,null,null,null,null,null,null,null,null,null,null,null,null,null,null,null,null,null,null,null,null,null,null,""]
[null,null,null,null,null,null,null,null,null,null,null,null,null,null,null,null,null,null,null,null,null,null,null,null,null,null,null,null,null,null,null,null,null,null,null,null,null,null,null,""]
[null,null,null,null,null,null,null,null,null,null,null,null,null,null,null,null,null,null,null,null,null,null,null,null,null,null,null,null,null,null,null,null,null,null,null,null,null,null,null,""]
[null,null,null,null,null,null,null,null,null,null,null,null,null,null,null,null,null,null,null,null,null,null,null,null,null,null,null,null,null,null,null,null,null,null,null,null,null,null,null,""]
[null,null,null,null,null,null,null,null,null,null,null,null,null,null,null,null,null,null,null,null,null,null,null,null,null,null,null,null,null,null,null,null,null,null,null,null,null,null,null,""]
[null,null,null,null,null,null,null,null,null,null,null,null,null,null,null,null,null,null,null,null,null,null,null,null,null,null,null,null,null,null,null,null,null,null,null,null,null,null,null,""]
[null,null,null,null,null,null,null,null,null,null,null,null,null,null,null,null,null,null,null,null,null,null,null,null,null,null,null,null,null,null,null,null,null,null,null,null,null,null,null,""]
[null,null,null,null,null,null,null,null,null,null,null,null,null,null,null,null,null,null,null,null,null,null,null,null,null,null,null,null,null,null,null,null,null,null,null,null,null,null,null,""]
[null,null,null,null,null,null,null,null,null,null,null,null,null,null,null,null,null,null,null,null,null,null,null,null,null,null,null,null,null,null,null,null,null,null,null,null,null,null,null,""]
[null,null,null,null,null,null,null,null,null,null,null,null,null,null,null,null,null,null,null,null,null,null,null,null,null,null,null,null,null,null,null,null,null,null,null,null,null,null,null,""]
[null,null,null,null,null,null,null,null,null,null,null,null,null,null,null,null,null,null,null,null,null,null,null,null,null,null,null,null,null,null,null,null,null,null,null,null,null,null,null,""]
[null,null,null,null,null,null,null,null,null,null,null,null,null,null,null,null,null,null,null,null,null,null,null,null,null,null,null,null,null,null,null,null,null,null,null,null,null,null,null,""]
[null,null,null,null,null,null,null,null,null,null,null,null,null,null,null,null,null,null,null,null,null,null,null,null,null,null,null,null,null,null,null,null,null,null,null,null,null,null,null,""]
[null,null,null,null,null,null,null,null,null,null,null,null,null,null,null,null,null,null,null,null,null,null,null,null,null,null,null,null,null,null,null,null,null,null,null,null,null,null,null,""]
[null,null,null,null,null,null,null,null,null,null,null,null,null,null,null,null,null,null,null,null,null,null,null,null,null,null,null,null,null,null,null,null,null,null,null,null,null,null,null,""]
[null,null,null,null,null,null,null,null,null,null,null,null,null,null,null,null,null,null,null,null,null,null,null,null,null,null,null,null,null,null,null,null,null,null,null,null,null,null,null,""]
[null,null,null,null,null,null,null,null,null,null,null,null,null,null,null,null,null,null,null,null,null,null,null,null,null,null,null,null,null,null,null,null,null,null,null,null,null,null,null,""]
[null,null,null,null,null,null,null,null,null,null,null,null,null,null,null,null,null,null,null,null,null,null,null,null,null,null,null,null,null,null,null,null,null,null,null,null,null,null,null,""]
[null,null,null,null,null,null,null,null,null,null,null,null,null,null,null,null,null,null,null,null,null,null,null,null,null,null,null,null,null,null,null,null,null,null,null,null,null,null,null,""]
[null,null,null,null,null,null,null,null,null,null,null,null,null,null,null,null,null,null,null,null,null,null,null,null,null,null,null,null,null,null,null,null,null,null,null,null,null,null,null,""]
[null,null,null,null,null,null,null,null,null,null,null,null,null,null,null,null,null,null,null,null,null,null,null,null,null,null,null,null,null,null,null,null,null,null,null,null,null,null,null,""]
[null,null,null,null,null,null,null,null,null,null,null,null,null,null,null,null,null,null,null,null,null,null,null,null,null,null,null,null,null,null,null,null,null,null,null,null,null,null,null,""]
[null,null,null,null,null,null,null,null,null,null,null,null,null,null,null,null,null,null,null,null,null,null,null,null,null,null,null,null,null,null,null,null,null,null,null,null,null,null,null,""]
[null,null,null,null,null,null,null,null,null,null,null,null,null,null,null,null,null,null,null,null,null,null,null,null,null,null,null,null,null,null,null,null,null,null,null,null,null,null,null,""]
[null,null,null,null,null,null,null,null,null,null,null,null,null,null,null,null,null,null,null,null,null,null,null,null,null,null,null,null,null,null,null,null,null,null,null,null,null,null,null,""]
[null,null,null,null,null,null,null,null,null,null,null,null,null,null,null,null,null,null,null,null,null,null,null,null,null,null,null,null,null,null,null,null,null,null,null,null,null,null,null,""]
[null,null,null,null,null,null,null,null,null,null,null,null,null,null,null,null,null,null,null,null,null,null,null,null,null,null,null,null,null,null,null,null,null,null,null,null,null,null,null,""]
[null,null,null,null,null,null,null,null,null,null,null,null,null,null,null,null,null,null,null,null,null,null,null,null,null,null,null,null,null,null,null,null,null,null,null,null,null,null,null,{"$f":"IF(AH295=\"\",\"\",AE295*AH295)","v":""}]
[null,null,null,null,null,null,null,null,null,null,null,null,null,null,null,null,null,null,null,null,null,null,null,null,null,null,null,null,null,null,null,null,null,null,null,null,null,null,null,""]
[null,null,null,null,null,null,null,null,null,null,null,null,null,null,null,null,null,null,null,null,null,null,null,null,null,null,null,null,null,null,null,null,null,null,null,null,null,null,null,""]
[null,null,null,null,null,null,null,null,null,null,null,null,null,null,null,null,null,null,null,null,null,null,null,null,null,null,null,null,null,null,null,null,null,null,null,null,null,null,null,""]
[null,null,null,null,null,null,null,null,null,null,null,null,null,null,null,null,null,null,null,null,null,null,null,null,null,null,null,null,null,null,null,null,null,null,null,null,null,null,null,""]
[null,null,null,null,null,null,null,null,null,null,null,null,null,null,null,null,null,null,null,null,null,null,null,null,null,null,null,null,null,null,null,null,null,null,null,null,null,null,null,""]
[null,null,null,null,null,null,null,null,null,null,null,null,null,null,null,null,null,null,null,null,null,null,null,null,null,null,null,null,null,null,null,null,null,null,null,null,null,null,null,""]
[null,null,null,null,null,null,null,null,null,null,null,null,null,null,null,null,null,null,null,null,null,null,null,null,null,null,null,null,null,null,null,null,null,null,null,null,null,null,null,""]
[null,null,null,null,null,null,null,null,null,null,null,null,null,null,null,null,null,null,null,null,null,null,null,null,null,null,null,null,null,null,null,null,null,null,null,null,null,null,null,""]
[null,null,null,null,null,null,null,null,null,null,null,null,null,null,null,null,null,null,null,null,null,null,null,null,null,null,null,null,null,null,null,null,null,null,null,null,null,null,null,""]
[null,null,null,null,null,null,null,null,null,null,null,null,null,null,null,null,null,null,null,null,null,null,null,null,null,null,null,null,null,null,null,null,null,null,null,null,null,null,null,""]
[null,null,null,null,null,null,null,null,null,null,null,null,null,null,null,null,null,null,null,null,null,null,null,null,null,null,null,null,null,null,null,null,null,null,null,null,null,null,null,""]
[null,null,null,null,null,null,null,null,null,null,null,null,null,null,null,null,null,null,null,null,null,null,null,null,null,null,null,null,null,null,null,null,null,null,null,null,null,null,null,""]
[null,null,null,null,null,null,null,null,null,null,null,null,null,null,null,null,null,null,null,null,null,null,null,null,null,null,null,null,null,null,null,null,null,null,null,null,null,null,null,""]
[null,null,null,null,null,null,null,null,null,null,null,null,null,null,null,null,null,null,null,null,null,null,null,null,null,null,null,null,null,null,null,null,null,null,null,null,null,null,null,""]
[null,null,null,null,null,null,null,null,null,null,null,null,null,null,null,null,null,null,null,null,null,null,null,null,null,null,null,null,null,null,null,null,null,null,null,null,null,null,null,""]
[null,null,null,null,null,null,null,null,null,null,null,null,null,null,null,null,null,null,null,null,null,null,null,null,null,null,null,null,null,null,null,null,null,null,null,null,null,null,null,""]
[null,null,null,null,null,null,null,null,null,null,null,null,null,null,null,null,null,null,null,null,null,null,null,null,null,null,null,null,null,null,null,null,null,null,null,null,null,null,null,""]
[null,null,null,null,null,null,null,null,null,null,null,null,null,null,null,null,null,null,null,null,null,null,null,null,null,null,null,null,null,null,null,null,null,null,null,null,null,null,null,""]
[null,null,null,null,null,null,null,null,null,null,null,null,null,null,null,null,null,null,null,null,null,null,null,null,null,null,null,null,null,null,null,null,null,null,null,null,null,null,null,""]
[null,null,null,null,null,null,null,null,null,null,null,null,null,null,null,null,null,null,null,null,null,null,null,null,null,null,null,null,null,null,null,null,null,null,null,null,null,null,null,""]
[null,null,null,null,null,null,null,null,null,null,null,null,null,null,null,null,null,null,null,null,null,null,null,null,null,null,null,null,null,null,null,null,null,null,null,null,null,null,null,""]
[null,null,null,null,null,null,null,null,null,null,null,null,null,null,null,null,null,null,null,null,null,null,null,null,null,null,null,null,null,null,null,null,null,null,null,null,null,null,null,{"$f":"IF(AH317=\"\",\"\",AE317*AH317)","v":""}]
[null,null,null,null,null,null,null,null,null,null,null,null,null,null,null,null,null,null,null,null,null,null,null,null,null,null,null,null,null,null,null,null,null,null,null,null,null,null,null,""]
[null,null,null,null,null,null,null,null,null,null,null,null,null,null,null,null,null,null,null,null,null,null,null,null,null,null,null,null,null,null,null,null,null,null,null,null,null,null,null,""]
[null,null,null,null,null,null,null,null,null,null,null,null,null,null,null,null,null,null,null,null,null,null,null,null,null,null,null,null,null,null,null,null,null,null,null,null,null,null,null,""]
[null,null,null,null,null,null,null,null,null,null,null,null,null,null,null,null,null,null,null,null,null,null,null,null,null,null,null,null,null,null,null,null,null,null,null,null,null,null,null,""]
[null,null,null,null,null,null,null,null,null,null,null,null,null,null,null,null,null,null,null,null,null,null,null,null,null,null,null,null,null,null,null,null,null,null,null,null,null,null,null,""]
[null,null,null,null,null,null,null,null,null,null,null,null,null,null,null,null,null,null,null,null,null,null,null,null,null,null,null,null,null,null,null,null,null,null,null,null,null,null,null,""]
[null,null,null,null,null,null,null,null,null,null,null,null,null,null,null,null,null,null,null,null,null,null,null,null,null,null,null,null,null,null,null,null,null,null,null,null,null,null,null,""]
[null,null,null,null,null,null,null,null,null,null,null,null,null,null,null,null,null,null,null,null,null,null,null,null,null,null,null,null,null,null,null,null,null,null,null,null,null,null,null,""]
[null,null,null,null,null,null,null,null,null,null,null,null,null,null,null,null,null,null,null,null,null,null,null,null,null,null,null,null,null,null,null,null,null,null,null,null,null,null,null,""]
[null,null,null,null,null,null,null,null,null,null,null,null,null,null,null,null,null,null,null,null,null,null,null,null,null,null,null,null,null,null,null,null,null,null,null,null,null,null,null,""]
[null,null,null,null,null,null,null,null,null,null,null,null,null,null,null,null,null,null,null,null,null,null,null,null,null,null,null,null,null,null,null,null,null,null,null,null,null,null,null,""]
[null,null,null,null,null,null,null,null,null,null,null,null,null,null,null,null,null,null,null,null,null,null,null,null,null,null,null,null,null,null,null,null,null,null,null,null,null,null,null,""]
[null,null,null,null,null,null,null,null,null,null,null,null,null,null,null,null,null,null,null,null,null,null,null,null,null,null,null,null,null,null,null,null,null,null,null,null,null,null,null,""]
[null,null,null,null,null,null,null,null,null,null,null,null,null,null,null,null,null,null,null,null,null,null,null,null,null,null,null,null,null,null,null,null,null,null,null,null,null,null,null,""]
[null,null,null,null,null,null,null,null,null,null,null,null,null,null,null,null,null,null,null,null,null,null,null,null,null,null,null,null,null,null,null,null,null,null,null,null,null,null,null,""]
[null,null,null,null,null,null,null,null,null,null,null,null,null,null,null,null,null,null,null,null,null,null,null,null,null,null,null,null,null,null,null,null,null,null,null,null,null,null,null,""]
[null,null,null,null,null,null,null,null,null,null,null,null,null,null,null,null,null,null,null,null,null,null,null,null,null,null,null,null,null,null,null,null,null,null,null,null,null,null,null,""]
[null,null,null,null,null,null,null,null,null,null,null,null,null,null,null,null,null,null,null,null,null,null,null,null,null,null,null,null,null,null,null,null,null,null,null,null,null,null,null,""]
[null,null,null,null,null,null,null,null,null,null,null,null,null,null,null,null,null,null,null,null,null,null,null,null,null,null,null,null,null,null,null,null,null,null,null,null,null,null,null,""]
[null,null,null,null,null,null,null,null,null,null,null,null,null,null,null,null,null,null,null,null,null,null,null,null,null,null,null,null,null,null,null,null,null,null,null,null,null,null,null,""]
[null,null,null,null,null,null,null,null,null,null,null,null,null,null,null,null,null,null,null,null,null,null,null,null,null,null,null,null,null,null,null,null,null,null,null,null,null,null,null,""]
[null,null,null,null,null,null,null,null,null,null,null,null,null,null,null,null,null,null,null,null,null,null,null,null,null,null,null,null,null,null,null,null,null,null,null,null,null,null,null,""]
[null,null,null,null,null,null,null,null,null,null,null,null,null,null,null,null,null,null,null,null,null,null,null,null,null,null,null,null,null,null,null,null,null,null,null,null,null,null,null,""]
[null,null,null,null,null,null,null,null,null,null,null,null,null,null,null,null,null,null,null,null,null,null,null,null,null,null,null,null,null,null,null,null,null,null,null,null,null,null,null,""]
[null,null,null,null,null,null,null,null,null,null,null,null,null,null,null,null,null,null,null,null,null,null,null,null,null,null,null,null,null,null,null,null,null,null,null,null,null,null,null,""]
[null,null,null,null,null,null,null,null,null,null,null,null,null,null,null,null,null,null,null,null,null,null,null,null,null,null,null,null,null,null,null,null,null,null,null,null,null,null,null,""]
[null,null,null,null,null,null,null,null,null,null,null,null,null,null,null,null,null,null,null,null,null,null,null,null,null,null,null,null,null,null,null,null,null,null,null,null,null,null,null,""]
[null,null,null,null,null,null,null,null,null,null,null,null,null,null,null,null,null,null,null,null,null,null,null,null,null,null,null,null,null,null,null,null,null,null,null,null,null,null,null,{"$f":"IF(AH345=\"\",\"\",AE345*AH345)","v":""}]
[null,null,null,null,null,null,null,null,null,null,null,null,null,null,null,null,null,null,null,null,null,null,null,null,null,null,null,null,null,null,null,null,null,null,null,null,null,null,null,""]
[null,null,null,null,null,null,null,null,null,null,null,null,null,null,null,null,null,null,null,null,null,null,null,null,null,null,null,null,null,null,null,null,null,null,null,null,null,null,null,""]
[null,null,null,null,null,null,null,null,null,null,null,null,null,null,null,null,null,null,null,null,null,null,null,null,null,null,null,null,null,null,null,null,null,null,null,null,null,null,null,""]
[null,null,null,null,null,null,null,null,null,null,null,null,null,null,null,null,null,null,null,null,null,null,null,null,null,null,null,null,null,null,null,null,null,null,null,null,null,null,null,""]
[null,null,null,null,null,null,null,null,null,null,null,null,null,null,null,null,null,null,null,null,null,null,null,null,null,null,null,null,null,null,null,null,null,null,null,null,null,null,null,""]
[null,null,null,null,null,null,null,null,null,null,null,null,null,null,null,null,null,null,null,null,null,null,null,null,null,null,null,null,null,null,null,null,null,null,null,null,null,null,null,""]
[null,null,null,null,null,null,null,null,null,null,null,null,null,null,null,null,null,null,null,null,null,null,null,null,null,null,null,null,null,null,null,null,null,null,null,null,null,null,null,""]
[null,null,null,null,null,null,null,null,null,null,null,null,null,null,null,null,null,null,null,null,null,null,null,null,null,null,null,null,null,null,null,null,null,null,null,null,null,null,null,""]
[null,null,null,null,null,null,null,null,null,null,null,null,null,null,null,null,null,null,null,null,null,null,null,null,null,null,null,null,null,null,null,null,null,null,null,null,null,null,null,""]
[null,null,null,null,null,null,null,null,null,null,null,null,null,null,null,null,null,null,null,null,null,null,null,null,null,null,null,null,null,null,null,null,null,null,null,null,null,null,null,""]
[null,null,null,null,null,null,null,null,null,null,null,null,null,null,null,null,null,null,null,null,null,null,null,null,null,null,null,null,null,null,null,null,null,null,null,null,null,null,null,""]
[null,null,null,null,null,null,null,null,null,null,null,null,null,null,null,null,null,null,null,null,null,null,null,null,null,null,null,null,null,null,null,null,null,null,null,null,null,null,null,""]
[null,null,null,null,null,null,null,null,null,null,null,null,null,null,null,null,null,null,null,null,null,null,null,null,null,null,null,null,null,null,null,null,null,null,null,null,null,null,null,""]
[null,null,null,null,null,null,null,null,null,null,null,null,null,null,null,null,null,null,null,null,null,null,null,null,null,null,null,null,null,null,null,null,null,null,null,null,null,null,null,""]
[null,null,null,null,null,null,null,null,null,null,null,null,null,null,null,null,null,null,null,null,null,null,null,null,null,null,null,null,null,null,null,null,null,null,null,null,null,null,null,""]
[null,null,null,null,null,null,null,null,null,null,null,null,null,null,null,null,null,null,null,null,null,null,null,null,null,null,null,null,null,null,null,null,null,null,null,null,null,null,null,""]
[null,null,null,null,null,null,null,null,null,null,null,null,null,null,null,null,null,null,null,null,null,null,null,null,null,null,null,null,null,null,null,null,null,null,null,null,null,null,null,""]
[null,null,null,null,null,null,null,null,null,null,null,null,null,null,null,null,null,null,null,null,null,null,null,null,null,null,null,null,null,null,null,null,null,null,null,null,null,null,null,""]
[null,null,null,null,null,null,null,null,null,null,null,null,null,null,null,null,null,null,null,null,null,null,null,null,null,null,null,null,null,null,null,null,null,null,null,null,null,null,null,""]
[null,null,null,null,null,null,null,null,null,null,null,null,null,null,null,null,null,null,null,null,null,null,null,null,null,null,null,null,null,null,null,null,null,null,null,null,null,null,null,""]
[null,null,null,null,null,null,null,null,null,null,null,null,null,null,null,null,null,null,null,null,null,null,null,null,null,null,null,null,null,null,null,null,null,null,null,null,null,null,null,""]
[null,null,null,null,null,null,null,null,null,null,null,null,null,null,null,null,null,null,null,null,null,null,null,null,null,null,null,null,null,null,null,null,null,null,null,null,null,null,null,""]
["TOTAL",null,null,null,null,null,null,null,null,null,null,null,null,null,null,null,null,null,null,null,null,null,null,null,null,null,null,null,null,null,null,null,null,null,null,null,null,null,null,{"$f":"IF(SUM(AN168:AS367)=0,\"-\",SUM(AN168:AS367))","v":"-"}]
[]
["III - SEMOVENTES"]
["BOVINOS"]
["TIPO DE ANIMAL",null,null,null,null,null,null,"IDADE MÉDIA\n(MESES)",null,null,null,null,null,"RAÇA:",null,null,null,null,null,"COR PREDOMINANTE",null,null,null,null,null,null,"QUANTIDADE \n(Nº CABEÇAS)",null,null,null,null,null,null,"VALOR  UN.\n (R$)",null,null,null,null,null,"VALOR \nTOTAL (R$)"]
[null,null,null,null,null,null,null,null,null,null,null,null,null,null,null,null,null,null,null,null,null,null,null,null,null,null,null,null,null,null,null,null,null,null,null,null,null,null,null,{"$f":"IF(OR(AH373=\"\",AA373=\"\"),\"\",AH373*AA373)","v":""},null,null,null,null,null,null,{"$f":"SUM(AV372:AV422)","v":1},1]
[null,null,null,null,null,null,null,null,null,null,null,null,null,null,null,null,null,null,null,null,null,null,null,null,null,null,null,null,null,null,null,null,null,null,null,null,null,null,null,{"$f":"IF(OR(AH374=\"\",AA374=\"\"),\"\",AH374*AA374)","v":""}]
[null,null,null,null,null,null,null,null,null,null,null,null,null,null,null,null,null,null,null,null,null,null,null,null,null,null,null,null,null,null,null,null,null,null,null,null,null,null,null,""]
[null,null,null,null,null,null,null,null,null,null,null,null,null,null,null,null,null,null,null,null,null,null,null,null,null,null,null,null,null,null,null,null,null,null,null,null,null,null,null,{"$f":"IF(OR(AH376=\"\",AA376=\"\"),\"\",AH376*AA376)","v":""}]
[null,null,null,null,null,null,null,null,null,null,null,null,null,null,null,null,null,null,null,null,null,null,null,null,null,null,null,null,null,null,null,null,null,null,null,null,null,null,null,{"$f":"IF(OR(AH377=\"\",AA377=\"\"),\"\",AH377*AA377)","v":""}]
[null,null,null,null,null,null,null,null,null,null,null,null,null,null,null,null,null,null,null,null,null,null,null,null,null,null,null,null,null,null,null,null,null,null,null,null,null,null,null,""]
[null,null,null,null,null,null,null,null,null,null,null,null,null,null,null,null,null,null,null,null,null,null,null,null,null,null,null,null,null,null,null,null,null,null,null,null,null,null,null,""]
[null,null,null,null,null,null,null,null,null,null,null,null,null,null,null,null,null,null,null,null,null,null,null,null,null,null,null,null,null,null,null,null,null,null,null,null,null,null,null,""]
[null,null,null,null,null,null,null,null,null,null,null,null,null,null,null,null,null,null,null,null,null,null,null,null,null,null,null,null,null,null,null,null,null,null,null,null,null,null,null,""]
[null,null,null,null,null,null,null,null,null,null,null,null,null,null,null,null,null,null,null,null,null,null,null,null,null,null,null,null,null,null,null,null,null,null,null,null,null,null,null,""]
[null,null,null,null,null,null,null,null,null,null,null,null,null,null,null,null,null,null,null,null,null,null,null,null,null,null,null,null,null,null,null,null,null,null,null,null,null,null,null,""]
[null,null,null,null,null,null,null,null,null,null,null,null,null,null,null,null,null,null,null,null,null,null,null,null,null,null,null,null,null,null,null,null,null,null,null,null,null,null,null,""]
[null,null,null,null,null,null,null,null,null,null,null,null,null,null,null,null,null,null,null,null,null,null,null,null,null,null,null,null,null,null,null,null,null,null,null,null,null,null,null,""]
[null,null,null,null,null,null,null,null,null,null,null,null,null,null,null,null,null,null,null,null,null,null,null,null,null,null,null,null,null,null,null,null,null,null,null,null,null,null,null,""]
[null,null,null,null,null,null,null,null,null,null,null,null,null,null,null,null,null,null,null,null,null,null,null,null,null,null,null,null,null,null,null,null,null,null,null,null,null,null,null,""]
[null,null,null,null,null,null,null,null,null,null,null,null,null,null,null,null,null,null,null,null,null,null,null,null,null,null,null,null,null,null,null,null,null,null,null,null,null,null,null,""]
[null,null,null,null,null,null,null,null,null,null,null,null,null,null,null,null,null,null,null,null,null,null,null,null,null,null,null,null,null,null,null,null,null,null,null,null,null,null,null,""]
[null,null,null,null,null,null,null,null,null,null,null,null,null,null,null,null,null,null,null,null,null,null,null,null,null,null,null,null,null,null,null,null,null,null,null,null,null,null,null,""]
[null,null,null,null,null,null,null,null,null,null,null,null,null,null,null,null,null,null,null,null,null,null,null,null,null,null,null,null,null,null,null,null,null,null,null,null,null,null,null,""]
[null,null,null,null,null,null,null,null,null,null,null,null,null,null,null,null,null,null,null,null,null,null,null,null,null,null,null,null,null,null,null,null,null,null,null,null,null,null,null,""]
[null,null,null,null,null,null,null,null,null,null,null,null,null,null,null,null,null,null,null,null,null,null,null,null,null,null,null,null,null,null,null,null,null,null,null,null,null,null,null,""]
[null,null,null,null,null,null,null,null,null,null,null,null,null,null,null,null,null,null,null,null,null,null,null,null,null,null,null,null,null,null,null,null,null,null,null,null,null,null,null,""]
[null,null,null,null,null,null,null,null,null,null,null,null,null,null,null,null,null,null,null,null,null,null,null,null,null,null,null,null,null,null,null,null,null,null,null,null,null,null,null,""]
[null,null,null,null,null,null,null,null,null,null,null,null,null,null,null,null,null,null,null,null,null,null,null,null,null,null,null,null,null,null,null,null,null,null,null,null,null,null,null,""]
[null,null,null,null,null,null,null,null,null,null,null,null,null,null,null,null,null,null,null,null,null,null,null,null,null,null,null,null,null,null,null,null,null,null,null,null,null,null,null,{"$f":"IF(OR(AH397=\"\",AA397=\"\"),\"\",AH397*AA397)","v":""}]
[null,null,null,null,null,null,null,null,null,null,null,null,null,null,null,null,null,null,null,null,null,null,null,null,null,null,null,null,null,null,null,null,null,null,null,null,null,null,null,""]
[null,null,null,null,null,null,null,null,null,null,null,null,null,null,null,null,null,null,null,null,null,null,null,null,null,null,null,null,null,null,null,null,null,null,null,null,null,null,null,""]
[null,null,null,null,null,null,null,null,null,null,null,null,null,null,null,null,null,null,null,null,null,null,null,null,null,null,null,null,null,null,null,null,null,null,null,null,null,null,null,""]
[null,null,null,null,null,null,null,null,null,null,null,null,null,null,null,null,null,null,null,null,null,null,null,null,null,null,null,null,null,null,null,null,null,null,null,null,null,null,null,""]
[null,null,null,null,null,null,null,null,null,null,null,null,null,null,null,null,null,null,null,null,null,null,null,null,null,null,null,null,null,null,null,null,null,null,null,null,null,null,null,""]
[null,null,null,null,null,null,null,null,null,null,null,null,null,null,null,null,null,null,null,null,null,null,null,null,null,null,null,null,null,null,null,null,null,null,null,null,null,null,null,""]
[null,null,null,null,null,null,null,null,null,null,null,null,null,null,null,null,null,null,null,null,null,null,null,null,null,null,null,null,null,null,null,null,null,null,null,null,null,null,null,""]
[null,null,null,null,null,null,null,null,null,null,null,null,null,null,null,null,null,null,null,null,null,null,null,null,null,null,null,null,null,null,null,null,null,null,null,null,null,null,null,""]
[null,null,null,null,null,null,null,null,null,null,null,null,null,null,null,null,null,null,null,null,null,null,null,null,null,null,null,null,null,null,null,null,null,null,null,null,null,null,null,""]
[null,null,null,null,null,null,null,null,null,null,null,null,null,null,null,null,null,null,null,null,null,null,null,null,null,null,null,null,null,null,null,null,null,null,null,null,null,null,null,""]
[null,null,null,null,null,null,null,null,null,null,null,null,null,null,null,null,null,null,null,null,null,null,null,null,null,null,null,null,null,null,null,null,null,null,null,null,null,null,null,""]
[null,null,null,null,null,null,null,null,null,null,null,null,null,null,null,null,null,null,null,null,null,null,null,null,null,null,null,null,null,null,null,null,null,null,null,null,null,null,null,""]
[null,null,null,null,null,null,null,null,null,null,null,null,null,null,null,null,null,null,null,null,null,null,null,null,null,null,null,null,null,null,null,null,null,null,null,null,null,null,null,""]
[null,null,null,null,null,null,null,null,null,null,null,null,null,null,null,null,null,null,null,null,null,null,null,null,null,null,null,null,null,null,null,null,null,null,null,null,null,null,null,""]
[null,null,null,null,null,null,null,null,null,null,null,null,null,null,null,null,null,null,null,null,null,null,null,null,null,null,null,null,null,null,null,null,null,null,null,null,null,null,null,""]
[null,null,null,null,null,null,null,null,null,null,null,null,null,null,null,null,null,null,null,null,null,null,null,null,null,null,null,null,null,null,null,null,null,null,null,null,null,null,null,""]
[null,null,null,null,null,null,null,null,null,null,null,null,null,null,null,null,null,null,null,null,null,null,null,null,null,null,null,null,null,null,null,null,null,null,null,null,null,null,null,""]
[null,null,null,null,null,null,null,null,null,null,null,null,null,null,null,null,null,null,null,null,null,null,null,null,null,null,null,null,null,null,null,null,null,null,null,null,null,null,null,""]
[null,null,null,null,null,null,null,null,null,null,null,null,null,null,null,null,null,null,null,null,null,null,null,null,null,null,null,null,null,null,null,null,null,null,null,null,null,null,null,""]
[null,null,null,null,null,null,null,null,null,null,null,null,null,null,null,null,null,null,null,null,null,null,null,null,null,null,null,null,null,null,null,null,null,null,null,null,null,null,null,""]
[null,null,null,null,null,null,null,null,null,null,null,null,null,null,null,null,null,null,null,null,null,null,null,null,null,null,null,null,null,null,null,null,null,null,null,null,null,null,null,""]
[null,null,null,null,null,null,null,null,null,null,null,null,null,null,null,null,null,null,null,null,null,null,null,null,null,null,null,null,null,null,null,null,null,null,null,null,null,null,null,""]
[null,null,null,null,null,null,null,null,null,null,null,null,null,null,null,null,null,null,null,null,null,null,null,null,null,null,null,null,null,null,null,null,null,null,null,null,null,null,null,""]
[null,null,null,null,null,null,null,null,null,null,null,null,null,null,null,null,null,null,null,null,null,null,null,null,null,null,null,null,null,null,null,null,null,null,null,null,null,null,null,""]
[null,null,null,null,null,null,null,null,null,null,null,null,null,null,null,null,null,null,null,null,null,null,null,null,null,null,null,null,null,null,null,null,null,null,null,null,null,null,null,""]
["TOTAL",null,null,null,null,null,null,null,null,null,null,null,null,null,null,null,null,null,null,null,null,null,null,null,null,null,null,null,null,null,null,null,null,null,null,null,null,null,null,{"$f":"IF(SUM(AN373:AS422)=0,\"-\",SUM(AN373:AS422))","v":"-"}]
["OUTROS ANIMAIS"]
["TIPO DE ANIMAL",null,null,null,null,null,null,"DESCRIÇÃO",null,null,null,null,null,null,null,null,null,null,null,null,null,null,null,null,null,null,null,null,null,null,"QTDE",null,null,"VALOR \nUNITÁRIO (R$)",null,null,null,null,null,"VALOR \nTOTAL (R$)"]
[null,null,null,null,null,null,null,null,null,null,null,null,null,null,null,null,null,null,null,null,null,null,null,null,null,null,null,null,null,null,null,null,null,null,null,null,null,null,null,{"$f":"IF(OR(AH426=\"\",AE426=\"\"),\"\",AE426*AH426)","v":""},null,null,null,null,null,null,{"$f":"SUM(AV426:AV475)","v":1},1]
[null,null,null,null,null,null,null,null,null,null,null,null,null,null,null,null,null,null,null,null,null,null,null,null,null,null,null,null,null,null,null,null,null,null,null,null,null,null,null,{"$f":"IF(OR(AH427=\"\",AE427=\"\"),\"\",AE427*AH427)","v":""}]
[null,null,null,null,null,null,null,null,null,null,null,null,null,null,null,null,null,null,null,null,null,null,null,null,null,null,null,null,null,null,null,null,null,null,null,null,null,null,null,{"$f":"IF(OR(AH428=\"\",AE428=\"\"),\"\",AE428*AH428)","v":""}]
[null,null,null,null,null,null,null,null,null,null,null,null,null,null,null,null,null,null,null,null,null,null,null,null,null,null,null,null,null,null,null,null,null,null,null,null,null,null,null,""]
[null,null,null,null,null,null,null,null,null,null,null,null,null,null,null,null,null,null,null,null,null,null,null,null,null,null,null,null,null,null,null,null,null,null,null,null,null,null,null,""]
[null,null,null,null,null,null,null,null,null,null,null,null,null,null,null,null,null,null,null,null,null,null,null,null,null,null,null,null,null,null,null,null,null,null,null,null,null,null,null,{"$f":"IF(OR(AH431=\"\",AE431=\"\"),\"\",AE431*AH431)","v":""}]
[null,null,null,null,null,null,null,null,null,null,null,null,null,null,null,null,null,null,null,null,null,null,null,null,null,null,null,null,null,null,null,null,null,null,null,null,null,null,null,""]
[null,null,null,null,null,null,null,null,null,null,null,null,null,null,null,null,null,null,null,null,null,null,null,null,null,null,null,null,null,null,null,null,null,null,null,null,null,null,null,""]
[null,null,null,null,null,null,null,null,null,null,null,null,null,null,null,null,null,null,null,null,null,null,null,null,null,null,null,null,null,null,null,null,null,null,null,null,null,null,null,""]
[null,null,null,null,null,null,null,null,null,null,null,null,null,null,null,null,null,null,null,null,null,null,null,null,null,null,null,null,null,null,null,null,null,null,null,null,null,null,null,""]
[null,null,null,null,null,null,null,null,null,null,null,null,null,null,null,null,null,null,null,null,null,null,null,null,null,null,null,null,null,null,null,null,null,null,null,null,null,null,null,""]
[null,null,null,null,null,null,null,null,null,null,null,null,null,null,null,null,null,null,null,null,null,null,null,null,null,null,null,null,null,null,null,null,null,null,null,null,null,null,null,""]
[null,null,null,null,null,null,null,null,null,null,null,null,null,null,null,null,null,null,null,null,null,null,null,null,null,null,null,null,null,null,null,null,null,null,null,null,null,null,null,""]
[null,null,null,null,null,null,null,null,null,null,null,null,null,null,null,null,null,null,null,null,null,null,null,null,null,null,null,null,null,null,null,null,null,null,null,null,null,null,null,""]
[null,null,null,null,null,null,null,null,null,null,null,null,null,null,null,null,null,null,null,null,null,null,null,null,null,null,null,null,null,null,null,null,null,null,null,null,null,null,null,""]
[null,null,null,null,null,null,null,null,null,null,null,null,null,null,null,null,null,null,null,null,null,null,null,null,null,null,null,null,null,null,null,null,null,null,null,null,null,null,null,""]
[null,null,null,null,null,null,null,null,null,null,null,null,null,null,null,null,null,null,null,null,null,null,null,null,null,null,null,null,null,null,null,null,null,null,null,null,null,null,null,""]
[null,null,null,null,null,null,null,null,null,null,null,null,null,null,null,null,null,null,null,null,null,null,null,null,null,null,null,null,null,null,null,null,null,null,null,null,null,null,null,""]
[null,null,null,null,null,null,null,null,null,null,null,null,null,null,null,null,null,null,null,null,null,null,null,null,null,null,null,null,null,null,null,null,null,null,null,null,null,null,null,""]
[null,null,null,null,null,null,null,null,null,null,null,null,null,null,null,null,null,null,null,null,null,null,null,null,null,null,null,null,null,null,null,null,null,null,null,null,null,null,null,""]
[null,null,null,null,null,null,null,null,null,null,null,null,null,null,null,null,null,null,null,null,null,null,null,null,null,null,null,null,null,null,null,null,null,null,null,null,null,null,null,""]
[null,null,null,null,null,null,null,null,null,null,null,null,null,null,null,null,null,null,null,null,null,null,null,null,null,null,null,null,null,null,null,null,null,null,null,null,null,null,null,""]
[null,null,null,null,null,null,null,null,null,null,null,null,null,null,null,null,null,null,null,null,null,null,null,null,null,null,null,null,null,null,null,null,null,null,null,null,null,null,null,""]
[null,null,null,null,null,null,null,null,null,null,null,null,null,null,null,null,null,null,null,null,null,null,null,null,null,null,null,null,null,null,null,null,null,null,null,null,null,null,null,""]
[null,null,null,null,null,null,null,null,null,null,null,null,null,null,null,null,null,null,null,null,null,null,null,null,null,null,null,null,null,null,null,null,null,null,null,null,null,null,null,""]
[null,null,null,null,null,null,null,null,null,null,null,null,null,null,null,null,null,null,null,null,null,null,null,null,null,null,null,null,null,null,null,null,null,null,null,null,null,null,null,{"$f":"IF(OR(AH451=\"\",AE451=\"\"),\"\",AE451*AH451)","v":""}]
[null,null,null,null,null,null,null,null,null,null,null,null,null,null,null,null,null,null,null,null,null,null,null,null,null,null,null,null,null,null,null,null,null,null,null,null,null,null,null,""]
[null,null,null,null,null,null,null,null,null,null,null,null,null,null,null,null,null,null,null,null,null,null,null,null,null,null,null,null,null,null,null,null,null,null,null,null,null,null,null,""]
[null,null,null,null,null,null,null,null,null,null,null,null,null,null,null,null,null,null,null,null,null,null,null,null,null,null,null,null,null,null,null,null,null,null,null,null,null,null,null,""]
[null,null,null,null,null,null,null,null,null,null,null,null,null,null,null,null,null,null,null,null,null,null,null,null,null,null,null,null,null,null,null,null,null,null,null,null,null,null,null,""]
[null,null,null,null,null,null,null,null,null,null,null,null,null,null,null,null,null,null,null,null,null,null,null,null,null,null,null,null,null,null,null,null,null,null,null,null,null,null,null,""]
[null,null,null,null,null,null,null,null,null,null,null,null,null,null,null,null,null,null,null,null,null,null,null,null,null,null,null,null,null,null,null,null,null,null,null,null,null,null,null,""]
[null,null,null,null,null,null,null,null,null,null,null,null,null,null,null,null,null,null,null,null,null,null,null,null,null,null,null,null,null,null,null,null,null,null,null,null,null,null,null,""]
[null,null,null,null,null,null,null,null,null,null,null,null,null,null,null,null,null,null,null,null,null,null,null,null,null,null,null,null,null,null,null,null,null,null,null,null,null,null,null,""]
[null,null,null,null,null,null,null,null,null,null,null,null,null,null,null,null,null,null,null,null,null,null,null,null,null,null,null,null,null,null,null,null,null,null,null,null,null,null,null,""]
[null,null,null,null,null,null,null,null,null,null,null,null,null,null,null,null,null,null,null,null,null,null,null,null,null,null,null,null,null,null,null,null,null,null,null,null,null,null,null,""]
[null,null,null,null,null,null,null,null,null,null,null,null,null,null,null,null,null,null,null,null,null,null,null,null,null,null,null,null,null,null,null,null,null,null,null,null,null,null,null,""]
[null,null,null,null,null,null,null,null,null,null,null,null,null,null,null,null,null,null,null,null,null,null,null,null,null,null,null,null,null,null,null,null,null,null,null,null,null,null,null,""]
[null,null,null,null,null,null,null,null,null,null,null,null,null,null,null,null,null,null,null,null,null,null,null,null,null,null,null,null,null,null,null,null,null,null,null,null,null,null,null,""]
[null,null,null,null,null,null,null,null,null,null,null,null,null,null,null,null,null,null,null,null,null,null,null,null,null,null,null,null,null,null,null,null,null,null,null,null,null,null,null,""]
[null,null,null,null,null,null,null,null,null,null,null,null,null,null,null,null,null,null,null,null,null,null,null,null,null,null,null,null,null,null,null,null,null,null,null,null,null,null,null,""]
[null,null,null,null,null,null,null,null,null,null,null,null,null,null,null,null,null,null,null,null,null,null,null,null,null,null,null,null,null,null,null,null,null,null,null,null,null,null,null,""]
[null,null,null,null,null,null,null,null,null,null,null,null,null,null,null,null,null,null,null,null,null,null,null,null,null,null,null,null,null,null,null,null,null,null,null,null,null,null,null,""]
[null,null,null,null,null,null,null,null,null,null,null,null,null,null,null,null,null,null,null,null,null,null,null,null,null,null,null,null,null,null,null,null,null,null,null,null,null,null,null,{"$f":"IF(OR(AH469=\"\",AE469=\"\"),\"\",AE469*AH469)","v":""}]
[null,null,null,null,null,null,null,null,null,null,null,null,null,null,null,null,null,null,null,null,null,null,null,null,null,null,null,null,null,null,null,null,null,null,null,null,null,null,null,""]
[null,null,null,null,null,null,null,null,null,null,null,null,null,null,null,null,null,null,null,null,null,null,null,null,null,null,null,null,null,null,null,null,null,null,null,null,null,null,null,""]
[null,null,null,null,null,null,null,null,null,null,null,null,null,null,null,null,null,null,null,null,null,null,null,null,null,null,null,null,null,null,null,null,null,null,null,null,null,null,null,""]
[null,null,null,null,null,null,null,null,null,null,null,null,null,null,null,null,null,null,null,null,null,null,null,null,null,null,null,null,null,null,null,null,null,null,null,null,null,null,null,""]
[null,null,null,null,null,null,null,null,null,null,null,null,null,null,null,null,null,null,null,null,null,null,null,null,null,null,null,null,null,null,null,null,null,null,null,null,null,null,null,""]
[null,null,null,null,null,null,null,null,null,null,null,null,null,null,null,null,null,null,null,null,null,null,null,null,null,null,null,null,null,null,null,null,null,null,null,null,null,null,null,""]
["TOTAL",null,null,null,null,null,null,null,null,null,null,null,null,null,null,null,null,null,null,null,null,null,null,null,null,null,null,null,null,null,null,null,null,null,null,null,null,null,null,{"$f":"IF(SUM(AN426:AS475)=0,\"-\",SUM(AN426:AS475))","v":"-"}]
[]
[null,null,null,null,null,null,null,null,null,null,null,"PATRIMÔNIO TOTAL"]
[null,null,null,null,null,null,null,null,null,null,null,{"$f":"A7","v":"I - BENS IMÓVEIS"},null,null,null,null,null,null,null,null,null,null,null,null,null,null,null,null,{"$f":"SUM(AC480:AH482)","v":0}]
[null,null,null,null,null,null,null,null,null,null,null,"RURAIS",null,null,null,null,null,null,null,null,null,null,null,null,null,null,null,null,{"$f":"SUMIF(C10:E109,\"RURAL\",AO10:AS109)","v":0}]
[null,null,null,null,null,null,null,null,null,null,null,"URBANOS",null,null,null,null,null,null,null,null,null,null,null,null,null,null,null,null,{"$f":"SUMIF(C10:E109,\"URBANO\",AO10:AS109)","v":0}]
[null,null,null,null,null,null,null,null,null,null,null,"BENFEITORIAS",null,null,null,null,null,null,null,null,null,null,null,null,null,null,null,null,{"$f":"SUM(AN113:AS162)","v":0}]
[null,null,null,null,null,null,null,null,null,null,null,{"$f":"A165","v":"II - BENS MÓVEIS"},null,null,null,null,null,null,null,null,null,null,null,null,null,null,null,null,{"$f":"SUM(AN168:AS367)","v":0}]
[null,null,null,null,null,null,null,null,null,null,null,"VEÍCULOS",null,null,null,null,null,null,null,null,null,null,null,null,null,null,null,null,{"$f":"SUMIF(A168:F367,\"VEÍCULO\",AN168:AS367)","v":0}]
[null,null,null,null,null,null,null,null,null,null,null,"MÁQUINAS",null,null,null,null,null,null,null,null,null,null,null,null,null,null,null,null,{"$f":"SUMIF(A168:F367,\"MÁQUINA\",AN168:AS367)","v":0}]
[null,null,null,null,null,null,null,null,null,null,null,"EQUIPAMENTOS",null,null,null,null,null,null,null,null,null,null,null,null,null,null,null,null,{"$f":"SUMIF(A168:F367,\"EQUIPAMENTO\",AN168:AS367)","v":0}]
[null,null,null,null,null,null,null,null,null,null,null,{"$f":"A370","v":"III - SEMOVENTES"},null,null,null,null,null,null,null,null,null,null,null,null,null,null,null,null,{"$f":"SUM(AC488:AH489)","v":0}]
[null,null,null,null,null,null,null,null,null,null,null,"BOVINOS",null,null,null,null,null,null,null,null,null,null,null,null,null,null,null,null,{"$f":"SUM(AN373:AS422)","v":0}]
[null,null,null,null,null,null,null,null,null,null,null,"OUTROS ANIMAIS",null,null,null,null,null,null,null,null,null,null,null,null,null,null,null,null,{"$f":"SUM(AN426:AS475)","v":0}]
[null,null,null,null,null,null,null,null,null,null,null,"TOTAL",null,null,null,null,null,null,null,null,null,null,null,null,null,null,null,null,{"$f":"PAT_SEMOVENTES+PAT_MOVEIS+PAT_IMOVEIS","v":0}]
[]
[]
[]
["________________________________________",null,null,null,null,null,null,null,null,null,null,null,null,null,null,null,null,null,null,null,null,null,null,null,null,"________________________________________"]
[{"$f":"UPPER('INFORMAÇÕES GERAIS'!F19)","v":""},null,null,null,null,null,null,null,null,null,null,null,null,null,null,null,null,null,null,null,null,null,null,null,null,{"$f":"UPPER('INFORMAÇÕES GERAIS'!H15)","v":""}]
["Proponente",null,null,null,null,null,null,null,null,null,null,null,null,null,null,null,null,null,null,null,null,null,null,null,null,"Responsável Técnico"]

{"sheet":"REGRAS","index":11,"n_rows":27,"n_cols":5,"rows_kept":27,"cut":false,"hidden":true,"merged":[]}
[null,null,null,null,{"$f":"COUNTIF(B:B,\"OK\")","v":16}]
["DESCRIÇÃO","SITUAÇÃO","PÁGINA"]
["INFORMAÇÕES OBRIGATÓRIAS DA EMPRESA ELABORADORA - AUSENTES",{"$f":"'INFORMAÇÕES GERAIS'!AT7","v":"AUSENTE"},"EMPREENDIMENTO"]
["INFORMAÇÕES OBRIGATÓRIAS DE IDENTIFICAÇÃO DO PROPONENTE  - AUSENTES",{"$f":"'INFORMAÇÕES GERAIS'!AT17","v":"AUSENTE"},"EMPREENDIMENTO"]
["DADOS DE IDENTIFICAÇÃO DO IMÓVEL 1 - AUSENTES",{"$f":"'INFORMAÇÕES GERAIS'!AT29","v":"AUSENTE"},"EMPREENDIMENTO"]
["DADOS DE IDENTIFICAÇÃO DO IMÓVEL 2 - AUSENTES",{"$f":"IF('INFORMAÇÕES GERAIS'!K27<2,\"OK\",'INFORMAÇÕES GERAIS'!AT37)","v":"AUSENTE"},"EMPREENDIMENTO"]
["DADOS DE IDENTIFICAÇÃO DO IMÓVEL 3 - AUSENTES",{"$f":"IF('INFORMAÇÕES GERAIS'!K27<3,\"OK\",'INFORMAÇÕES GERAIS'!AT45)","v":"OK"},"EMPREENDIMENTO"]
["INFORMAÇÕES OBRIGATÓRIAS SOBRE O EMPREENDIMENTO  - AUSENTES",{"$f":"'INFORMAÇÕES GERAIS'!AT53","v":"AUSENTE"},"EMPREENDIMENTO"]
["VALOR ORÇADO DEVE TER UM VALOR MAIOR QUE ZERO",{"$f":"IF(VALOR_ORÇADO<=0,\"NÃO\",\"OK\")","v":"NÃO"},"ORÇAMENTO"]
["VALOR FINANCIADO DEVE TER UM VALOR MAIOR QUE ZERO",{"$f":"IF(VALOR_FINANCIADO<=0,\"NÃO\",\"OK\")","v":"NÃO"},"ORÇAMENTO"]
["VALOR FINANCIADO NÃO PODE SER MAIOR QUE VALOR ORÇADO",{"$f":"IF(VALOR_ORÇADO<VALOR_FINANCIADO,\"NÃO\",\"OK\")","v":"OK"},"ORÇAMENTO"]
["EXISTE UMA OU MAIS LINHAS NA TABELA \"ALIMENTAÇÃO\" SEM TODOS OS CAMPOS PREENCHIDOS",{"$f":"IF(Tabela1[[#Totals],[EM BRANCO]]>0,\"AUSENTE\",\"OK\")","v":"OK"},"ORÇAMENTO"]
["EXISTE UMA OU MAIS LINHAS NA TABELA \"SANIDADE\" SEM TODOS OS CAMPOS PREENCHIDOS",{"$f":"IF(Tabela123[[#Totals],[EM BRANCO]]>0,\"AUSENTE\",\"OK\")","v":"OK"},"ORÇAMENTO"]
["EXISTE UMA OU MAIS LINHAS NA TABELA \"SERVIÇOS\" SEM TODOS OS CAMPOS PREENCHIDOS",{"$f":"IF(Tabela125[[#Totals],[EM BRANCO]]>0,\"AUSENTE\",\"OK\")","v":"OK"},"ORÇAMENTO"]
["A RENTABILIDADE DO EMPREENDIMENTO DEVE SER POSITIVA",{"$f":"IF('DEMONSTRATIVO DE VIABILIDADE'!F17<=0,\"ERRO\",\"OK\")","v":"ERRO"},"VIABILIDADE"]
["COORDENADAS DO IMÓVEL 1 AUSENTES","OK","EMPREENDIMENTO"]
["COORDENADAS DO IMÓVEL 2 AUSENTES","OK","EMPREENDIMENTO"]
["COORDENADAS DO IMÓVEL 3 AUSENTES","OK","EMPREENDIMENTO"]
["É NECESSÁRIO JUSTIFICATIVA QUANDO NÃO HOUVER A PRODUÇÃO DE 3 ANOS",{"$f":"IF(AND(OR('INFORMAÇÕES GERAIS'!AG112=\"\",'INFORMAÇÕES GERAIS'!AG113=\"\",'INFORMAÇÕES GERAIS'!AG114=\"\"),'INFORMAÇÕES GERAIS'!A116=\"\"),\"AUSENTE\",\"OK\")","v":"AUSENTE"},"EMPREENDIMENTO"]
["É NECESSÁRIO JUSTIFICAR VARIAÇÕES DE PRODUTIVDADE MAIORES QUE 10%","OK","EMPREENDIMENTO"]
["EXISTE UMA OU MAIS LINHAS DE ATIVIDADES AGRÍCOLAS SEM TODOS OS CAMPOS PREENCHIDOS",{"$f":"IF(AND(('CAPACIDADE DE PAGAMENTO'!K9+'CAPACIDADE DE PAGAMENTO'!K31)>('CAPACIDADE DE PAGAMENTO'!M9+'CAPACIDADE DE PAGAMENTO'!M31),'CAPACIDADE DE PAGAMENTO'!K9>=2),\"AUSENTE\",\"OK\")","v":"OK"},"CAPACIDADE GLOBAL"]
["EXISTE UMA OU MAIS LINHAS DE ATIVIDADES PECUÁRIAS SEM TODOS OS CAMPOS PREENCHIDOS",{"$f":"IF(AND(('CAPACIDADE DE PAGAMENTO'!K55+'CAPACIDADE DE PAGAMENTO'!K77>'CAPACIDADE DE PAGAMENTO'!M77+'CAPACIDADE DE PAGAMENTO'!M55),'CAPACIDADE DE PAGAMENTO'!K55>=2),\"AUSENTE\",\"OK\")","v":"OK"},"CAPACIDADE GLOBAL"]
["SOMATÓRIO DAS ÁREAS DOS IMÓVEIS DEVE SER IGUAL À AREA FINANCIADA TOTAL",{"$f":"IF(('INFORMAÇÕES GERAIS'!AP51+'INFORMAÇÕES GERAIS'!AP43+'INFORMAÇÕES GERAIS'!AP35)='INFORMAÇÕES GERAIS'!P71,\"OK\",\"ERRO\")","v":"OK"},"EMPREENDIMENTO"]
["ROTEIRO DE ACESSO DO IMÓVEL 1","OK","IMÓVEIS"]
["ROTEIRO DE ACESSO DO IMÓVEL 2","OK","IMÓVEIS"]
["ROTEIRO DE ACESSO DO IMÓVEL 3","OK","IMÓVEIS"]
["ASSISTÊNCIA TÉCNICA FINANCIADA PORÉM O VALOR NÃO FOI INFORMADO",{"$f":"IF(AND('INFORMAÇÕES GERAIS'!AK75=\"SIM\",'DEMONSTRATIVO DE VIABILIDADE'!B13=0),\"AUSENTE\",\"OK\")","v":"OK"},"VIABILIDADE"]